Workbook

Sheet page de garde
A9: Document unique Evaluation des risques professionnels Décret n° 2001-1016 du 5 novembre 2001
A42: Centre Mixte

Sheet Avertissement
A1: AVERTISSEMENT
A2: • Référentiel Articles L.4121-1 à L.4121-5 et R.4121-1 à R.4121-4 du Code du travail, Article 108-1 de la loi n° 84-53 du 26 janvier 1984 portant dispositions statutaires relatives à la fonction publique territoriale, Circulaire ministérielle n° RDFB1314079C de juin 2013
A3: L'évaluation a priori des risques professionnels constitue un des principaux leviers de progrès de la démarche de prévention des risques professionnels au sein de la Fonction Publique Territoriale. Elle constitue un moyen essentiel de préserver la santé et la sécurité des agents par un diagnostic systématique et exhaustif des facteurs de risques auxquels ils peuvent être exposés dans l'exercice de leurs fonctions.
A4: • L'apport des connaissances scientifiques et l'évolution des conditions de travail ont mis en évidence de nouveaux risques professionnels (amiante, risques à effets différés liés aux substances dangereuses, troubles-musculo-squelettiques, risques psychosociaux…), qui soulignent la nécessité de renforcer l'analyse préventive des risques.
A5: • Dans cette perspective, en reposant sur une approche globale et pluridisciplinaire (c'est-à-dire à la fois technique, médicale et organisationnelle) la démarche d'évaluation doit permettre de comprendre et de traiter l'ensemble des risques professionnels.
A6: • Introduite en droit français du travail en 1991, l'évaluation des risques a connu, avec la parution du décret n° 2001-1016 du 5 novembre 2001 portant création d'un document relatif à l'évaluation des risques pour la santé et la sécurité des travailleurs, une nouvelle avancée. Ainsi, les acteurs de la prévention disposent désormais d'une base tangible pour la définition de stratégies d'action dans chaque collectivité.
A7: • Le présent document vise à fournir à la collectivité des éléments de droit et de méthode utiles pour réaliser cette évaluation et en faciliter la compréhension par l'ensemble des acteurs. La méthode proposée par le Centre de gestion de la fonction publique du Puy de Dôme repose sur un instrument relativement exhaustif mais dont la mise en œuvre demeure néanmoins souple. Elle s'appuie sur les enseignements tirés des expériences dans la Fonction Publique Territoriale impulsées par le service Prévention, depuis 2003.
A8: L'obligation de transcrire dans un document les résultats de l'évaluation des risques n'est pas qu'une obligation matérielle. Elle représente la première étape de la démarche générale de prévention qui incombe à l'employeur. Mais cette formalisation doit aussi contribuer au dialogue social au sein des collectivités, sur l'évaluation elle même, et au delà sur la conception et la réalisation des mesures de prévention qui devront, en tant que de besoin, faire suite à l'évaluation des risques.
A9: Pour les mairies, la validation du document unique doit faire l'objet d'une délibération du conseil municipal car cette compétence ne peut être déléguée au maire par le conseil municipal (article L 2122-21 du code général des collectivités territoriales). L'exécution de cette délibération peut se matérialiser par la signature du document unique par le maire. Les textes ne prévoient pas, dans cette hypothèse, l'obligation de formaliser le document unique par la signature d'un arrêté.
A10: Le comité d'hygiène, de sécurité et des conditions de travail (CHSCT) est consulté sur le document unique dans le cadre des programmes et rapports annuels (articles 39, 49 et 50 du décret 85-603 modifié).
A12: • Important En application de l'article R 4121-4 du Code du travail, Le document unique d'évaluation des risques est tenu à la disposition notamment des agents, des membres du CHSCT, du médecin de prévention et des représentants du personnel. Un avis indiquant les modalités d'accès des travailleurs au document unique est affiché à une place convenable et accessible dans les lieux de travail. Pour les collectivités disposant d'un règlement intérieur, cet avis est affiché au même emplacement que celui réservé au règlement intérieur.

Sheet Sommaire
A1: SOMMAIRE
A4: 1. Présentation de la collectivité | E4: Page | F4: 7
A5: 2. Présentation de la methode | E5: Page | F5: 11
A6: 3. Evaluation par unité de travail | E6: Page | F6: 15
A7: Evaluation unité de travail | B7: =+Collectivité!A32 -> Direction | E7: Page | F7: 15
A8: Evaluation unité de travail | B8: =+Collectivité!A33 -> Secrétariat | E8: Page | F8: 19
A9: Evaluation unité de travail | B9: =+Collectivité!A34 -> Chaine de commandement | E9: Page | F9: 27
A10: Evaluation unité de travail | B10: =+Collectivité!A35 -> Services administratifs | E10: Page | F10: 33
A11: Evaluation unité de travail | B11: =+Collectivité!A36 -> STASS | E11: Page | F11: 37
A12: Evaluation unité de travail | B12: =+Collectivité!A37 -> Vie collective | E12: Page | F12: 38
A13: Evaluation unité de travail | B13: =+Collectivité!A38 -> Manœuvre et formation | E13: Page | F13: 39
A14: Evaluation unité de travail | B14: =+Collectivité!A39 -> APS | E14: Page | F14: 40
A15: Evaluation unité de travail | B15: =+Collectivité!A40 -> Espace vert | E15: Page | F15: 41
A16: Evaluation unité de travail | B16: =+Collectivité!A41 -> Habillement | E16: Page | F16: 42
A17: 4. Grille d’évaluation | E17: Page | F17: 41
A18: 5. Proposition de Plan d’actions | E18: Page | F18: 43
A19: Proposition de Plan d’actions | B19: =+B7 -> Direction | E19: Page | F19: 45
A20: Proposition de Plan d’actions | B20: Secrétariat | E20: Page | F20: 47
A21: Proposition de Plan d’actions | B21: Chaine de commandement | E21: Page | F21: 49
A22: Proposition de Plan d’actions | B22: Services administratifs | E22: Page | F22: 51
A23: Proposition de Plan d’actions | B23: STASS | E23: Page | F23: 53
A24: Proposition de Plan d’actions | B24: Vie collective | E24: Page | F24: 55
A25: Proposition de Plan d’actions | B25: Manœuvre et formation | E25: Page | F25: 57
A26: Proposition de Plan d’actions | B26: APS | E26: Page | F26: 59
A27: Proposition de Plan d’actions | B27: Espace vert | E27: Page | F27: 61
A28: Proposition de Plan d’actions | B28: Habillement | E28: Page | F28: 63
A29: 6.Pénibilité au travail | E29: Page | F29: 65

Sheet Collectivité
B1: Evaluation des risques professionnels Document unique | F1: =MID(CELL("nomfichier"),FIND("[",CELL("nomfichier"))+1,FIND("]",CELL("nomfichier"))-FIND("[",CELL("nomfichier"))-1) -> 2018_CIS vierge.xlsm | I1: =TODAY() -> 2019-06-12 | J1: =DAY(I1) -> 12 | K1: =MONTH(I1) -> 6 | L1: =YEAR(I1) -> 2019 | M1: =J1&" / "&K1&" / "&L1 -> 12 / 6 / 2019
B2: ='page de garde '!A42 -> Centre Mixte
B3: 1. PRESENTATION DE LA COLLECTIVITE | F3: ="Date d'impression : "&M1 -> Date d'impression : 12 / 6 / 2019
A5: Adresse
A7: Autorité territoriale
A9: N° Tel
A10: N° Fax
A11: Courriel
A12: Assistant de Prévention ou Conseiller en Prévention
A14: Nom / Prénom | C14: Fonction | E14: Téléphone | F14: Mail
A15: Emilie BARRAT | C15: Conseiller de prévention | F15: e_barrat@sdis63.fr
A16: Yoann DEBAILLEUX | C16: Conseiller de prévention | F16: y_debailleux@sdis63.fr
C17: Assistant de prévention
C18: Assistant de prévention
A20: GROUPE DE TRAVAIL
B22: Autorité territoriale | C22: Assistant de Prévention | D22: Médecin du travail | E22: Préventeurs SDIS / Cdg 63 | F22: CHSCT / CCDSPV
A27: DESCRIPTION DE LA COLLECCTIVITE
D29: EFFECTIFS TOTAL | F29: =+SUM(E32:E76) -> 12.19
A31: Unité de travail | D31: Nombre d'agent | E31: EqTP | F31: Date Evaluation
A32: Direction | D32: =+'Détail Nominatif'!B17 -> 2 | E32: =+'Détail Nominatif'!B15 -> 1.33
A33: Secrétariat | D33: =+'Détail Nominatif'!C17 -> 8 | E33: =+'Détail Nominatif'!C15 -> 6.4
A34: Chaine de commandement | D34: =+'Détail Nominatif'!D17 -> 3 | E34: =+'Détail Nominatif'!D15 -> 1.6
A35: Services administratifs | D35: =+'Détail Nominatif'!E17 -> 1 | E35: =+'Détail Nominatif'!E15 -> 0.33
A36: STASS | D36: =+'Détail Nominatif'!F17 -> 2 | E36: =+'Détail Nominatif'!F15 -> 0.7
A37: Vie collective | D37: =+'Détail Nominatif'!G17 -> 3 | E37: =+'Détail Nominatif'!G15 -> 0.4
A38: Manœuvre et formation | D38: =+'Détail Nominatif'!H17 -> 1 | E38: =+'Détail Nominatif'!H15 -> 0.33
A39: APS | D39: =+'Détail Nominatif'!I17 -> 2 | E39: =+'Détail Nominatif'!I15 -> 0.4
A40: Espace vert | D40: =+'Détail Nominatif'!J17 -> 3 | E40: =+'Détail Nominatif'!J15 -> 0.4
A41: Habillement | D41: =+'Détail Nominatif'!K17 -> 3 | E41: =+'Détail Nominatif'!K15 -> 0.3
A42: Réserve groupement | D42: =+'Détail Nominatif'!L17 -> 0 | E42: =+'Détail Nominatif'!L15 -> 0
A43: Pharmacie | D43: =+'Détail Nominatif'!M17 -> 0 | E43: =+'Détail Nominatif'!M15 -> 0
A44: Batiment | D44: =+'Détail Nominatif'!N17 -> 0 | E44: =+'Détail Nominatif'!N15 -> 0
A45: Cyno | D45: =+'Détail Nominatif'!O17 -> 0 | E45: =+'Détail Nominatif'!O15 -> 0
A47: INDICATEUR DE LA COLLECTIVITE
A49: Les indicateurs RPS :
A51: Taux d’absentéisme pour raisons de santé
A52: Nombre moyen de jours d’absence pour raison de santé par agent =
A53: Nombre de jour d’arrêts pour maladie / Nombre total d’agents
B54: année 2014 | C54: année 2015 | D54: année 2016 | E54: année 2017 | F54: année 2018
A55: Taux abs
A57: Taux de rotation des agents :
A58: Taux de rotation des agents = Somme du nombre d’arrivées et du nombre de départs d’agents au cours de l’année / Effectif moyen de l’année n
B59: année 2014 | C59: année 2015 | D59: année 2016 | E59: année 2017 | F59: année 2018
A60: Taux rotation
A62: Taux de visite sur demande au médecin de prévention :
A63: Le taux de visite sur demande au médecin de prévention correspond au nombre de demande de visite spontanée au médecin de prévention, pour 100 agents.
B64: année 2014 | C64: année 2015 | D64: année 2016 | E64: année 2017 | F64: année 2018
A65: Nb de visite
A66: Nombre d’actes de violence physique envers le personnel :
A67: Il faut comptabiliser le nombre d’actes de violence
A68: Physique envers le personnel, en distinguant 4 catégories : ceux émanant du personnel avec ou sans arrêt de travail et ceux émanant des usagers avec ou sans arrêt de travail,
B70: année 2014 | C70: année 2015 | D70: année 2016 | E70: année 2017 | F70: année 2018
A71: Nb d'agression du personnel sans arrêt
A72: Nb d'agression du personnel avec arrêt
A73: Nb d'agression des usagers sans arrêt
A74: Nb d'agression des usagers avec arrêt

Sheet Détail Nominatif
K1: =MID(CELL("nomfichier"),FIND("[",CELL("nomfichier"))+1,FIND("]",CELL("nomfichier"))-FIND("[",CELL("nomfichier"))-1) -> 2018_CIS vierge.xlsm
K3: =+TODAY() -> 2019-06-12
A4: Liste des agents de la Mairie de au
A5: AGENT Nom et prénom | B5: En part Equivalent temps plein 35 h
B6: =+Collectivité!A32 -> Direction | C6: =+Collectivité!A33 -> Secrétariat | D6: =+Collectivité!A34 -> Chaine de commandement | E6: =+Collectivité!A35 -> Services administratifs | F6: =+Collectivité!A36 -> STASS | G6: =+Collectivité!A37 -> Vie collective | H6: =+Collectivité!A38 -> Manœuvre et formation | I6: =+Collectivité!A39 -> APS | J6: =+Collectivité!A40 -> Espace vert | K6: =+Collectivité!A41 -> Habillement
A7: Pierre | C7: 0.8 | F7: 0.1 | I7: 0.1
A8: Paul | B8: 0.33 | C8: 0.8 | E8: 0.33 | H8: 0.33
A9: Syvie | C9: 0.8 | D9: 0.6 | G9: 0.2 | J9: 0.1 | K9: 0.1
A10: Leon | C10: 0.8 | K10: 0.1
A11: Audrey | B11: 1 | C11: 0.8
A12: Monique | C12: 0.8 | F12: 0.6 | I12: 0.3
A13: Michel | C13: 0.8 | D13: 0.5 | G13: 0.1 | J13: 0.1
A14: Fabien | C14: 0.8 | D14: 0.5 | G14: 0.1 | J14: 0.2 | K14: 0.1
A15: Total | B15: =SUM(B7:B14) -> 1.33 | C15: =SUM(C7:C14) -> 6.4 | D15: =SUM(D7:D14) -> 1.6 | E15: 0.33 | F15: 0.7 | G15: 0.4 | H15: 0.33 | I15: 0.4 | J15: 0.4 | K15: 0.3
A16: Part % | B16: =+B15/$B$18 -> 0.1091058244 | C16: =+C15/$B$18 -> 0.5250205086 | D16: 0.1312551272 | E16: 0.02707136998 | F16: 0.05742411813 | G16: 0.03281378179 | H16: 0.02707136998 | I16: 0.03281378179 | J16: 0.03281378179 | K16: 0.02461033634
A17: Nb de personne | B17: =+COUNTA(B7:B$14) -> 2 | C17: =+COUNTA(C7:C14) -> 8 | D17: =+COUNTA(D7:D14) -> 3 | E17: 1 | F17: 2 | G17: 3 | H17: 1 | I17: 2 | J17: 3 | K17: 3
A18: Total | B18: =+SUM(B15:K15) -> 12.19

Sheet EvRP Methode
A1: 2. EVALUATION DES RISQUES PROFESSIONNELS : Méthodologie
A3: Le service Prévention, dans le cadre de sa mission de conseil auprès des Collectivités ayant souhaité bénéficier de ses prestations, propose une démarche d’évaluation des risques professionnels.
A5: Objectif :
A6: Répondre aux obligations du Décret n°2001-1016 du 5 novembre 2001 : l’employeur doit retranscrire les résultats de l’évaluation des risques professionnels dans un document unique.
A7: La mise en place de cette démarche d’évaluation des risques professionnels se déroule en 5 étapes :
A9: 2.1. Préparation :
A10: Mise en place d’un groupe de travail afin de piloter la démarche d’évaluation des risques au sein de la collectivité. Il est composé de :
A11: - Un conseiller en Prévention du SDIS,
A12: - Un représentant de l’autorité territoriale,
A13: - Le médecin de prévention pour les PATs et un membre du 3SM pour les SPP et SPV,
A14: - L'assistant de prévention de la compagnie,
A15: - Les membres du CHSCT / CCDSPV,
A16: - Le chef de centre ou son adjoint de l'unité de travail.
A18: Lors de cette préparation, les membres du groupe de travail réaliseront une première visite des locaux de travail avec rencontre des agents en situation afin d’appréhender les conditions réelles de travail. Suite à cette visite, les Unités de travail seront définies.
A19: Exemple :
B20: Secteur | D20: Service | F20: Activités
B21: Service technique | D21: Espaces verts | F21: Elagage
A22: Exemple : Service Technique / Espaces Verts / Elagage | B22: Secteur | D22: Service | F22: Activités
A23: 2.2. Identification et évaluation des risques :
A24: L’identification et l’évaluation des risques se fait selon une liste des risques non exhaustive mais volontairement ouverte.
A26: Liste des risques :
A27: Chute de plain-pied, | E27: Incendie et explosion,
A28: Chute de hauteur, | E28: Risques liés à l’éclairage,
A29: Effondrements et chute d’objets, | E29: Utilisation d’écran,
A30: Manutention manuelle, | E30: Risques liés aux ambiances climatiques et thermiques,
A31: Ergonomie, | E31: Risque Biologique,
A32: Risques routiers et conduite d'engin , | E32: Manque d'hygiène,
A33: Circulation piétonne, | E33: Rayonnement,
A34: Risques liés aux machines et outils, | E34: Entreprises extérieures,
A35: Bruit, | E35: Agressions,
A36: Vibrations, | E36: Risques psychosociaux,
A37: Risque chimique, | E37: Noyade…
A38: Amiante,
A39: Aération et assainissement de l’air,
A40: Risque électrique,
A43: Lors de cette réunion (environ 1h par corps de métier) la liste des risques est passée en revue et une cotation de chaque exposition est déterminée selon la méthode basée sur la définition d’un risque.
A45: RISQUE = GRAVITE POTENTIELLE x EXPOSITION
A47: La gravité potentielle du risque se décline suivant deux critères :
A48:  La gravité du risque
A49:  La maîtrise du risque
A51: L’exposition du personnel au danger se décline, également en deux critères :
A52:  La durée d’exposition
A53:  Le pourcentage de l’effectif total soumis à ce risque
A55: Voici la déclinaison de ces quatre critères qui définissent le risque :
A57: • La gravité du risque
A58:  0 = Nulle – Pas de lésions
A59:  1 = Lésions Mineures – Accident sans Arrêt
A60:  4 = Significatif – Accident sans séquelles avec Arrêt
A61:  7 = Critique – Accident de Service avec séquelles - Maladie professionnelle
A62:  10 = Mortel
A64: • Maîtrise du risque
A65:  0 = Risque supprimé / Sécurité intrinsèque
A66:  1 = Très Bonne / Risque Isolé / Protections Collectives
A67:  4 = Bonne / Equipements Protection Individuelles
A68:  7 = Insuffisante / Risque signalé – Affichage
A69:  10 = Nul / Aucune maîtrise / Rien n’est fait
A71: • Durée d’ exposition
A72:  0 = Nulle – Non exposé
A73:  1 = Rare – Quelques heures par an
A74:  4 = Courte – Quelques heures par mois
A75:  7 = Fréquente – Quelques heures par semaine
A76:  10 = Très Importante – Quelques heures par jour
A78: • Effectif exposé
A79:  0 = Nul – 0% de l’effectif total
A80:  1 = Réduit – Entre 0 et 15%
A81:  4 = Significatif – Entre Supérieur à 15 % et égale à 45 %
A82:  7 = Important – Entre Supérieur à 45 % et égale à 75 %
A83:  10 = Très Important - > 75 %
A84: Les notations sont attribuées par le groupe de travail participant à l'évaluation à partir des éléments fournies par la collectivité et ses agents, ainsi qu'à partir des éléments qui ont pu être montrés lors des visites de site. Il appartient à l'autorité territoriale d'en vérifier l'exactitude et qui reste est propriétaire du présent document. Le CDG 63 décline toute responsabilité quant à l'utilisation et l'interprétation de ces données basées sur des informations déclaratives qui n'engageraient que ceux les ayant fournies.
A86: L’ensemble des risques est hiérarchisé selon le principe suivant :
A87: Matrice de hiérarchisation des risques
A88: EXPOSITION DU PERSONNEL
A90: E≥40
A91: 16< E < 40
A92: 4< E ≤ 16
A93: 1 ≤ E ≤ 4
A94: E = O | G94: GRAVITE POTENTIELLE
B95: G = O | C95: 1 ≤ G ≤ 4 | D95: 4< G ≤ 16 | E95: 16< G < 40 | F95: G ≥40
B97: Priorité n°1 | F97: Priorité n°2
B99: Priorité n°3 | F99: Priorité n°4
B101: Priorité n°5
A104: 2.3. Retranscription de l’évaluation dans le document unique
A105: Dans cette démarche, les étapes de rédaction sont prises en charge par le service prévention du Centre de Gestion qui formule des propositions qu'il appartient à l'autorité territoriale de valider.
A106: Exemple de retranscription pour une unité de travail pour deux risques (chute de plain-pied, chute de hauteur) :
A108: Date de rédaction : | E108: Effectif total:
A109: Date de mise à jour : | E109: Effectif concerné:
A110: Rédacteur : | E110: Effectif (pourcentage): | G110: %
A111: Participants :
A112: Unité de travail :
A115: Liste des risques | B115: Danger Applicable | C115: Commentaires | D115: Gravité | E115: Maîtrise | F115: Durée d'exposition | G115: Effectif | H115: Note Totale
A116: Chute de plain pied
A117: Chute de hauteur
A119: 2.4. Rédaction du plan d’action
A121: Un plan d’action est défini pour chacun des risques relevés en tenant compte :
A122: - du degré d’urgence du problème à traiter, en fonction du niveau de risque (notation),
A123: - des contraintes technico-économique liées aux solutions retenues (coût, délai de réalisation…).
A125: 2.5. Réévaluation
A127: L’autorité territoriale est responsable de la mise à jour du document :
A128: • Au moins une fois par an,
A129: • Lors de toute décision d’aménagement important modifiant les conditions d’hygiène, de sécurité et des conditions de travail,
A130: • Lorsqu’une information supplémentaire concernant l’évaluation d’un risque dans une unité de travail est apportée.
A131: A chaque réévaluation, il convient dans un premier temps de vérifier que le découpage en unité de travail est toujours cohérent (ajout ou suppression de compétences, de "métiers" etc…). Ensuite, vérifier les données relatives à l'effectif en équivalent temps plein de chaque unité de travail. Enfin, en fonction des évolutions (avancement du plan d'action) procéder à la mise à jour des notes pour les critères de gravité, maîtrise et durée d'exposition. Procéder comme à l'évaluation d'origine en associant des agents (le ou les mêmes voir un nouveau) aux groupe de travail. Chaque nouvelle évaluation donne lieu à un nouveau plan d'actions.

Sheet Direction
A1: 3. EVALUATION DES RISQUES PAR UNITE DE TRAVAIL
A2: Date de rédaction : | G2: Effectif total: | J2: =+Collectivité!F29 -> 12.19
A3: Date de mise à jour : | G3: Effectif concerné: | J3: =+Collectivité!E32 -> 1.33
A4: Rédacteur : | G4: Effectif (pourcentage): | J4: =(J3/J2)*100 -> 10.91058244
A5: Participants : | C5: Chef de centre/chef de service ou adjoint : Assitant de prévention : Agent : CHSCT/CCDSPV : PSSM : | J5: =C6 -> Direction
A6: Unité de travail : | C6: =+Collectivité!A32 -> Direction
A9: Liste des risques | B9: Danger Applicable | C9: Commentaires | D9: Gravité | E9: Maîtrise | F9: G*M | G9: Durée exposition | H9: Effectif | I9: D*E | J9: Note Totale
A10: Chute de plain pied | F10: =IF(OR(D10="",E10=""),"NC",D10*E10) -> NC | H10: =IF(J$4=0,"0",IF(J$4<=15,"1",IF(AND(15<J$4,J$4<=45),"4",IF(AND(45<J$4,J$4<=75),"7",IF(J$4>75,"10",""))))) -> 1 | I10: =IF(OR(G10="",H10=""),"NC",G10*H10) -> NC | J10: =IF(OR(D10="",E10="",G10="",H10="",B10="non"),"NC",D10*E10*G10*H10) -> NC
A11: Chute de hauteur | F11: =IF(OR(D11="",E11=""),"NC",D11*E11) -> NC | H11: =IF(J$4=0,"0",IF(J$4<=15,"1",IF(AND(15<J$4,J$4<=45),"4",IF(AND(45<J$4,J$4<=75),"7",IF(J$4>75,"10",""))))) -> 1 | I11: =IF(OR(G11="",H11=""),"NC",G11*H11) -> NC | J11: =IF(OR(D11="",E11="",G11="",H11="",B11="non"),"NC",D11*E11*G11*H11) -> NC
A12: Effondrement et chutes d'objets | F12: =IF(OR(D12="",E12=""),"NC",D12*E12) -> NC | H12: 1 | I12: NC | J12: NC
A13: Manutention manuelle | F13: =IF(OR(D13="",E13=""),"NC",D13*E13) -> NC | H13: 1 | I13: NC | J13: NC
A14: Ergonomie | F14: NC | H14: 1 | I14: NC | J14: NC
A15: Risque Routier - Conduite d'engins | F15: NC | H15: 1 | I15: NC | J15: NC
A16: Circulation piétonne | F16: NC | H16: 1 | I16: NC | J16: NC
A17: Risques liés aux machines et outils | F17: NC | H17: 1 | I17: NC | J17: NC
A18: Bruit | F18: NC | H18: 1 | I18: NC | J18: NC
A19: Vibrations | F19: NC | H19: 1 | I19: NC | J19: NC
A20: Risques chimiques | F20: NC | H20: 1 | I20: NC | J20: NC
A21: Amiante | F21: NC | H21: 1 | I21: NC | J21: NC
A22: Aération et assainissement de l'air | F22: NC | H22: 1 | I22: NC | J22: NC
A23: Risque Electrique | F23: NC | H23: 1 | I23: NC | J23: NC
A24: Incendie - Explosion | F24: NC | H24: 1 | I24: NC | J24: NC
A25: Risques liés à l'éclairage | F25: NC | H25: 1 | I25: NC | J25: NC
A26: Utilisation d'écran | F26: NC | H26: 1 | I26: NC | J26: NC
A27: Risques liés aux ambiances climatiques et thermiques | F27: NC | H27: 1 | I27: NC | J27: NC
A28: Risque biologique | F28: NC | H28: 1 | I28: NC | J28: NC
A29: Manque d'hygiène | F29: NC | H29: 1 | I29: NC | J29: NC
A30: Rayonnement | F30: NC | H30: 1 | I30: NC | J30: NC
A31: Entreprises Extérieures | F31: NC | H31: 1 | I31: NC | J31: NC
A32: Agressions | F32: NC | H32: 1 | I32: NC | J32: NC
A33: Risques psychosociaux | B33: oui | C33: Sur cette unité, les risques psychosociaux sont présents, les principales composantes à maitriser sont : 1/ intensité du travail : - ; 2 / Emotionnel : - 3 / Autonomie : - 4 / Rapports sociaux : - 5 / Conflits de Valeur : - 6 / Insécurité de la situation de travail: - | F33: NC | H33: 1 | I33: NC | J33: NC

Sheet Secrétariat
A1: 3. EVALUATION DES RISQUES PAR UNITE DE TRAVAIL
A2: Date de rédaction : | C2: =+Collectivité!F32 -> 00:00:00 | G2: Effectif total: | J2: =+Direction!J2 -> 12.19
A3: Date de mise à jour : | C3: =+C2 -> 00:00:00 | G3: Effectif concerné: | J3: =+Collectivité!E33 -> 6.4
A4: Rédacteur : | G4: Effectif (pourcentage): | J4: =(J3/J2)*100 -> 52.50205086
A5: Participants : | C5: Chef de centre/chef de service ou adjoint : Assitant de prévention : Agent : CHSCT/CCDSPV : PSSM : | J5: =C6 -> Secrétariat
A6: Unité de travail : | C6: =+Collectivité!A33 -> Secrétariat
A9: Liste des risques | B9: Danger Applicable | C9: Commentaires | D9: Gravité | E9: Maîtrise | F9: G*M | G9: Durée exposition | H9: Effectif | I9: D*E | J9: Note Totale
A10: Chute de plain pied | F10: =IF(OR(D10="",E10=""),"NC",D10*E10) -> NC | H10: =IF(J$4=0,"0",IF(J$4<=15,"1",IF(AND(15<J$4,J$4<=45),"4",IF(AND(45<J$4,J$4<=75),"7",IF(J$4>75,"10",""))))) -> 7 | I10: =IF(OR(G10="",H10=""),"NC",G10*H10) -> NC | J10: =IF(OR(D10="",E10="",G10="",H10="",B10="non"),"NC",D10*E10*G10*H10) -> NC
A11: Chute de hauteur | F11: 4 | H11: =IF(J$4=0,"0",IF(J$4<=15,"1",IF(AND(15<J$4,J$4<=45),"4",IF(AND(45<J$4,J$4<=75),"7",IF(J$4>75,"10",""))))) -> 7 | I11: =IF(OR(G11="",H11=""),"NC",G11*H11) -> NC | J11: =IF(OR(D11="",E11="",G11="",H11="",B11="non"),"NC",D11*E11*G11*H11) -> NC
A12: Effondrement et chutes d'objets | F12: NC | H12: 7 | I12: NC | J12: NC
A13: Manutention manuelle | F13: NC | H13: 7 | I13: NC | J13: NC
A14: Ergonomie | F14: NC | H14: 7 | I14: NC | J14: NC
A15: Risque Routier - Conduite d'engins | F15: NC | H15: 7 | I15: NC | J15: NC
A16: Circulation piétonne | F16: NC | H16: 7 | I16: NC | J16: NC
A17: Risques liés aux machines et outils | F17: NC | H17: 7 | I17: NC | J17: NC
A18: Bruit | F18: NC | H18: 7 | I18: NC | J18: NC
A19: Vibrations | F19: NC | H19: 7 | I19: NC | J19: NC
A20: Risques chimiques | F20: NC | H20: 7 | I20: NC | J20: NC
A21: Amiante | F21: NC | H21: 7 | I21: NC | J21: NC
A22: Aération et assainissement de l'air | F22: NC | H22: 7 | I22: NC | J22: NC
A23: Risque Electrique | F23: NC | H23: 7 | I23: NC | J23: NC
A24: Incendie - Explosion | F24: NC | H24: 7 | I24: NC | J24: NC
A25: Risques liés à l'éclairage | F25: NC | H25: 7 | I25: NC | J25: NC
A26: Utilisation d'écran | F26: NC | H26: 7 | I26: NC | J26: NC
A27: Risques liés aux ambiances climatiques et thermiques | F27: NC | H27: 7 | I27: NC | J27: NC
A28: Risque biologique | F28: NC | H28: 7 | I28: NC | J28: NC
A29: Manque d'hygiène | F29: NC | H29: 7 | I29: NC | J29: NC
A30: Rayonnement | F30: NC | H30: 7 | I30: NC | J30: NC
A31: Entreprises Extérieures | F31: NC | H31: 7 | I31: NC | J31: NC
A32: Agressions | F32: NC | H32: 7 | I32: NC | J32: NC
A33: Risques psychosociaux | B33: oui | C33: Sur cette unité, les risques psychosociaux sont présents, les principales composantes à maitriser sont : 1/ intensité du travail : - ; 2 / Emotionnel : - 3 / Autonomie : - 4 / Rapports sociaux : - 5 / Conflits de Valeur : - 6 / Insécurité de la situation de travail: - | F33: NC | H33: 7 | I33: NC | J33: NC

Sheet Chaine de commandement
A1: 3. EVALUATION DES RISQUES PAR UNITE DE TRAVAIL
A2: Date de rédaction : | C2: =+Collectivité!F34 -> 00:00:00 | G2: Effectif total: | J2: =+Direction!J2 -> 12.19
A3: Date de mise à jour : | C3: =+C2 -> 00:00:00 | G3: Effectif concerné: | J3: =+Collectivité!E34 -> 1.6
A4: Rédacteur : | G4: Effectif (pourcentage): | J4: =(J3/J2)*100 -> 13.12551272
A5: Participants : | C5: Chef de centre/chef de service ou adjoint : Assitant de prévention : Agent : CHSCT/CCDSPV : PSSM : | J5: =C6 -> Chaine de commandement
A6: Unité de travail : | C6: =+Collectivité!A34 -> Chaine de commandement
A9: Liste des risques | B9: Danger Applicable | C9: Commentaires | D9: Gravité | E9: Maîtrise | F9: G*M | G9: Durée exposition | H9: Effectif | I9: D*E | J9: Note Totale
A10: Chute de plain pied | F10: =IF(OR(D10="",E10=""),"NC",D10*E10) -> NC | H10: =IF(J$4=0,"0",IF(J$4<=15,"1",IF(AND(15<J$4,J$4<=45),"4",IF(AND(45<J$4,J$4<=75),"7",IF(J$4>75,"10",""))))) -> 1 | I10: =IF(OR(G10="",H10=""),"NC",G10*H10) -> NC | J10: =IF(OR(D10="",E10="",G10="",H10="",B10="non"),"NC",D10*E10*G10*H10) -> NC
A11: Chute de hauteur | F11: 4 | H11: =IF(J$4=0,"0",IF(J$4<=15,"1",IF(AND(15<J$4,J$4<=45),"4",IF(AND(45<J$4,J$4<=75),"7",IF(J$4>75,"10",""))))) -> 1 | I11: NC | J11: NC
A12: Effondrement et chutes d'objets | F12: NC | H12: 1 | I12: NC | J12: NC
A13: Manutention manuelle | F13: NC | H13: 1 | I13: NC | J13: NC
A14: Ergonomie | F14: NC | H14: 1 | I14: NC | J14: NC
A15: Risque Routier - Conduite d'engins | F15: NC | H15: 1 | I15: NC | J15: NC
A16: Circulation piétonne | F16: NC | H16: 1 | I16: NC | J16: NC
A17: Risques liés aux machines et outils | F17: NC | H17: 1 | I17: NC | J17: NC
A18: Bruit | F18: NC | H18: 1 | I18: =IF(OR(G18="",H18=""),"NC",G18*H18) -> NC | J18: =IF(OR(D18="",E18="",G18="",H18="",B18="non"),"NC",D18*E18*G18*H18) -> NC
A19: Vibrations | F19: NC | H19: 1 | I19: NC | J19: NC
A20: Risques chimiques | F20: NC | H20: 1 | I20: NC | J20: NC
A21: Amiante | F21: NC | H21: 1 | I21: NC | J21: NC
A22: Aération et assainissement de l'air | F22: NC | H22: 1 | I22: =IF(OR(G22="",H22=""),"NC",G22*H22) -> NC | J22: =IF(OR(D22="",E22="",G22="",H22="",B22="non"),"NC",D22*E22*G22*H22) -> NC
A23: Risque Electrique | F23: NC | H23: 1 | I23: NC | J23: NC
A24: Incendie - Explosion | F24: NC | H24: 1 | I24: NC | J24: NC
A25: Risques liés à l'éclairage | F25: NC | H25: 1 | I25: NC | J25: NC
A26: Utilisation d'écran | F26: NC | H26: 1 | I26: NC | J26: NC
A27: Risques liés aux ambiances climatiques et thermiques | F27: NC | H27: 1 | I27: NC | J27: NC
A28: Risque biologique | F28: NC | H28: 1 | I28: NC | J28: NC
A29: Manque d'hygiène | F29: NC | H29: 1 | I29: NC | J29: NC
A30: Rayonnement | F30: NC | H30: 1 | I30: NC | J30: NC
A31: Entreprises Extérieures | F31: =IF(OR(D31="",E31=""),"NC",D31*E31) -> NC | H31: =IF(J$4=0,"0",IF(J$4<=15,"1",IF(AND(15<J$4,J$4<=45),"4",IF(AND(45<J$4,J$4<=75),"7",IF(J$4>75,"10",""))))) -> 1 | I31: NC | J31: NC
A32: Agressions | F32: =IF(OR(D32="",E32=""),"NC",D32*E32) -> NC | H32: =IF(J$4=0,"0",IF(J$4<=15,"1",IF(AND(15<J$4,J$4<=45),"4",IF(AND(45<J$4,J$4<=75),"7",IF(J$4>75,"10",""))))) -> 1 | I32: NC | J32: NC
A33: Risques psychosociaux | B33: oui | C33: Sur cette unité, les risques psychosociaux sont présents, les principales composantes à maitriser sont : 1/ intensité du travail : - ; 2 / Emotionnel : - 3 / Autonomie : - 4 / Rapports sociaux : - 5 / Conflits de Valeur : - 6 / Insécurité de la situation de travail: - | F33: =IF(OR(D33="",E33=""),"NC",D33*E33) -> NC | H33: =IF(J$4=0,"0",IF(J$4<=15,"1",IF(AND(15<J$4,J$4<=45),"4",IF(AND(45<J$4,J$4<=75),"7",IF(J$4>75,"10",""))))) -> 1 | I33: NC | J33: NC

Sheet Services administratifs
A1: 3. EVALUATION DES RISQUES PAR UNITE DE TRAVAIL
A2: Date de rédaction : | C2: =+Collectivité!F35 -> 00:00:00 | G2: Effectif total: | J2: =+Direction!J2 -> 12.19
A3: Date de mise à jour : | C3: =+C2 -> 00:00:00 | G3: Effectif concerné: | J3: =+Collectivité!E35 -> 0.33
A4: Rédacteur : | G4: Effectif (pourcentage): | J4: =(J3/J2)*100 -> 2.707136998
A5: Participants : | C5: Chef de centre/chef de service ou adjoint : Assitant de prévention : Agent : CHSCT/CCDSPV : PSSM : | J5: =C6 -> Services administratifs
A6: Unité de travail : | C6: =+Collectivité!A35 -> Services administratifs
A9: Liste des risques | B9: Danger Applicable | C9: Commentaires | D9: Gravité | E9: Maîtrise | F9: G*M | G9: Durée exposition | H9: Effectif | I9: D*E | J9: Note Totale
A10: Chute de plain pied | F10: =IF(OR(D10="",E10=""),"NC",D10*E10) -> NC | H10: =IF(J$4=0,"0",IF(J$4<=15,"1",IF(AND(15<J$4,J$4<=45),"4",IF(AND(45<J$4,J$4<=75),"7",IF(J$4>75,"10",""))))) -> 1 | I10: =IF(OR(G10="",H10=""),"NC",G10*H10) -> NC | J10: =IF(OR(D10="",E10="",G10="",H10="",B10="non"),"NC",D10*E10*G10*H10) -> NC
A11: Chute de hauteur | F11: 4 | H11: =IF(J$4=0,"0",IF(J$4<=15,"1",IF(AND(15<J$4,J$4<=45),"4",IF(AND(45<J$4,J$4<=75),"7",IF(J$4>75,"10",""))))) -> 1 | I11: =IF(OR(G11="",H11=""),"NC",G11*H11) -> NC | J11: =IF(OR(D11="",E11="",G11="",H11="",B11="non"),"NC",D11*E11*G11*H11) -> NC
A12: Effondrement et chutes d'objets | F12: =IF(OR(D12="",E12=""),"NC",D12*E12) -> NC | H12: 1 | I12: NC | J12: NC
A13: Manutention manuelle | F13: NC | H13: 1 | I13: NC | J13: NC
A14: Ergonomie | F14: NC | H14: 1 | I14: NC | J14: NC
A15: Risque Routier - Conduite d'engins | F15: NC | H15: 1 | I15: NC | J15: NC
A16: Circulation piétonne | F16: NC | H16: 1 | I16: NC | J16: NC
A17: Risques liés aux machines et outils | F17: NC | H17: 1 | I17: NC | J17: NC
A18: Bruit | F18: NC | H18: 1 | I18: NC | J18: NC
A19: Vibrations | F19: NC | H19: 1 | I19: NC | J19: NC
A20: Risques chimiques | F20: NC | H20: 1 | I20: NC | J20: NC
A21: Amiante | F21: NC | H21: 1 | I21: NC | J21: NC
A22: Aération et assainissement de l'air | F22: NC | H22: 1 | I22: NC | J22: NC
A23: Risque Electrique | F23: NC | H23: 1 | I23: NC | J23: NC
A24: Incendie - Explosion | F24: NC | H24: 1 | I24: NC | J24: NC
A25: Risques liés à l'éclairage | F25: NC | H25: 1 | I25: NC | J25: NC
A26: Utilisation d'écran | F26: NC | H26: 1 | I26: NC | J26: NC
A27: Risques liés aux ambiances climatiques et thermiques | F27: NC | H27: 1 | I27: NC | J27: NC
A28: Risque biologique | F28: NC | H28: 1 | I28: NC | J28: NC
A29: Manque d'hygiène | F29: NC | H29: 1 | I29: NC | J29: NC
A30: Rayonnement | F30: NC | H30: 1 | I30: NC | J30: NC
A31: Entreprises Extérieures | F31: NC | H31: 1 | I31: NC | J31: NC
A32: Agressions | F32: NC | H32: 1 | I32: NC | J32: NC
A33: Risques psychosociaux | B33: oui | C33: Sur cette unité, les risques psychosociaux sont présents, les principales composantes à maitriser sont : 1/ intensité du travail : - ; 2 / Emotionnel : - 3 / Autonomie : - 4 / Rapports sociaux : - 5 / Conflits de Valeur : - 6 / Insécurité de la situation de travail: - | F33: NC | H33: 1 | I33: NC | J33: NC

Sheet STASS
A1: 3. EVALUATION DES RISQUES PAR UNITE DE TRAVAIL
A2: Date de rédaction : | C2: =+Collectivité!F36 -> 00:00:00 | G2: Effectif total: | J2: =+Direction!J2 -> 12.19
A3: Date de mise à jour : | C3: =+C2 -> 00:00:00 | G3: Effectif concerné: | J3: =+Collectivité!E36 -> 0.7
A4: Rédacteur : | G4: Effectif (pourcentage): | J4: =(J3/J2)*100 -> 5.742411813
A5: Participants : | C5: Chef de centre/chef de service ou adjoint : Assitant de prévention : Agent : CHSCT/CCDSPV : PSSM : | J5: =C6 -> STASS
A6: Unité de travail : | C6: =+Collectivité!A36 -> STASS
A9: Liste des risques | B9: Danger Applicable | C9: Commentaires | D9: Gravité | E9: Maîtrise | F9: G*M | G9: Durée exposition | H9: Effectif | I9: D*E | J9: Note Totale
A10: Chute de plain pied | F10: =IF(OR(D10="",E10=""),"NC",D10*E10) -> NC | H10: =IF(J$4=0,"0",IF(J$4<=15,"1",IF(AND(15<J$4,J$4<=45),"4",IF(AND(45<J$4,J$4<=75),"7",IF(J$4>75,"10",""))))) -> 1 | I10: =IF(OR(G10="",H10=""),"NC",G10*H10) -> NC | J10: =IF(OR(D10="",E10="",G10="",H10="",B10="non"),"NC",D10*E10*G10*H10) -> NC
A11: Chute de hauteur | F11: 4 | H11: =IF(J$4=0,"0",IF(J$4<=15,"1",IF(AND(15<J$4,J$4<=45),"4",IF(AND(45<J$4,J$4<=75),"7",IF(J$4>75,"10",""))))) -> 1 | I11: =IF(OR(G11="",H11=""),"NC",G11*H11) -> NC | J11: =IF(OR(D11="",E11="",G11="",H11="",B11="non"),"NC",D11*E11*G11*H11) -> NC
A12: Effondrement et chutes d'objets | F12: NC | H12: 1 | I12: NC | J12: NC
A13: Manutention manuelle | F13: NC | H13: 1 | I13: NC | J13: NC
A14: Ergonomie | F14: NC | H14: 1 | I14: NC | J14: NC
A15: Risque Routier - Conduite d'engins | F15: NC | H15: 1 | I15: NC | J15: NC
A16: Circulation piétonne | F16: NC | H16: 1 | I16: NC | J16: NC
A17: Risques liés aux machines et outils | F17: NC | H17: 1 | I17: NC | J17: NC
A18: Bruit | F18: NC | H18: 1 | I18: NC | J18: NC
A19: Vibrations | F19: NC | H19: 1 | I19: NC | J19: NC
A20: Risques chimiques | H20: 1 | I20: NC | J20: NC
A21: Amiante | F21: NC | H21: 1 | I21: NC | J21: NC
A22: Aération et assainissement de l'air | F22: NC | H22: 1 | I22: NC | J22: NC
A23: Risque Electrique | F23: NC | H23: 1 | I23: NC | J23: NC
A24: Incendie - Explosion | F24: NC | H24: 1 | I24: NC | J24: NC
A25: Risques liés à l'éclairage | F25: NC | H25: 1 | I25: NC | J25: NC
A26: Utilisation d'écran | F26: NC | H26: 1 | I26: NC | J26: NC
A27: Risques liés aux ambiances climatiques et thermiques | F27: NC | H27: 1 | I27: NC | J27: NC
A28: Risque biologique | F28: NC | H28: 1 | I28: NC | J28: NC
A29: Manque d'hygiène | F29: NC | H29: 1 | I29: NC | J29: NC
A30: Rayonnement | F30: NC | H30: 1 | I30: NC | J30: NC
A31: Entreprises Extérieures | F31: NC | H31: 1 | I31: NC | J31: NC
A32: Agressions | F32: NC | H32: 1 | I32: NC | J32: NC
A33: Risques psychosociaux | B33: oui | C33: Sur cette unité, les risques psychosociaux sont présents, les principales composantes à maitriser sont : 1/ intensité du travail : - ; 2 / Emotionnel : - 3 / Autonomie : - 4 / Rapports sociaux : - 5 / Conflits de Valeur : - 6 / Insécurité de la situation de travail: - | H33: 1 | I33: NC | J33: NC

Sheet Vie collective
A1: 3. EVALUATION DES RISQUES PAR UNITE DE TRAVAIL
A2: Date de rédaction : | C2: =+Collectivité!F36 -> 00:00:00 | G2: Effectif total: | J2: =+Direction!J2 -> 12.19
A3: Date de mise à jour : | C3: =+C2 -> 00:00:00 | G3: Effectif concerné: | J3: =+Collectivité!E37 -> 0.4
A4: Rédacteur : | G4: Effectif (pourcentage): | J4: =(J3/J2)*100 -> 3.281378179
A5: Participants : | C5: Chef de centre/chef de service ou adjoint : Assitant de prévention : Agent : CHSCT/CCDSPV : PSSM : | J5: =C6 -> Vie collective
A6: Unité de travail : | C6: =+Collectivité!A37 -> Vie collective
A9: Liste des risques | B9: Danger Applicable | C9: Commentaires | D9: Gravité | E9: Maîtrise | F9: G*M | G9: Durée exposition | H9: Effectif | I9: D*E | J9: Note Totale
A10: Chute de plain pied | F10: =IF(OR(D10="",E10=""),"NC",D10*E10) -> NC | H10: =IF(J$4=0,"0",IF(J$4<=15,"1",IF(AND(15<J$4,J$4<=45),"4",IF(AND(45<J$4,J$4<=75),"7",IF(J$4>75,"10",""))))) -> 1 | I10: =IF(OR(G10="",H10=""),"NC",G10*H10) -> NC | J10: =IF(OR(D10="",E10="",G10="",H10="",B10="non"),"NC",D10*E10*G10*H10) -> NC
A11: Chute de hauteur | F11: NC | H11: =IF(J$4=0,"0",IF(J$4<=15,"1",IF(AND(15<J$4,J$4<=45),"4",IF(AND(45<J$4,J$4<=75),"7",IF(J$4>75,"10",""))))) -> 1 | I11: NC | J11: =IF(OR(D11="",E11="",G11="",H11="",B11="non"),"NC",D11*E11*G11*H11) -> NC
A12: Effondrement et chutes d'objets | F12: NC | H12: 1 | I12: NC | J12: NC
A13: Manutention manuelle | F13: NC | H13: 1 | I13: NC | J13: NC
A14: Ergonomie | F14: NC | H14: 1 | I14: NC | J14: NC
A15: Risque Routier - Conduite d'engins | F15: NC | H15: 1 | I15: NC | J15: NC
A16: Circulation piétonne | F16: NC | H16: 1 | I16: NC | J16: NC
A17: Risques liés aux machines et outils | F17: NC | H17: 1 | I17: NC | J17: NC
A18: Bruit | F18: NC | H18: 1 | I18: NC | J18: NC
A19: Vibrations | F19: NC | H19: 1 | I19: NC | J19: NC
A20: Risques chimiques | F20: NC | H20: 1 | I20: NC | J20: NC
A21: Amiante | F21: NC | H21: 1 | I21: NC | J21: NC
A22: Aération et assainissement de l'air | F22: NC | H22: 1 | I22: NC | J22: NC
A23: Risque Electrique | F23: NC | H23: 1 | I23: NC | J23: NC
A24: Incendie - Explosion | F24: NC | H24: 1 | I24: NC | J24: NC
A25: Risques liés à l'éclairage | F25: NC | H25: 1 | I25: NC | J25: NC
A26: Utilisation d'écran | F26: NC | H26: 1 | I26: NC | J26: NC
A27: Risques liés aux ambiances climatiques et thermiques | F27: NC | H27: 1 | I27: NC | J27: NC
A28: Risque biologique | F28: NC | H28: 1 | I28: NC | J28: NC
A29: Manque d'hygiène | F29: NC | H29: 1 | I29: NC | J29: NC
A30: Rayonnement | F30: NC | H30: 1 | I30: NC | J30: NC
A31: Entreprises Extérieures | F31: NC | H31: 1 | I31: NC | J31: NC
A32: Agressions | F32: NC | H32: 1 | I32: NC | J32: NC
A33: Risques psychosociaux | B33: oui | C33: Sur cette unité, les risques psychosociaux sont présents, les principales composantes à maitriser sont : 1/ intensité du travail : - ; 2 / Emotionnel : - 3 / Autonomie : - 4 / Rapports sociaux : - 5 / Conflits de Valeur : - 6 / Insécurité de la situation de travail: - | F33: NC | H33: 1 | I33: NC | J33: NC

Sheet Manœuvre et formation
A1: 3. EVALUATION DES RISQUES PAR UNITE DE TRAVAIL
A2: Date de rédaction : | C2: mardi 23 octobre 2018 | G2: Effectif total: | J2: =+Direction!J2 -> 12.19
A3: Date de mise à jour : | C3: =+C2 -> mardi 23 octobre 2018 | G3: Effectif concerné: | J3: =+Collectivité!E39 -> 0.4
A4: Rédacteur : Emilie BARRAT | G4: Effectif (pourcentage): | J4: =(J3/J2)*100 -> 3.281378179
A5: Participants : | C5: Chef de centre/chef de service ou adjoint : Assitant de prévention : Agent : CHSCT/CCDSPV : PSSM : | J5: =C6 -> Manœuvre et formation
A6: Unité de travail : | C6: =+Collectivité!A38 -> Manœuvre et formation
A9: Liste des risques | B9: Danger Applicable | C9: Commentaires | D9: Gravité | E9: Maîtrise | F9: G*M | G9: Durée exposition | H9: Effectif | I9: =IF(OR(G9="",H9=""),"NC",G9*H9) ->  | J9: Note Totale
A10: Chute de plain pied | I10: NC | J10: =IF(OR(D10="",E10="",G10="",H10="",B10="non"),"NC",D10*E10*G10*H10) -> NC
A11: Chute de hauteur | I11: NC | J11: =IF(OR(D11="",E11="",G11="",H11="",B11="non"),"NC",D11*E11*G11*H11) -> NC
A12: Effondrement et chutes d'objets | I12: NC | J12: NC
A13: Manutention manuelle | I13: NC | J13: NC
A14: Ergonomie | I14: NC | J14: NC
A15: Risque Routier - Conduite d'engins | I15: NC | J15: NC
A16: Circulation piétonne | I16: NC | J16: NC
A17: Risques liés aux machines et outils | I17: NC | J17: NC
A18: Bruit | I18: NC | J18: NC
A19: Vibrations | I19: NC | J19: NC
A20: Risques chimiques | I20: NC | J20: NC
A21: Amiante | I21: NC | J21: NC
A22: Aération et assainissement de l'air | I22: NC | J22: NC
A23: Risque Electrique | I23: NC | J23: NC
A24: Incendie - Explosion | I24: NC | J24: NC
A25: Risques liés à l'éclairage | I25: NC | J25: NC
A26: Utilisation d'écran | I26: NC | J26: NC
A27: Risques liés aux ambiances climatiques et thermiques | I27: NC | J27: NC
A28: Risque biologique | I28: NC | J28: NC
A29: Manque d'hygiène | I29: NC | J29: NC
A30: Rayonnement | I30: NC | J30: NC
A31: Entreprises Extérieures | I31: NC | J31: NC
A32: Agressions | I32: NC | J32: NC
A33: Risques psychosociaux | B33: oui | C33: Sur cette unité, les risques psychosociaux sont présents, les principales composantes à maitriser sont : 1/ intensité du travail : - ; 2 / Emotionnel : - 3 / Autonomie : - 4 / Rapports sociaux : - 5 / Conflits de Valeur : - 6 / Insécurité de la situation de travail: - | F33: =IF(OR(D33="",E33=""),"NC",D33*E33) -> NC | H33: =IF(J$4=0,"0",IF(J$4<=15,"1",IF(AND(15<J$4,J$4<=45),"4",IF(AND(45<J$4,J$4<=75),"7",IF(J$4>75,"10",""))))) -> 1 | I33: NC | J33: NC
J34: NC

Sheet APS
A1: 3. EVALUATION DES RISQUES PAR UNITE DE TRAVAIL
A2: Date de rédaction : | C2: =+Collectivité!F36 -> 00:00:00 | G2: Effectif total: | J2: =+Direction!J2 -> 12.19
A3: Date de mise à jour : | C3: =+C2 -> 00:00:00 | G3: Effectif concerné: | J3: =+Collectivité!E39 -> 0.4
A4: Rédacteur : | G4: Effectif (pourcentage): | J4: =(J3/J2)*100 -> 3.281378179
A5: Participants : | C5: Chef de centre/chef de service ou adjoint : Assitant de prévention : Agent : CHSCT/CCDSPV : PSSM : | J5: =C6 -> APS
A6: Unité de travail : | C6: =+Collectivité!A39 -> APS
A9: Liste des risques | B9: Danger Applicable | C9: Commentaires | D9: Gravité | E9: Maîtrise | F9: G*M | G9: Durée exposition | H9: Effectif | I9: D*E | J9: Note Totale
A10: Chute de plain pied | F10: =IF(OR(D10="",E10=""),"NC",D10*E10) -> NC | H10: =IF(J$4=0,"0",IF(J$4<=15,"1",IF(AND(15<J$4,J$4<=45),"4",IF(AND(45<J$4,J$4<=75),"7",IF(J$4>75,"10",""))))) -> 1 | I10: =IF(OR(G10="",H10=""),"NC",G10*H10) -> NC | J10: =IF(OR(D10="",E10="",G10="",H10="",B10="non"),"NC",D10*E10*G10*H10) -> NC
A11: Chute de hauteur | F11: NC | H11: =IF(J$4=0,"0",IF(J$4<=15,"1",IF(AND(15<J$4,J$4<=45),"4",IF(AND(45<J$4,J$4<=75),"7",IF(J$4>75,"10",""))))) -> 1 | I11: NC | J11: =IF(OR(D11="",E11="",G11="",H11="",B11="non"),"NC",D11*E11*G11*H11) -> NC
A12: Effondrement et chutes d'objets | F12: NC | H12: 1 | I12: NC | J12: NC
A13: Manutention manuelle | F13: NC | H13: 1 | I13: NC | J13: NC
A14: Ergonomie | F14: NC | H14: 1 | I14: NC | J14: NC
A15: Risque Routier - Conduite d'engins | F15: NC | H15: 1 | I15: NC | J15: NC
A16: Circulation piétonne | F16: NC | H16: 1 | I16: NC | J16: NC
A17: Risques liés aux machines et outils | F17: NC | H17: 1 | I17: NC | J17: NC
A18: Bruit | F18: NC | H18: 1 | I18: NC | J18: NC
A19: Vibrations | F19: NC | H19: 1 | I19: NC | J19: NC
A20: Risques chimiques | F20: NC | H20: 1 | I20: NC | J20: NC
A21: Amiante | F21: NC | H21: 1 | I21: NC | J21: NC
A22: Aération et assainissement de l'air | F22: NC | H22: 1 | I22: NC | J22: NC
A23: Risque Electrique | F23: NC | H23: 1 | I23: NC | J23: NC
A24: Incendie - Explosion | F24: NC | H24: 1 | I24: NC | J24: NC
A25: Risques liés à l'éclairage | F25: NC | H25: 1 | I25: NC | J25: NC
A26: Utilisation d'écran | F26: NC | H26: 1 | I26: NC | J26: NC
A27: Risques liés aux ambiances climatiques et thermiques | F27: NC | H27: 1 | I27: NC | J27: NC
A28: Risque biologique | F28: NC | H28: 1 | I28: NC | J28: NC
A29: Manque d'hygiène | F29: NC | H29: 1 | I29: NC | J29: NC
A30: Rayonnement | F30: NC | H30: 1 | I30: NC | J30: NC
A31: Entreprises Extérieures | F31: NC | H31: 1 | I31: NC | J31: NC
A32: Agressions | F32: NC | H32: 1 | I32: NC | J32: NC
A33: Risques psychosociaux | B33: oui | C33: Sur cette unité, les risques psychosociaux sont présents, les principales composantes à maitriser sont : 1/ intensité du travail : - ; 2 / Emotionnel : - 3 / Autonomie : - 4 / Rapports sociaux : - 5 / Conflits de Valeur : - 6 / Insécurité de la situation de travail: - | F33: NC | H33: 1 | I33: NC | J33: NC

Sheet Espace vert
A1: 3. EVALUATION DES RISQUES PAR UNITE DE TRAVAIL
A2: Date de rédaction : | C2: =+Collectivité!F36 -> 00:00:00 | G2: Effectif total: | J2: =+Direction!J2 -> 12.19
A3: Date de mise à jour : | C3: =+C2 -> 00:00:00 | G3: Effectif concerné: | J3: =+Collectivité!E40 -> 0.4
A4: Rédacteur : | G4: Effectif (pourcentage): | J4: =(J3/J2)*100 -> 3.281378179
A5: Participants : | C5: Chef de centre/chef de service ou adjoint : Assitant de prévention : Agent : CHSCT/CCDSPV : PSSM : | J5: =C6 -> Espace vert
A6: Unité de travail : | C6: =+Collectivité!A40 -> Espace vert
A9: Liste des risques | B9: Danger Applicable | C9: Commentaires | D9: Gravité | E9: Maîtrise | F9: G*M | G9: Durée exposition | H9: Effectif | I9: D*E | J9: Note Totale
A10: Chute de plain pied | F10: =IF(OR(D10="",E10=""),"NC",D10*E10) -> NC | H10: =IF(J$4=0,"0",IF(J$4<=15,"1",IF(AND(15<J$4,J$4<=45),"4",IF(AND(45<J$4,J$4<=75),"7",IF(J$4>75,"10",""))))) -> 1 | I10: =IF(OR(G10="",H10=""),"NC",G10*H10) -> NC | J10: =IF(OR(D10="",E10="",G10="",H10="",B10="non"),"NC",D10*E10*G10*H10) -> NC
A11: Chute de hauteur | F11: NC | H11: =IF(J$4=0,"0",IF(J$4<=15,"1",IF(AND(15<J$4,J$4<=45),"4",IF(AND(45<J$4,J$4<=75),"7",IF(J$4>75,"10",""))))) -> 1 | I11: =IF(OR(G11="",H11=""),"NC",G11*H11) -> NC | J11: =IF(OR(D11="",E11="",G11="",H11="",B11="non"),"NC",D11*E11*G11*H11) -> NC
A12: Effondrement et chutes d'objets | F12: NC | H12: 1 | I12: NC | J12: NC
A13: Manutention manuelle | F13: NC | H13: 1 | I13: NC | J13: NC
A14: Ergonomie | F14: NC | H14: 1 | I14: NC | J14: NC
A15: Risque Routier - Conduite d'engins | F15: NC | H15: 1 | I15: NC | J15: NC
A16: Circulation piétonne | F16: NC | H16: 1 | I16: NC | J16: NC
A17: Risques liés aux machines et outils | F17: NC | H17: 1 | I17: NC | J17: NC
A18: Bruit | F18: NC | H18: 1 | I18: NC | J18: NC
A19: Vibrations | F19: NC | H19: 1 | I19: NC | J19: NC
A20: Risques chimiques | F20: NC | H20: 1 | I20: NC | J20: NC
A21: Amiante | F21: NC | H21: 1 | I21: NC | J21: NC
A22: Aération et assainissement de l'air | F22: NC | H22: 1 | I22: NC | J22: NC
A23: Risque Electrique | F23: NC | H23: 1 | I23: NC | J23: NC
A24: Incendie - Explosion | F24: NC | H24: 1 | I24: NC | J24: NC
A25: Risques liés à l'éclairage | F25: NC | H25: 1 | I25: NC | J25: NC
A26: Utilisation d'écran | F26: NC | H26: 1 | I26: NC | J26: NC
A27: Risques liés aux ambiances climatiques et thermiques | F27: NC | H27: 1 | I27: NC | J27: NC
A28: Risque biologique | F28: NC | H28: 1 | I28: NC | J28: NC
A29: Manque d'hygiène | F29: NC | H29: 1 | I29: NC | J29: NC
A30: Rayonnement | F30: NC | H30: 1 | I30: NC | J30: NC
A31: Entreprises Extérieures | F31: NC | H31: 1 | I31: NC | J31: NC
A32: Agressions | F32: NC | H32: 1 | I32: NC | J32: NC
A33: Risques psychosociaux | B33: oui | C33: Sur cette unité, les risques psychosociaux sont présents, les principales composantes à maitriser sont : 1/ intensité du travail : - ; 2 / Emotionnel : - 3 / Autonomie : - 4 / Rapports sociaux : - 5 / Conflits de Valeur : - 6 / Insécurité de la situation de travail: - | F33: NC | H33: 1 | I33: NC | J33: NC

Sheet Habillement
A1: 3. EVALUATION DES RISQUES PAR UNITE DE TRAVAIL
A2: Date de rédaction : | C2: =+Collectivité!F36 -> 00:00:00 | G2: Effectif total: | J2: =+Direction!J2 -> 12.19
A3: Date de mise à jour : | C3: =+C2 -> 00:00:00 | G3: Effectif concerné: | J3: =Collectivité!D41 -> 3
A4: Rédacteur : | G4: Effectif (pourcentage): | J4: =(J3/J2)*100 -> 24.61033634
A5: Participants : | C5: Chef de centre/chef de service ou adjoint : Assitant de prévention : Agent : CHSCT/CCDSPV : PSSM : | J5: =C6 -> Habillement
A6: Unité de travail : | C6: =+Collectivité!A41 -> Habillement
A9: Liste des risques | B9: Danger Applicable | C9: Commentaires | D9: Gravité | E9: Maîtrise | F9: G*M | G9: Durée exposition | H9: Effectif | I9: D*E | J9: Note Totale
A10: Chute de plain pied | F10: =IF(OR(D10="",E10=""),"NC",D10*E10) -> NC | H10: =IF(J$4=0,"0",IF(J$4<=15,"1",IF(AND(15<J$4,J$4<=45),"4",IF(AND(45<J$4,J$4<=75),"7",IF(J$4>75,"10",""))))) -> 4 | I10: =IF(OR(G10="",H10=""),"NC",G10*H10) -> NC | J10: =IF(OR(D10="",E10="",G10="",H10="",B10="non"),"NC",D10*E10*G10*H10) -> NC
A11: Chute de hauteur | F11: NC | H11: =IF(J$4=0,"0",IF(J$4<=15,"1",IF(AND(15<J$4,J$4<=45),"4",IF(AND(45<J$4,J$4<=75),"7",IF(J$4>75,"10",""))))) -> 4 | I11: =IF(OR(G11="",H11=""),"NC",G11*H11) -> NC | J11: =IF(OR(D11="",E11="",G11="",H11="",B11="non"),"NC",D11*E11*G11*H11) -> NC
A12: Effondrement et chutes d'objets | F12: NC | H12: 4 | I12: NC | J12: NC
A13: Manutention manuelle | F13: NC | H13: 4 | I13: NC | J13: NC
A14: Ergonomie | F14: NC | H14: 4 | I14: NC | J14: NC
A15: Risque Routier - Conduite d'engins | F15: NC | H15: 4 | I15: NC | J15: NC
A16: Circulation piétonne | F16: NC | H16: 4 | I16: NC | J16: NC
A17: Risques liés aux machines et outils | F17: NC | H17: 4 | I17: NC | J17: NC
A18: Bruit | F18: NC | H18: 4 | I18: NC | J18: NC
A19: Vibrations | F19: NC | H19: 4 | I19: NC | J19: NC
A20: Risques chimiques | F20: NC | H20: 4 | I20: NC | J20: NC
A21: Amiante | F21: NC | H21: 4 | I21: NC | J21: NC
A22: Aération et assainissement de l'air | F22: NC | H22: 4 | I22: NC | J22: NC
A23: Risque Electrique | F23: NC | H23: 4 | I23: NC | J23: NC
A24: Incendie - Explosion | F24: NC | H24: 4 | I24: NC | J24: NC
A25: Risques liés à l'éclairage | F25: NC | H25: 4 | I25: NC | J25: NC
A26: Utilisation d'écran | F26: NC | H26: 4 | I26: NC | J26: NC
A27: Risques liés aux ambiances climatiques et thermiques | F27: NC | H27: 4 | I27: NC | J27: NC
A28: Risque biologique | F28: NC | H28: 4 | I28: NC | J28: NC
A29: Manque d'hygiène | F29: NC | H29: 4 | I29: NC | J29: NC
A30: Rayonnement | F30: NC | H30: 4 | I30: NC | J30: NC
A31: Entreprises Extérieures | F31: NC | H31: 4 | I31: NC | J31: NC
A32: Agressions | F32: NC | H32: 4 | I32: NC | J32: NC
A33: Risques psychosociaux | B33: oui | C33: Sur cette unité, les risques psychosociaux sont présents, les principales composantes à maitriser sont : 1/ intensité du travail : - ; 2 / Emotionnel : - 3 / Autonomie : - 4 / Rapports sociaux : - 5 / Conflits de Valeur : - 6 / Insécurité de la situation de travail: - | F33: NC | H33: 4 | I33: NC | J33: NC

Sheet Réserve groupement
A1: 3. EVALUATION DES RISQUES PAR UNITE DE TRAVAIL
A2: Date de rédaction : | C2: =+Collectivité!F32 -> 00:00:00 | G2: Effectif total: | J2: =+Collectivité!F29 -> 12.19
A3: Date de mise à jour : | C3: =+C2 -> 00:00:00 | G3: Effectif concerné: | J3: =+Collectivité!E42 -> 0
A4: Rédacteur : | G4: Effectif (pourcentage): | J4: =(J3/J2)*100 -> 0
A5: Participants : | C5: Chef de centre/chef de service ou adjoint : Assitant de prévention : Agent : CHSCT/CCDSPV : PSSM : | J5: =C6 -> Réserve groupement
A6: Unité de travail : | C6: =+Collectivité!A42 -> Réserve groupement
A9: Liste des risques | B9: Danger Applicable | C9: Commentaires | D9: Gravité | E9: Maîtrise | F9: G*M | G9: Durée exposition | H9: Effectif | I9: D*E | J9: Note Totale
A10: Chute de plain pied | F10: =IF(OR(D10="",E10=""),"NC",D10*E10) -> NC | H10: =IF(J$4=0,"0",IF(J$4<=15,"1",IF(AND(15<J$4,J$4<=45),"4",IF(AND(45<J$4,J$4<=75),"7",IF(J$4>75,"10",""))))) -> 0 | I10: =IF(OR(G10="",H10=""),"NC",G10*H10) -> NC | J10: =IF(OR(D10="",E10="",G10="",H10="",B10="non"),"NC",D10*E10*G10*H10) -> NC
A11: Chute de hauteur | F11: =IF(OR(D11="",E11=""),"NC",D11*E11) -> NC | H11: =IF(J$4=0,"0",IF(J$4<=15,"1",IF(AND(15<J$4,J$4<=45),"4",IF(AND(45<J$4,J$4<=75),"7",IF(J$4>75,"10",""))))) -> 0 | I11: =IF(OR(G11="",H11=""),"NC",G11*H11) -> NC | J11: =IF(OR(D11="",E11="",G11="",H11="",B11="non"),"NC",D11*E11*G11*H11) -> NC
A12: Effondrement et chutes d'objets | F12: =IF(OR(D12="",E12=""),"NC",D12*E12) -> NC | H12: 0 | I12: NC | J12: NC
A13: Manutention manuelle | F13: =IF(OR(D13="",E13=""),"NC",D13*E13) -> NC | H13: 0 | I13: NC | J13: NC
A14: Ergonomie | F14: NC | H14: 0 | I14: NC | J14: NC
A15: Risque Routier - Conduite d'engins | F15: NC | H15: 0 | I15: NC | J15: NC
A16: Circulation piétonne | F16: NC | H16: 0 | I16: NC | J16: NC
A17: Risques liés aux machines et outils | F17: NC | H17: 0 | I17: NC | J17: NC
A18: Bruit | F18: NC | H18: 0 | I18: NC | J18: NC
A19: Vibrations | F19: NC | H19: 0 | I19: NC | J19: NC
A20: Risques chimiques | F20: NC | H20: 0 | I20: NC | J20: NC
A21: Amiante | F21: NC | H21: 0 | I21: NC | J21: NC
A22: Aération et assainissement de l'air | F22: NC | H22: 0 | I22: NC | J22: NC
A23: Risque Electrique | F23: NC | H23: 0 | I23: NC | J23: NC
A24: Incendie - Explosion | F24: NC | H24: 0 | I24: NC | J24: NC
A25: Risques liés à l'éclairage | F25: NC | H25: 0 | I25: NC | J25: NC
A26: Utilisation d'écran | F26: NC | H26: 0 | I26: NC | J26: NC
A27: Risques liés aux ambiances climatiques et thermiques | F27: NC | H27: 0 | I27: NC | J27: NC
A28: Risque biologique | F28: NC | H28: 0 | I28: NC | J28: NC
A29: Manque d'hygiène | F29: NC | H29: 0 | I29: NC | J29: NC
A30: Rayonnement | F30: NC | H30: 0 | I30: NC | J30: NC
A31: Entreprises Extérieures | F31: NC | H31: 0 | I31: NC | J31: NC
A32: Agressions | F32: NC | H32: 0 | I32: NC | J32: NC
A33: Risques psychosociaux | B33: oui | C33: Sur cette unité, les risques psychosociaux sont présents, les principales composantes à maitriser sont : 1/ intensité du travail : - ; 2 / Emotionnel : - 3 / Autonomie : - 4 / Rapports sociaux : - 5 / Conflits de Valeur : - 6 / Insécurité de la situation de travail: - | F33: NC | H33: 0 | I33: NC | J33: NC

Sheet Pharmacie
A1: 3. EVALUATION DES RISQUES PAR UNITE DE TRAVAIL
A2: Date de rédaction : | C2: =+Collectivité!F32 -> 00:00:00 | G2: Effectif total: | J2: =+'Réserve groupement'!J2 -> 12.19
A3: Date de mise à jour : | C3: =+C2 -> 00:00:00 | G3: Effectif concerné: | J3: =+Collectivité!E43 -> 0
A4: Rédacteur : | G4: Effectif (pourcentage): | J4: =(J3/J2)*100 -> 0
A5: Participants : | C5: Chef de centre/chef de service ou adjoint : Assitant de prévention : Agent : CHSCT/CCDSPV : PSSM : | J5: =C6 -> Pharmacie
A6: Unité de travail : | C6: =+Collectivité!A43 -> Pharmacie
A9: Liste des risques | B9: Danger Applicable | C9: Commentaires | D9: Gravité | E9: Maîtrise | F9: G*M | G9: Durée exposition | H9: Effectif | I9: D*E | J9: Note Totale
A10: Chute de plain pied | F10: =IF(OR(D10="",E10=""),"NC",D10*E10) -> NC | H10: =IF(J$4=0,"0",IF(J$4<=15,"1",IF(AND(15<J$4,J$4<=45),"4",IF(AND(45<J$4,J$4<=75),"7",IF(J$4>75,"10",""))))) -> 0 | I10: =IF(OR(G10="",H10=""),"NC",G10*H10) -> NC | J10: =IF(OR(D10="",E10="",G10="",H10="",B10="non"),"NC",D10*E10*G10*H10) -> NC
A11: Chute de hauteur | F11: 4 | H11: =IF(J$4=0,"0",IF(J$4<=15,"1",IF(AND(15<J$4,J$4<=45),"4",IF(AND(45<J$4,J$4<=75),"7",IF(J$4>75,"10",""))))) -> 0 | I11: =IF(OR(G11="",H11=""),"NC",G11*H11) -> NC | J11: =IF(OR(D11="",E11="",G11="",H11="",B11="non"),"NC",D11*E11*G11*H11) -> NC
A12: Effondrement et chutes d'objets | F12: NC | H12: 0 | I12: NC | J12: NC
A13: Manutention manuelle | F13: NC | H13: 0 | I13: NC | J13: NC
A14: Ergonomie | F14: NC | H14: 0 | I14: NC | J14: NC
A15: Risque Routier - Conduite d'engins | F15: NC | H15: 0 | I15: NC | J15: NC
A16: Circulation piétonne | F16: NC | H16: 0 | I16: NC | J16: NC
A17: Risques liés aux machines et outils | F17: NC | H17: 0 | I17: NC | J17: NC
A18: Bruit | F18: NC | H18: 0 | I18: NC | J18: NC
A19: Vibrations | F19: NC | H19: 0 | I19: NC | J19: NC
A20: Risques chimiques | F20: NC | H20: 0 | I20: NC | J20: NC
A21: Amiante | F21: NC | H21: 0 | I21: NC | J21: NC
A22: Aération et assainissement de l'air | F22: NC | H22: 0 | I22: NC | J22: NC
A23: Risque Electrique | F23: NC | H23: 0 | I23: NC | J23: NC
A24: Incendie - Explosion | F24: NC | H24: 0 | I24: NC | J24: NC
A25: Risques liés à l'éclairage | F25: NC | H25: 0 | I25: NC | J25: NC
A26: Utilisation d'écran | F26: NC | H26: 0 | I26: NC | J26: NC
A27: Risques liés aux ambiances climatiques et thermiques | F27: NC | H27: 0 | I27: NC | J27: NC
A28: Risque biologique | F28: NC | H28: 0 | I28: NC | J28: NC
A29: Manque d'hygiène | F29: NC | H29: 0 | I29: NC | J29: NC
A30: Rayonnement | F30: NC | H30: 0 | I30: NC | J30: NC
A31: Entreprises Extérieures | F31: NC | H31: 0 | I31: NC | J31: NC
A32: Agressions | F32: NC | H32: 0 | I32: NC | J32: NC
A33: Risques psychosociaux | B33: oui | C33: Sur cette unité, les risques psychosociaux sont présents, les principales composantes à maitriser sont : 1/ intensité du travail : - ; 2 / Emotionnel : - 3 / Autonomie : - 4 / Rapports sociaux : - 5 / Conflits de Valeur : - 6 / Insécurité de la situation de travail: - | F33: NC | H33: 0 | I33: NC | J33: NC

Sheet Batiment
A1: 3. EVALUATION DES RISQUES PAR UNITE DE TRAVAIL
A2: Date de rédaction : | C2: =+Collectivité!F34 -> 00:00:00 | G2: Effectif total: | J2: =+'Réserve groupement'!J2 -> 12.19
A3: Date de mise à jour : | C3: =+C2 -> 00:00:00 | G3: Effectif concerné: | J3: =+Collectivité!E44 -> 0
A4: Rédacteur : | G4: Effectif (pourcentage): | J4: =(J3/J2)*100 -> 0
A5: Participants : | C5: Chef de centre/chef de service ou adjoint : Assitant de prévention : Agent : CHSCT/CCDSPV : PSSM : | J5: =C6 -> Batiment
A6: Unité de travail : | C6: =+Collectivité!A44 -> Batiment
A9: Liste des risques | B9: Danger Applicable | C9: Commentaires | D9: Gravité | E9: Maîtrise | F9: G*M | G9: Durée exposition | H9: Effectif | I9: D*E | J9: Note Totale
A10: Chute de plain pied | B10: oui | F10: =IF(OR(D10="",E10=""),"NC",D10*E10) -> NC | H10: =IF(J$4=0,"0",IF(J$4<=15,"1",IF(AND(15<J$4,J$4<=45),"4",IF(AND(45<J$4,J$4<=75),"7",IF(J$4>75,"10",""))))) -> 0 | I10: =IF(OR(G10="",H10=""),"NC",G10*H10) -> NC | J10: =IF(OR(D10="",E10="",G10="",H10="",B10="non"),"NC",D10*E10*G10*H10) -> NC
A11: Chute de hauteur | B11: oui | F11: 4 | H11: =IF(J$4=0,"0",IF(J$4<=15,"1",IF(AND(15<J$4,J$4<=45),"4",IF(AND(45<J$4,J$4<=75),"7",IF(J$4>75,"10",""))))) -> 0 | I11: NC | J11: NC
A12: Effondrement et chutes d'objets | F12: NC | H12: 0 | I12: NC | J12: NC
A13: Manutention manuelle | F13: NC | H13: 0 | I13: NC | J13: NC
A14: Ergonomie | F14: NC | H14: 0 | I14: NC | J14: NC
A15: Risque Routier - Conduite d'engins | F15: NC | H15: 0 | I15: NC | J15: NC
A16: Circulation piétonne | F16: NC | H16: 0 | I16: NC | J16: NC
A17: Risques liés aux machines et outils | F17: NC | H17: 0 | I17: NC | J17: NC
A18: Bruit | F18: NC | H18: 0 | I18: NC | J18: NC
A19: Vibrations | F19: NC | H19: 0 | I19: NC | J19: NC
A20: Risques chimiques | F20: NC | H20: 0 | I20: NC | J20: NC
A21: Amiante | F21: NC | H21: 0 | I21: NC | J21: NC
A22: Aération et assainissement de l'air | F22: NC | H22: 0 | I22: NC | J22: NC
A23: Risque Electrique | F23: NC | H23: 0 | I23: NC | J23: NC
A24: Incendie - Explosion | F24: NC | H24: 0 | I24: NC | J24: NC
A25: Risques liés à l'éclairage | F25: NC | H25: 0 | I25: NC | J25: NC
A26: Utilisation d'écran | F26: NC | H26: 0 | I26: NC | J26: NC
A27: Risques liés aux ambiances climatiques et thermiques | F27: NC | H27: 0 | I27: NC | J27: NC
A28: Risque biologique | F28: NC | H28: 0 | I28: NC | J28: NC
A29: Manque d'hygiène | F29: NC | H29: 0 | I29: NC | J29: NC
A30: Rayonnement | F30: NC | H30: 0 | I30: NC | J30: NC
A31: Entreprises Extérieures | F31: =IF(OR(D31="",E31=""),"NC",D31*E31) -> NC | H31: =IF(J$4=0,"0",IF(J$4<=15,"1",IF(AND(15<J$4,J$4<=45),"4",IF(AND(45<J$4,J$4<=75),"7",IF(J$4>75,"10",""))))) -> 0 | I31: NC | J31: NC
A32: Agressions | F32: =IF(OR(D32="",E32=""),"NC",D32*E32) -> NC | H32: =IF(J$4=0,"0",IF(J$4<=15,"1",IF(AND(15<J$4,J$4<=45),"4",IF(AND(45<J$4,J$4<=75),"7",IF(J$4>75,"10",""))))) -> 0 | I32: NC | J32: NC
A33: Risques psychosociaux | B33: oui | C33: Sur cette unité, les risques psychosociaux sont présents, les principales composantes à maitriser sont : 1/ intensité du travail : - ; 2 / Emotionnel : - 3 / Autonomie : - 4 / Rapports sociaux : - 5 / Conflits de Valeur : - 6 / Insécurité de la situation de travail: - | F33: =IF(OR(D33="",E33=""),"NC",D33*E33) -> NC | H33: =IF(J$4=0,"0",IF(J$4<=15,"1",IF(AND(15<J$4,J$4<=45),"4",IF(AND(45<J$4,J$4<=75),"7",IF(J$4>75,"10",""))))) -> 0 | I33: NC | J33: NC

Sheet Cyno
A1: 3. EVALUATION DES RISQUES PAR UNITE DE TRAVAIL
A2: Date de rédaction : | C2: =+Collectivité!F35 -> 00:00:00 | G2: Effectif total: | J2: =+'Réserve groupement'!J2 -> 12.19
A3: Date de mise à jour : | C3: =+C2 -> 00:00:00 | G3: Effectif concerné: | J3: =Collectivité!D45 -> 0
A4: Rédacteur : | G4: Effectif (pourcentage): | J4: =(J3/J2)*100 -> 0
A5: Participants : | C5: Chef de centre/chef de service ou adjoint : Assitant de prévention : Agent : CHSCT/CCDSPV : PSSM : | J5: =C6 -> Cyno
A6: Unité de travail : | C6: =+Collectivité!A45 -> Cyno
A9: Liste des risques | B9: Danger Applicable | C9: Commentaires | D9: Gravité | E9: Maîtrise | F9: G*M | G9: Durée exposition | H9: Effectif | I9: D*E | J9: Note Totale
A10: Chute de plain pied | F10: =IF(OR(D10="",E10=""),"NC",D10*E10) -> NC | H10: =IF(J$4=0,"0",IF(J$4<=15,"1",IF(AND(15<J$4,J$4<=45),"4",IF(AND(45<J$4,J$4<=75),"7",IF(J$4>75,"10",""))))) -> 0 | I10: =IF(OR(G10="",H10=""),"NC",G10*H10) -> NC | J10: =IF(OR(D10="",E10="",G10="",H10="",B10="non"),"NC",D10*E10*G10*H10) -> NC
A11: Chute de hauteur | F11: 4 | H11: =IF(J$4=0,"0",IF(J$4<=15,"1",IF(AND(15<J$4,J$4<=45),"4",IF(AND(45<J$4,J$4<=75),"7",IF(J$4>75,"10",""))))) -> 0 | I11: =IF(OR(G11="",H11=""),"NC",G11*H11) -> NC | J11: =IF(OR(D11="",E11="",G11="",H11="",B11="non"),"NC",D11*E11*G11*H11) -> NC
A12: Effondrement et chutes d'objets | F12: =IF(OR(D12="",E12=""),"NC",D12*E12) -> NC | H12: 0 | I12: NC | J12: NC
A13: Manutention manuelle | F13: NC | H13: 0 | I13: NC | J13: NC
A14: Ergonomie | F14: NC | H14: 0 | I14: NC | J14: NC
A15: Risque Routier - Conduite d'engins | F15: NC | H15: 0 | I15: NC | J15: NC
A16: Circulation piétonne | F16: NC | H16: 0 | I16: NC | J16: NC
A17: Risques liés aux machines et outils | F17: NC | H17: 0 | I17: NC | J17: NC
A18: Bruit | F18: NC | H18: 0 | I18: NC | J18: NC
A19: Vibrations | F19: NC | H19: 0 | I19: NC | J19: NC
A20: Risques chimiques | F20: NC | H20: 0 | I20: NC | J20: NC
A21: Amiante | F21: NC | H21: 0 | I21: NC | J21: NC
A22: Aération et assainissement de l'air | F22: NC | H22: 0 | I22: NC | J22: NC
A23: Risque Electrique | F23: NC | H23: 0 | I23: NC | J23: NC
A24: Incendie - Explosion | F24: NC | H24: 0 | I24: NC | J24: NC
A25: Risques liés à l'éclairage | F25: NC | H25: 0 | I25: NC | J25: NC
A26: Utilisation d'écran | F26: NC | H26: 0 | I26: NC | J26: NC
A27: Risques liés aux ambiances climatiques et thermiques | F27: NC | H27: 0 | I27: NC | J27: NC
A28: Risque biologique | F28: NC | H28: 0 | I28: NC | J28: NC
A29: Manque d'hygiène | F29: NC | H29: 0 | I29: NC | J29: NC
A30: Rayonnement | F30: NC | H30: 0 | I30: NC | J30: NC
A31: Entreprises Extérieures | F31: NC | H31: 0 | I31: NC | J31: NC
A32: Agressions | F32: NC | H32: 0 | I32: NC | J32: NC
A33: Risques psychosociaux | B33: oui | C33: Sur cette unité, les risques psychosociaux sont présents, les principales composantes à maitriser sont : 1/ intensité du travail : - ; 2 / Emotionnel : - 3 / Autonomie : - 4 / Rapports sociaux : - 5 / Conflits de Valeur : - 6 / Insécurité de la situation de travail: - | F33: NC | H33: 0 | I33: NC | J33: NC

Sheet service général
A1: 3. EVALUATION DES RISQUES PAR UNITE DE TRAVAIL
A2: Date de rédaction : | C2: mardi 6 novembre 2018 | G2: Effectif total: | J2: =+'Réserve groupement'!J2 -> 12.19
A3: Date de mise à jour : | C3: =+C2 -> mardi 6 novembre 2018 | G3: Effectif concerné: | J3: =Collectivité!D45 -> 0
A4: Rédacteur : | G4: Effectif (pourcentage): | J4: =(J3/J2)*100 -> 0
A5: Participants : | C5: Chef de centre/chef de service ou adjoint : Assitant de prévention : Agent : CHSCT/CCDSPV : PSSM : | J5: =C6 -> service général
A6: Unité de travail : | C6: service général
A9: Liste des risques | B9: Danger Applicable | C9: Commentaires | D9: Gravité | E9: Maîtrise | F9: G*M | G9: Durée exposition | H9: Effectif | I9: D*E | J9: Note Totale
A10: Chute de plain pied | H10: =IF(J$4=0,"0",IF(J$4<=15,"1",IF(AND(15<J$4,J$4<=45),"4",IF(AND(45<J$4,J$4<=75),"7",IF(J$4>75,"10",""))))) -> 0 | I10: =IF(OR(G10="",H10=""),"NC",G10*H10) -> NC | J10: =IF(OR(D10="",E10="",G10="",H10="",B10="non"),"NC",D10*E10*G10*H10) -> NC
A11: Chute de hauteur | H11: =IF(J$4=0,"0",IF(J$4<=15,"1",IF(AND(15<J$4,J$4<=45),"4",IF(AND(45<J$4,J$4<=75),"7",IF(J$4>75,"10",""))))) -> 0 | I11: =IF(OR(G11="",H11=""),"NC",G11*H11) -> NC | J11: =IF(OR(D11="",E11="",G11="",H11="",B11="non"),"NC",D11*E11*G11*H11) -> NC
A12: Effondrement et chutes d'objets | H12: 0 | I12: NC | J12: NC
A13: Manutention manuelle | H13: 0 | I13: NC | J13: NC
A14: Ergonomie | H14: 0 | I14: NC | J14: NC
A15: Risque Routier - Conduite d'engins | H15: 0 | I15: NC | J15: NC
A16: Circulation piétonne | H16: 0 | I16: NC | J16: NC
A17: Risques liés aux machines et outils | H17: 0 | I17: NC | J17: NC
A18: Bruit | H18: 0 | I18: NC | J18: NC
A19: Vibrations | H19: 0 | I19: NC | J19: NC
A20: Risques chimiques | H20: 0 | I20: NC | J20: NC
A21: Amiante | H21: 0 | I21: NC | J21: NC
A22: Aération et assainissement de l'air | H22: 0 | I22: NC | J22: NC
A23: Risque Electrique | H23: 0 | I23: NC | J23: NC
A24: Incendie - Explosion | H24: 0 | I24: NC | J24: NC
A25: Risques liés à l'éclairage | H25: 0 | I25: NC | J25: NC
A26: Utilisation d'écran | H26: 0 | I26: NC | J26: NC
A27: Risques liés aux ambiances climatiques et thermiques | H27: 0 | I27: NC | J27: NC
A28: Risque biologique | H28: 0 | I28: NC | J28: NC
A29: Manque d'hygiène | H29: 0 | I29: NC | J29: NC
A30: Rayonnement | H30: 0 | I30: NC | J30: NC
A31: Entreprises Extérieures | H31: 0 | I31: NC | J31: NC
A32: Agressions | H32: 0 | I32: NC | J32: NC
A33: Risques psychosociaux | B33: oui | C33: Sur cette unité, les risques psychosociaux sont présents, les principales composantes à maitriser sont : 1/ intensité du travail : - ; 2 / Emotionnel : - 3 / Autonomie : - 4 / Rapports sociaux : - 5 / Conflits de Valeur : - 6 / Insécurité de la situation de travail: - | F33: =IF(OR(D33="",E33=""),"NC",D33*E33) -> NC | H33: 0 | I33: NC | J33: NC

Sheet VIERGE
A1: 3. EVALUATION DES RISQUES PAR UNITE DE TRAVAIL
A2: Date de rédaction : | C2: mardi 6 novembre 2018 | G2: Effectif total: | J2: =+'Réserve groupement'!J2 -> 12.19
A3: Date de mise à jour : | C3: =+C2 -> mardi 6 novembre 2018 | G3: Effectif concerné: | J3: =Collectivité!D45 -> 0
A4: Rédacteur : | G4: Effectif (pourcentage): | J4: =(J3/J2)*100 -> 0
A5: Participants : | C5: Chef de centre/chef de service ou adjoint : Assitant de prévention : Agent : CHSCT/CCDSPV : PSSM : | J5: VIERGE
A6: Unité de travail :
A9: Liste des risques | B9: Danger Applicable | C9: Commentaires | D9: Gravité | E9: Maîtrise | F9: G*M | G9: Durée exposition | H9: Effectif | I9: D*E | J9: Note Totale
A10: Chute de plain pied | I10: =IF(OR(G10="",H10=""),"NC",G10*H10) -> NC | J10: =IF(OR(D10="",E10="",G10="",H10="",B10="non"),"NC",D10*E10*G10*H10) -> NC
A11: Chute de hauteur | I11: =IF(OR(G11="",H11=""),"NC",G11*H11) -> NC | J11: =IF(OR(D11="",E11="",G11="",H11="",B11="non"),"NC",D11*E11*G11*H11) -> NC
A12: Effondrement et chutes d'objets | I12: NC | J12: NC
A13: Manutention manuelle | I13: NC | J13: NC
A14: Ergonomie | I14: NC | J14: NC
A15: Risque Routier - Conduite d'engins | I15: NC | J15: NC
A16: Circulation piétonne | I16: NC | J16: NC
A17: Risques liés aux machines et outils | I17: NC | J17: NC
A18: Bruit | I18: NC | J18: NC
A19: Vibrations | I19: NC | J19: NC
A20: Risques chimiques | I20: NC | J20: NC
A21: Amiante | I21: NC | J21: NC
A22: Aération et assainissement de l'air | I22: NC | J22: NC
A23: Risque Electrique | I23: NC | J23: NC
A24: Incendie - Explosion | I24: NC | J24: NC
A25: Risques liés à l'éclairage | I25: NC | J25: NC
A26: Utilisation d'écran | I26: NC | J26: NC
A27: Risques liés aux ambiances climatiques et thermiques | I27: NC | J27: NC
A28: Risque biologique | I28: NC | J28: NC
A29: Manque d'hygiène | I29: NC | J29: NC
A30: Rayonnement | I30: NC | J30: NC
A31: Entreprises Extérieures | I31: NC | J31: NC
A32: Agressions | I32: NC | J32: NC
A33: Risques psychosociaux | B33: oui | C33: Sur cette unité, les risques psychosociaux sont présents, les principales composantes à maitriser sont : 1/ intensité du travail : - ; 2 / Emotionnel : - 3 / Autonomie : - 4 / Rapports sociaux : - 5 / Conflits de Valeur : - 6 / Insécurité de la situation de travail: - | F33: =IF(OR(D33="",E33=""),"NC",D33*E33) -> NC | I33: NC | J33: NC

Sheet Grille évaluation
B1: 4. Grille d'évaluation
B3: UNITES DE TRAVAIL | C3: f1 | D3: ii | E3: =+Direction!$C6 -> Direction | F3: f2 | G3: i2 | H3: =+Secrétariat!$C6 -> Secrétariat | I3: f3 | J3: i3 | K3: =+'Chaine de commandement'!$C6 -> Chaine de commandement | L3: f4 | M3: i4 | N3: =+'Services administratifs'!$C6 -> Services administratifs | O3: f5 | P3: i5 | Q3: =+STASS!$C6 -> STASS | R3: f6 | S3: i6 | T3: =+'Vie collective'!C6 -> Vie collective | U3: f7 | V3: i7 | W3: =+'Manœuvre et formation'!C6 -> Manœuvre et formation | X3: f8 | Y3: i8 | Z3: =+APS!C6 -> APS | AA3: f9 | AB3: i9 | AC3: =+'Espace vert'!C6 -> Espace vert | AD3: f10 | AE3: i10 | AF3: =+Habillement!C6 -> Habillement | AG3: =+'Réserve groupement'!C6 -> Réserve groupement | AH3: =+Pharmacie!C6 -> Pharmacie | AI3: =+Batiment!C6 -> Batiment | AJ3: =+Cyno!C6 -> Cyno | AL3: Moyenne de la collectivité | AM3: Somme de la collectivité
B4: EFFECTIFS | E4: =+Direction!J3 -> 1.33 | H4: =+Secrétariat!J3 -> 6.4 | K4: =+'Chaine de commandement'!J3 -> 1.6 | N4: =+'Services administratifs'!J3 -> 0.33 | Q4: =+STASS!J3 -> 0.7 | T4: =+'Vie collective'!J3 -> 0.4 | W4: =+'Manœuvre et formation'!J3 -> 0.4 | Z4: =+APS!J3 -> 0.4 | AC4: =+'Espace vert'!J3 -> 0.4 | AF4: =+Habillement!J3 -> 3 | AG4: =+'Réserve groupement'!J3 -> 0 | AH4: =+Pharmacie!J3 -> 0 | AI4: =+Batiment!J3 -> 0 | AJ4: =+Cyno!J3 -> 0 | AL4: =+AVERAGE(E4,N4,Q4,H4,K4,T4,W4,Z4,AC4,AF4) -> 1.496 | AM4: =SUM(E4,N4,Q4,H4,K4,T4,W4,Z4,AC4,AF4) -> 14.96
A5: L I S T E D E S R I S Q U E S E V E N T U E L S | B5: Chute de plain- pied | C5: =+Direction!F10 -> NC | D5: =+Direction!I10 -> NC | E5: =+Direction!J10 -> NC | F5: =Secrétariat!$F10 -> NC | G5: =Secrétariat!$I10 -> NC | H5: =+Secrétariat!J10 -> NC | I5: =+'Chaine de commandement'!F10 -> NC | J5: =+'Chaine de commandement'!I10 -> NC | K5: =+'Chaine de commandement'!J10 -> NC | L5: ='Services administratifs'!$F10 -> NC | M5: ='Services administratifs'!$I10 -> NC | N5: =+'Services administratifs'!J10 -> NC | O5: =STASS!$F10 -> NC | P5: =STASS!$I10 -> NC | Q5: =+STASS!J10 -> NC | R5: =+'Vie collective'!F10 -> NC | S5: =+'Vie collective'!I10 -> NC | T5: =+'Vie collective'!J10 -> NC | U5: =+'Manœuvre et formation'!F10 -> 0 | V5: =+'Manœuvre et formation'!I10 -> NC | W5: =+'Manœuvre et formation'!J10 -> NC | X5: =+APS!F10 -> NC | Y5: =+APS!I10 -> NC | Z5: =+APS!J10 -> NC | AA5: =+'Espace vert'!F10 -> NC | AB5: =+'Espace vert'!J10 -> NC | AC5: =+'Espace vert'!J10 -> NC | AD5: =+Habillement!F10 -> NC | AE5: =+Habillement!I10 -> NC | AF5: =+Habillement!J10 -> NC | AG5: =+'Réserve groupement'!J10 -> NC | AH5: =+Pharmacie!J10 -> NC | AI5: =+Batiment!J10 -> NC | AJ5: =+Cyno!J10 -> NC | AM5: 0
B6: Chute de hauteur | C6: =+Direction!F11 -> NC | D6: =+Direction!I11 -> NC | E6: =+Direction!J11 -> NC | F6: =Secrétariat!$F11 -> 4 | G6: =Secrétariat!$I11 -> NC | H6: =+Secrétariat!J11 -> NC | I6: =+'Chaine de commandement'!F11 -> 4 | J6: =+'Chaine de commandement'!I11 -> NC | K6: =+'Chaine de commandement'!J11 -> NC | L6: ='Services administratifs'!$F11 -> 4 | M6: ='Services administratifs'!$I11 -> NC | N6: =+'Services administratifs'!J11 -> NC | O6: =STASS!$F11 -> 4 | P6: =STASS!$I11 -> NC | Q6: =+STASS!J11 -> NC | R6: =+'Vie collective'!F11 -> NC | S6: =+'Vie collective'!I11 -> NC | T6: =+'Vie collective'!J11 -> NC | U6: =+'Manœuvre et formation'!F11 -> 0 | V6: =+'Manœuvre et formation'!I11 -> NC | W6: =+'Manœuvre et formation'!J11 -> NC | X6: =+APS!F11 -> NC | Y6: =+APS!I11 -> NC | Z6: =+APS!J11 -> NC | AA6: =+'Espace vert'!F11 -> NC | AB6: =+'Espace vert'!J11 -> NC | AC6: =+'Espace vert'!J11 -> NC | AD6: =+Habillement!F11 -> NC | AE6: =+Habillement!I11 -> NC | AF6: =+Habillement!J11 -> NC | AG6: =+'Réserve groupement'!J11 -> NC | AH6: =+Pharmacie!J11 -> NC | AI6: =+Batiment!J11 -> NC | AJ6: =+Cyno!J11 -> NC | AM6: 0
B7: Effondrements et chutes d'objets | C7: =+Direction!F12 -> NC | D7: =+Direction!I12 -> NC | E7: =+Direction!J12 -> NC | F7: =Secrétariat!$F12 -> NC | G7: =Secrétariat!$I12 -> NC | H7: =+Secrétariat!J12 -> NC | I7: =+'Chaine de commandement'!F12 -> NC | J7: =+'Chaine de commandement'!I12 -> NC | K7: =+'Chaine de commandement'!J12 -> NC | L7: ='Services administratifs'!$F12 -> NC | M7: ='Services administratifs'!$I12 -> NC | N7: =+'Services administratifs'!J12 -> NC | O7: =STASS!$F12 -> NC | P7: =STASS!$I12 -> NC | Q7: =+STASS!J12 -> NC | R7: =+'Vie collective'!F12 -> NC | S7: =+'Vie collective'!I12 -> NC | T7: =+'Vie collective'!J12 -> NC | U7: =+'Manœuvre et formation'!F12 -> 0 | V7: =+'Manœuvre et formation'!I12 -> NC | W7: =+'Manœuvre et formation'!J12 -> NC | X7: =+APS!F12 -> NC | Y7: =+APS!I12 -> NC | Z7: =+APS!J12 -> NC | AA7: =+'Espace vert'!F12 -> NC | AB7: =+'Espace vert'!J12 -> NC | AC7: =+'Espace vert'!J12 -> NC | AD7: =+Habillement!F12 -> NC | AE7: =+Habillement!I12 -> NC | AF7: =+Habillement!J12 -> NC | AG7: =+'Réserve groupement'!J12 -> NC | AH7: =+Pharmacie!J12 -> NC | AI7: =+Batiment!J12 -> NC | AJ7: =+Cyno!J12 -> NC | AM7: 0
B8: Manutention manuelle | C8: =+Direction!F13 -> NC | D8: =+Direction!I13 -> NC | E8: =+Direction!J13 -> NC | F8: =Secrétariat!$F13 -> NC | G8: =Secrétariat!$I13 -> NC | H8: =+Secrétariat!J13 -> NC | I8: =+'Chaine de commandement'!F13 -> NC | J8: =+'Chaine de commandement'!I13 -> NC | K8: =+'Chaine de commandement'!J13 -> NC | L8: ='Services administratifs'!$F13 -> NC | M8: ='Services administratifs'!$I13 -> NC | N8: =+'Services administratifs'!J13 -> NC | O8: =STASS!$F13 -> NC | P8: =STASS!$I13 -> NC | Q8: =+STASS!J13 -> NC | R8: =+'Vie collective'!F13 -> NC | S8: =+'Vie collective'!I13 -> NC | T8: =+'Vie collective'!J13 -> NC | U8: =+'Manœuvre et formation'!F13 -> 0 | V8: =+'Manœuvre et formation'!I13 -> NC | W8: =+'Manœuvre et formation'!J13 -> NC | X8: =+APS!F13 -> NC | Y8: =+APS!I13 -> NC | Z8: =+APS!J13 -> NC | AA8: =+'Espace vert'!F13 -> NC | AB8: =+'Espace vert'!J13 -> NC | AC8: =+'Espace vert'!J13 -> NC | AD8: =+Habillement!F13 -> NC | AE8: =+Habillement!I13 -> NC | AF8: =+Habillement!J13 -> NC | AG8: =+'Réserve groupement'!J13 -> NC | AH8: =+Pharmacie!J13 -> NC | AI8: =+Batiment!J13 -> NC | AJ8: =+Cyno!J13 -> NC | AM8: 0
B9: Ergonomie | C9: =+Direction!F14 -> NC | D9: =+Direction!I14 -> NC | E9: =+Direction!J14 -> NC | F9: =Secrétariat!$F14 -> NC | G9: =Secrétariat!$I14 -> NC | H9: =+Secrétariat!J14 -> NC | I9: =+'Chaine de commandement'!F14 -> NC | J9: =+'Chaine de commandement'!I14 -> NC | K9: =+'Chaine de commandement'!J14 -> NC | L9: ='Services administratifs'!$F14 -> NC | M9: ='Services administratifs'!$I14 -> NC | N9: =+'Services administratifs'!J14 -> NC | O9: =STASS!$F14 -> NC | P9: =STASS!$I14 -> NC | Q9: =+STASS!J14 -> NC | R9: =+'Vie collective'!F14 -> NC | S9: =+'Vie collective'!I14 -> NC | T9: =+'Vie collective'!J14 -> NC | U9: =+'Manœuvre et formation'!F14 -> 0 | V9: =+'Manœuvre et formation'!I14 -> NC | W9: =+'Manœuvre et formation'!J14 -> NC | X9: =+APS!F14 -> NC | Y9: =+APS!I14 -> NC | Z9: =+APS!J14 -> NC | AA9: =+'Espace vert'!F14 -> NC | AB9: =+'Espace vert'!J14 -> NC | AC9: =+'Espace vert'!J14 -> NC | AD9: =+Habillement!F14 -> NC | AE9: =+Habillement!I14 -> NC | AF9: =+Habillement!J14 -> NC | AG9: =+'Réserve groupement'!J14 -> NC | AH9: =+Pharmacie!J14 -> NC | AI9: =+Batiment!J14 -> NC | AJ9: =+Cyno!J14 -> NC | AM9: 0
B10: Risques routiers-Conduite d'engins | C10: =+Direction!F15 -> NC | D10: =+Direction!I15 -> NC | E10: =+Direction!J15 -> NC | F10: =Secrétariat!$F15 -> NC | G10: =Secrétariat!$I15 -> NC | H10: =+Secrétariat!J15 -> NC | I10: =+'Chaine de commandement'!F15 -> NC | J10: =+'Chaine de commandement'!I15 -> NC | K10: =+'Chaine de commandement'!J15 -> NC | L10: ='Services administratifs'!$F15 -> NC | M10: ='Services administratifs'!$I15 -> NC | N10: =+'Services administratifs'!J15 -> NC | O10: =STASS!$F15 -> NC | P10: =STASS!$I15 -> NC | Q10: =+STASS!J15 -> NC | R10: =+'Vie collective'!F15 -> NC | S10: =+'Vie collective'!I15 -> NC | T10: =+'Vie collective'!J15 -> NC | U10: =+'Manœuvre et formation'!F15 -> 0 | V10: =+'Manœuvre et formation'!I15 -> NC | W10: =+'Manœuvre et formation'!J15 -> NC | X10: =+APS!F15 -> NC | Y10: =+APS!I15 -> NC | Z10: =+APS!J15 -> NC | AA10: =+'Espace vert'!F15 -> NC | AB10: =+'Espace vert'!J15 -> NC | AC10: =+'Espace vert'!J15 -> NC | AD10: =+Habillement!F15 -> NC | AE10: =+Habillement!I15 -> NC | AF10: =+Habillement!J15 -> NC | AG10: =+'Réserve groupement'!J15 -> NC | AH10: =+Pharmacie!J15 -> NC | AI10: =+Batiment!J15 -> NC | AJ10: =+Cyno!J15 -> NC | AM10: 0
B11: Circulation piétonne | C11: =+Direction!F16 -> NC | D11: =+Direction!I16 -> NC | E11: =+Direction!J16 -> NC | F11: =Secrétariat!$F16 -> NC | G11: =Secrétariat!$I16 -> NC | H11: =+Secrétariat!J16 -> NC | I11: =+'Chaine de commandement'!F16 -> NC | J11: =+'Chaine de commandement'!I16 -> NC | K11: =+'Chaine de commandement'!J16 -> NC | L11: ='Services administratifs'!$F16 -> NC | M11: ='Services administratifs'!$I16 -> NC | N11: =+'Services administratifs'!J16 -> NC | O11: =STASS!$F16 -> NC | P11: =STASS!$I16 -> NC | Q11: =+STASS!J16 -> NC | R11: =+'Vie collective'!F16 -> NC | S11: =+'Vie collective'!I16 -> NC | T11: =+'Vie collective'!J16 -> NC | U11: =+'Manœuvre et formation'!F16 -> 0 | V11: =+'Manœuvre et formation'!I16 -> NC | W11: =+'Manœuvre et formation'!J16 -> NC | X11: =+APS!F16 -> NC | Y11: =+APS!I16 -> NC | Z11: =+APS!J16 -> NC | AA11: =+'Espace vert'!F16 -> NC | AB11: =+'Espace vert'!J16 -> NC | AC11: =+'Espace vert'!J16 -> NC | AD11: =+Habillement!F16 -> NC | AE11: =+Habillement!I16 -> NC | AF11: =+Habillement!J16 -> NC | AG11: =+'Réserve groupement'!J16 -> NC | AH11: =+Pharmacie!J16 -> NC | AI11: =+Batiment!J16 -> NC | AJ11: =+Cyno!J16 -> NC | AM11: 0
B12: Risques liés aux machines et outils | C12: =+Direction!F17 -> NC | D12: =+Direction!I17 -> NC | E12: =+Direction!J17 -> NC | F12: =Secrétariat!$F17 -> NC | G12: =Secrétariat!$I17 -> NC | H12: =+Secrétariat!J17 -> NC | I12: =+'Chaine de commandement'!F17 -> NC | J12: =+'Chaine de commandement'!I17 -> NC | K12: =+'Chaine de commandement'!J17 -> NC | L12: ='Services administratifs'!$F17 -> NC | M12: ='Services administratifs'!$I17 -> NC | N12: =+'Services administratifs'!J17 -> NC | O12: =STASS!$F17 -> NC | P12: =STASS!$I17 -> NC | Q12: =+STASS!J17 -> NC | R12: =+'Vie collective'!F17 -> NC | S12: =+'Vie collective'!I17 -> NC | T12: =+'Vie collective'!J17 -> NC | U12: =+'Manœuvre et formation'!F17 -> 0 | V12: =+'Manœuvre et formation'!I17 -> NC | W12: =+'Manœuvre et formation'!J17 -> NC | X12: =+APS!F17 -> NC | Y12: =+APS!I17 -> NC | Z12: =+APS!J17 -> NC | AA12: =+'Espace vert'!F17 -> NC | AB12: =+'Espace vert'!J17 -> NC | AC12: =+'Espace vert'!J17 -> NC | AD12: =+Habillement!F17 -> NC | AE12: =+Habillement!I17 -> NC | AF12: =+Habillement!J17 -> NC | AG12: =+'Réserve groupement'!J17 -> NC | AH12: =+Pharmacie!J17 -> NC | AI12: =+Batiment!J17 -> NC | AJ12: =+Cyno!J17 -> NC | AM12: 0
B13: Bruit | C13: =+Direction!F18 -> NC | D13: =+Direction!I18 -> NC | E13: =+Direction!J18 -> NC | F13: =Secrétariat!$F18 -> NC | G13: =Secrétariat!$I18 -> NC | H13: =+Secrétariat!J18 -> NC | I13: =+'Chaine de commandement'!F18 -> NC | J13: =+'Chaine de commandement'!I18 -> NC | K13: =+'Chaine de commandement'!J18 -> NC | L13: ='Services administratifs'!$F18 -> NC | M13: ='Services administratifs'!$I18 -> NC | N13: =+'Services administratifs'!J18 -> NC | O13: =STASS!$F18 -> NC | P13: =STASS!$I18 -> NC | Q13: =+STASS!J18 -> NC | R13: =+'Vie collective'!F18 -> NC | S13: =+'Vie collective'!I18 -> NC | T13: =+'Vie collective'!J18 -> NC | U13: =+'Manœuvre et formation'!F18 -> 0 | V13: =+'Manœuvre et formation'!I18 -> NC | W13: =+'Manœuvre et formation'!J18 -> NC | X13: =+APS!F18 -> NC | Y13: =+APS!I18 -> NC | Z13: =+APS!J18 -> NC | AA13: =+'Espace vert'!F18 -> NC | AB13: =+'Espace vert'!J18 -> NC | AC13: =+'Espace vert'!J18 -> NC | AD13: =+Habillement!F18 -> NC | AE13: =+Habillement!I18 -> NC | AF13: =+Habillement!J18 -> NC | AG13: =+'Réserve groupement'!J18 -> NC | AH13: =+Pharmacie!J18 -> NC | AI13: =+Batiment!J18 -> NC | AJ13: =+Cyno!J18 -> NC | AM13: 0
B14: Vibrations | C14: =+Direction!F19 -> NC | D14: =+Direction!I19 -> NC | E14: =+Direction!J19 -> NC | F14: =Secrétariat!$F19 -> NC | G14: =Secrétariat!$I19 -> NC | H14: =+Secrétariat!J19 -> NC | I14: =+'Chaine de commandement'!F19 -> NC | J14: =+'Chaine de commandement'!I19 -> NC | K14: =+'Chaine de commandement'!J19 -> NC | L14: ='Services administratifs'!$F19 -> NC | M14: ='Services administratifs'!$I19 -> NC | N14: =+'Services administratifs'!J19 -> NC | O14: =STASS!$F19 -> NC | P14: =STASS!$I19 -> NC | Q14: =+STASS!J19 -> NC | R14: =+'Vie collective'!F19 -> NC | S14: =+'Vie collective'!I19 -> NC | T14: =+'Vie collective'!J19 -> NC | U14: =+'Manœuvre et formation'!F19 -> 0 | V14: =+'Manœuvre et formation'!I19 -> NC | W14: =+'Manœuvre et formation'!J19 -> NC | X14: =+APS!F19 -> NC | Y14: =+APS!I19 -> NC | Z14: =+APS!J19 -> NC | AA14: =+'Espace vert'!F19 -> NC | AB14: =+'Espace vert'!J19 -> NC | AC14: =+'Espace vert'!J19 -> NC | AD14: =+Habillement!F19 -> NC | AE14: =+Habillement!I19 -> NC | AF14: =+Habillement!J19 -> NC | AG14: =+'Réserve groupement'!J19 -> NC | AH14: =+Pharmacie!J19 -> NC | AI14: =+Batiment!J19 -> NC | AJ14: =+Cyno!J19 -> NC | AM14: 0
B15: Risque chimique | C15: =+Direction!F20 -> NC | D15: =+Direction!I20 -> NC | E15: =+Direction!J20 -> NC | F15: =Secrétariat!$F20 -> NC | G15: =Secrétariat!$I20 -> NC | H15: =+Secrétariat!J20 -> NC | I15: =+'Chaine de commandement'!F20 -> NC | J15: =+'Chaine de commandement'!I20 -> NC | K15: =+'Chaine de commandement'!J20 -> NC | L15: ='Services administratifs'!$F20 -> NC | M15: ='Services administratifs'!$I20 -> NC | N15: =+'Services administratifs'!J20 -> NC | O15: =STASS!$F20 -> 0 | P15: =STASS!$I20 -> NC | Q15: =+STASS!J20 -> NC | R15: =+'Vie collective'!F20 -> NC | S15: =+'Vie collective'!I20 -> NC | T15: =+'Vie collective'!J20 -> NC | U15: =+'Manœuvre et formation'!F20 -> 0 | V15: =+'Manœuvre et formation'!I20 -> NC | W15: =+'Manœuvre et formation'!J20 -> NC | X15: =+APS!F20 -> NC | Y15: =+APS!I20 -> NC | Z15: =+APS!J20 -> NC | AA15: =+'Espace vert'!F20 -> NC | AB15: =+'Espace vert'!J20 -> NC | AC15: =+'Espace vert'!J20 -> NC | AD15: =+Habillement!F20 -> NC | AE15: =+Habillement!I20 -> NC | AF15: =+Habillement!J20 -> NC | AG15: =+'Réserve groupement'!J20 -> NC | AH15: =+Pharmacie!J20 -> NC | AI15: =+Batiment!J20 -> NC | AJ15: =+Cyno!J20 -> NC | AM15: 0
B16: Amiante | C16: =+Direction!F21 -> NC | D16: =+Direction!I21 -> NC | E16: =+Direction!J21 -> NC | F16: =Secrétariat!$F21 -> NC | G16: =Secrétariat!$I21 -> NC | H16: =+Secrétariat!J21 -> NC | I16: =+'Chaine de commandement'!F21 -> NC | J16: =+'Chaine de commandement'!I21 -> NC | K16: =+'Chaine de commandement'!J21 -> NC | L16: ='Services administratifs'!$F21 -> NC | M16: ='Services administratifs'!$I21 -> NC | N16: =+'Services administratifs'!J21 -> NC | O16: =STASS!$F21 -> NC | P16: =STASS!$I21 -> NC | Q16: =+STASS!J21 -> NC | R16: =+'Vie collective'!F21 -> NC | S16: =+'Vie collective'!I21 -> NC | T16: =+'Vie collective'!J21 -> NC | U16: =+'Manœuvre et formation'!F21 -> 0 | V16: =+'Manœuvre et formation'!I21 -> NC | W16: =+'Manœuvre et formation'!J21 -> NC | X16: =+APS!F21 -> NC | Y16: =+APS!I21 -> NC | Z16: =+APS!J21 -> NC | AA16: =+'Espace vert'!F21 -> NC | AB16: =+'Espace vert'!J21 -> NC | AC16: =+'Espace vert'!J21 -> NC | AD16: =+Habillement!F21 -> NC | AE16: =+Habillement!I21 -> NC | AF16: =+Habillement!J21 -> NC | AG16: =+'Réserve groupement'!J21 -> NC | AH16: =+Pharmacie!J21 -> NC | AI16: =+Batiment!J21 -> NC | AJ16: =+Cyno!J21 -> NC | AM16: 0
B17: Aération et assainissement de l'air | C17: =+Direction!F22 -> NC | D17: =+Direction!I22 -> NC | E17: =+Direction!J22 -> NC | F17: =Secrétariat!$F22 -> NC | G17: =Secrétariat!$I22 -> NC | H17: =+Secrétariat!J22 -> NC | I17: =+'Chaine de commandement'!F22 -> NC | J17: =+'Chaine de commandement'!I22 -> NC | K17: =+'Chaine de commandement'!J22 -> NC | L17: ='Services administratifs'!$F22 -> NC | M17: ='Services administratifs'!$I22 -> NC | N17: =+'Services administratifs'!J22 -> NC | O17: =STASS!$F22 -> NC | P17: =STASS!$I22 -> NC | Q17: =+STASS!J22 -> NC | R17: =+'Vie collective'!F22 -> NC | S17: =+'Vie collective'!I22 -> NC | T17: =+'Vie collective'!J22 -> NC | U17: =+'Manœuvre et formation'!F22 -> 0 | V17: =+'Manœuvre et formation'!I22 -> NC | W17: =+'Manœuvre et formation'!J22 -> NC | X17: =+APS!F22 -> NC | Y17: =+APS!I22 -> NC | Z17: =+APS!J22 -> NC | AA17: =+'Espace vert'!F22 -> NC | AB17: =+'Espace vert'!J22 -> NC | AC17: =+'Espace vert'!J22 -> NC | AD17: =+Habillement!F22 -> NC | AE17: =+Habillement!I22 -> NC | AF17: =+Habillement!J22 -> NC | AG17: =+'Réserve groupement'!J22 -> NC | AH17: =+Pharmacie!J22 -> NC | AI17: =+Batiment!J22 -> NC | AJ17: =+Cyno!J22 -> NC | AM17: 0
B18: Risque électrique | C18: =+Direction!F23 -> NC | D18: =+Direction!I23 -> NC | E18: =+Direction!J23 -> NC | F18: =Secrétariat!$F23 -> NC | G18: =Secrétariat!$I23 -> NC | H18: =+Secrétariat!J23 -> NC | I18: =+'Chaine de commandement'!F23 -> NC | J18: =+'Chaine de commandement'!I23 -> NC | K18: =+'Chaine de commandement'!J23 -> NC | L18: ='Services administratifs'!$F23 -> NC | M18: ='Services administratifs'!$I23 -> NC | N18: =+'Services administratifs'!J23 -> NC | O18: =STASS!$F23 -> NC | P18: =STASS!$I23 -> NC | Q18: =+STASS!J23 -> NC | R18: =+'Vie collective'!F23 -> NC | S18: =+'Vie collective'!I23 -> NC | T18: =+'Vie collective'!J23 -> NC | U18: =+'Manœuvre et formation'!F23 -> 0 | V18: =+'Manœuvre et formation'!I23 -> NC | W18: =+'Manœuvre et formation'!J23 -> NC | X18: =+APS!F23 -> NC | Y18: =+APS!I23 -> NC | Z18: =+APS!J23 -> NC | AA18: =+'Espace vert'!F23 -> NC | AB18: =+'Espace vert'!J23 -> NC | AC18: =+'Espace vert'!J23 -> NC | AD18: =+Habillement!F23 -> NC | AE18: =+Habillement!I23 -> NC | AF18: =+Habillement!J23 -> NC | AG18: =+'Réserve groupement'!J23 -> NC | AH18: =+Pharmacie!J23 -> NC | AI18: =+Batiment!J23 -> NC | AJ18: =+Cyno!J23 -> NC | AM18: 0
B19: Incendie explosion | C19: =+Direction!F24 -> NC | D19: =+Direction!I24 -> NC | E19: =+Direction!J24 -> NC | F19: =Secrétariat!$F24 -> NC | G19: =Secrétariat!$I24 -> NC | H19: =+Secrétariat!J24 -> NC | I19: =+'Chaine de commandement'!F24 -> NC | J19: =+'Chaine de commandement'!I24 -> NC | K19: =+'Chaine de commandement'!J24 -> NC | L19: ='Services administratifs'!$F24 -> NC | M19: ='Services administratifs'!$I24 -> NC | N19: =+'Services administratifs'!J24 -> NC | O19: =STASS!$F24 -> NC | P19: =STASS!$I24 -> NC | Q19: =+STASS!J24 -> NC | R19: =+'Vie collective'!F24 -> NC | S19: =+'Vie collective'!I24 -> NC | T19: =+'Vie collective'!J24 -> NC | U19: =+'Manœuvre et formation'!F24 -> 0 | V19: =+'Manœuvre et formation'!I24 -> NC | W19: =+'Manœuvre et formation'!J24 -> NC | X19: =+APS!F24 -> NC | Y19: =+APS!I24 -> NC | Z19: =+APS!J24 -> NC | AA19: =+'Espace vert'!F24 -> NC | AB19: =+'Espace vert'!J24 -> NC | AC19: =+'Espace vert'!J24 -> NC | AD19: =+Habillement!F24 -> NC | AE19: =+Habillement!I24 -> NC | AF19: =+Habillement!J24 -> NC | AG19: =+'Réserve groupement'!J24 -> NC | AH19: =+Pharmacie!J24 -> NC | AI19: =+Batiment!J24 -> NC | AJ19: =+Cyno!J24 -> NC | AM19: 0
B20: Risques liés à l'éclairage | C20: =+Direction!F25 -> NC | D20: =+Direction!I25 -> NC | E20: =+Direction!J25 -> NC | F20: =Secrétariat!$F25 -> NC | G20: =Secrétariat!$I25 -> NC | H20: =+Secrétariat!J25 -> NC | I20: =+'Chaine de commandement'!F25 -> NC | J20: =+'Chaine de commandement'!I25 -> NC | K20: =+'Chaine de commandement'!J25 -> NC | L20: ='Services administratifs'!$F25 -> NC | M20: ='Services administratifs'!$I25 -> NC | N20: =+'Services administratifs'!J25 -> NC | O20: =STASS!$F25 -> NC | P20: =STASS!$I25 -> NC | Q20: =+STASS!J25 -> NC | R20: =+'Vie collective'!F25 -> NC | S20: =+'Vie collective'!I25 -> NC | T20: =+'Vie collective'!J25 -> NC | U20: =+'Manœuvre et formation'!F25 -> 0 | V20: =+'Manœuvre et formation'!I25 -> NC | W20: =+'Manœuvre et formation'!J25 -> NC | X20: =+APS!F25 -> NC | Y20: =+APS!I25 -> NC | Z20: =+APS!J25 -> NC | AA20: =+'Espace vert'!F25 -> NC | AB20: =+'Espace vert'!J25 -> NC | AC20: =+'Espace vert'!J25 -> NC | AD20: =+Habillement!F25 -> NC | AE20: =+Habillement!I25 -> NC | AF20: =+Habillement!J25 -> NC | AG20: =+'Réserve groupement'!J25 -> NC | AH20: =+Pharmacie!J25 -> NC | AI20: =+Batiment!J25 -> NC | AJ20: =+Cyno!J25 -> NC | AM20: 0
B21: Utilisation d'écran | C21: =+Direction!F26 -> NC | D21: =+Direction!I26 -> NC | E21: =+Direction!J26 -> NC | F21: =Secrétariat!$F26 -> NC | G21: =Secrétariat!$I26 -> NC | H21: =+Secrétariat!J26 -> NC | I21: =+'Chaine de commandement'!F26 -> NC | J21: =+'Chaine de commandement'!I26 -> NC | K21: =+'Chaine de commandement'!J26 -> NC | L21: ='Services administratifs'!$F26 -> NC | M21: ='Services administratifs'!$I26 -> NC | N21: =+'Services administratifs'!J26 -> NC | O21: =STASS!$F26 -> NC | P21: =STASS!$I26 -> NC | Q21: =+STASS!J26 -> NC | R21: =+'Vie collective'!F26 -> NC | S21: =+'Vie collective'!I26 -> NC | T21: =+'Vie collective'!J26 -> NC | U21: =+'Manœuvre et formation'!F26 -> 0 | V21: =+'Manœuvre et formation'!I26 -> NC | W21: =+'Manœuvre et formation'!J26 -> NC | X21: =+APS!F26 -> NC | Y21: =+APS!I26 -> NC | Z21: =+APS!J26 -> NC | AA21: =+'Espace vert'!F26 -> NC | AB21: =+'Espace vert'!J26 -> NC | AC21: =+'Espace vert'!J26 -> NC | AD21: =+Habillement!F26 -> NC | AE21: =+Habillement!I26 -> NC | AF21: =+Habillement!J26 -> NC | AG21: =+'Réserve groupement'!J26 -> NC | AH21: =+Pharmacie!J26 -> NC | AI21: =+Batiment!J26 -> NC | AJ21: =+Cyno!J26 -> NC | AM21: 0
B22: Risques liés aux ambiances climatiques thermiques | C22: =+Direction!F27 -> NC | D22: =+Direction!I27 -> NC | E22: =+Direction!J27 -> NC | F22: =Secrétariat!$F27 -> NC | G22: =Secrétariat!$I27 -> NC | H22: =+Secrétariat!J27 -> NC | I22: =+'Chaine de commandement'!F27 -> NC | J22: =+'Chaine de commandement'!I27 -> NC | K22: =+'Chaine de commandement'!J27 -> NC | L22: ='Services administratifs'!$F27 -> NC | M22: ='Services administratifs'!$I27 -> NC | N22: =+'Services administratifs'!J27 -> NC | O22: =STASS!$F27 -> NC | P22: =STASS!$I27 -> NC | Q22: =+STASS!J27 -> NC | R22: =+'Vie collective'!F27 -> NC | S22: =+'Vie collective'!I27 -> NC | T22: =+'Vie collective'!J27 -> NC | U22: =+'Manœuvre et formation'!F27 -> 0 | V22: =+'Manœuvre et formation'!I27 -> NC | W22: =+'Manœuvre et formation'!J27 -> NC | X22: =+APS!F27 -> NC | Y22: =+APS!I27 -> NC | Z22: =+APS!J27 -> NC | AA22: =+'Espace vert'!F27 -> NC | AB22: =+'Espace vert'!J27 -> NC | AC22: =+'Espace vert'!J27 -> NC | AD22: =+Habillement!F27 -> NC | AE22: =+Habillement!I27 -> NC | AF22: =+Habillement!J27 -> NC | AG22: =+'Réserve groupement'!J27 -> NC | AH22: =+Pharmacie!J27 -> NC | AI22: =+Batiment!J27 -> NC | AJ22: =+Cyno!J27 -> NC | AM22: 0
B23: Risque biologique | C23: =+Direction!F28 -> NC | D23: =+Direction!I28 -> NC | E23: =+Direction!J28 -> NC | F23: =Secrétariat!$F28 -> NC | G23: =Secrétariat!$I28 -> NC | H23: =+Secrétariat!J28 -> NC | I23: =+'Chaine de commandement'!F28 -> NC | J23: =+'Chaine de commandement'!I28 -> NC | K23: =+'Chaine de commandement'!J28 -> NC | L23: ='Services administratifs'!$F28 -> NC | M23: ='Services administratifs'!$I28 -> NC | N23: =+'Services administratifs'!J28 -> NC | O23: =STASS!$F28 -> NC | P23: =STASS!$I28 -> NC | Q23: =+STASS!J28 -> NC | R23: =+'Vie collective'!F28 -> NC | S23: =+'Vie collective'!I28 -> NC | T23: =+'Vie collective'!J28 -> NC | U23: =+'Manœuvre et formation'!F28 -> 0 | V23: =+'Manœuvre et formation'!I28 -> NC | W23: =+'Manœuvre et formation'!J28 -> NC | X23: =+APS!F28 -> NC | Y23: =+APS!I28 -> NC | Z23: =+APS!J28 -> NC | AA23: =+'Espace vert'!F28 -> NC | AB23: =+'Espace vert'!J28 -> NC | AC23: =+'Espace vert'!J28 -> NC | AD23: =+Habillement!F28 -> NC | AE23: =+Habillement!I28 -> NC | AF23: =+Habillement!J28 -> NC | AG23: =+'Réserve groupement'!J28 -> NC | AH23: =+Pharmacie!J28 -> NC | AI23: =+Batiment!J28 -> NC | AJ23: =+Cyno!J28 -> NC | AM23: 0
B24: Manque d'hygiéne | C24: =+Direction!F29 -> NC | D24: =+Direction!I29 -> NC | E24: =+Direction!J29 -> NC | F24: =Secrétariat!$F29 -> NC | G24: =Secrétariat!$I29 -> NC | H24: =+Secrétariat!J29 -> NC | I24: =+'Chaine de commandement'!F29 -> NC | J24: =+'Chaine de commandement'!I29 -> NC | K24: =+'Chaine de commandement'!J29 -> NC | L24: ='Services administratifs'!$F29 -> NC | M24: ='Services administratifs'!$I29 -> NC | N24: =+'Services administratifs'!J29 -> NC | O24: =STASS!$F29 -> NC | P24: =STASS!$I29 -> NC | Q24: =+STASS!J29 -> NC | R24: =+'Vie collective'!F29 -> NC | S24: =+'Vie collective'!I29 -> NC | T24: =+'Vie collective'!J29 -> NC | U24: =+'Manœuvre et formation'!F29 -> 0 | V24: =+'Manœuvre et formation'!I29 -> NC | W24: =+'Manœuvre et formation'!J29 -> NC | X24: =+APS!F29 -> NC | Y24: =+APS!I29 -> NC | Z24: =+APS!J29 -> NC | AA24: =+'Espace vert'!F29 -> NC | AB24: =+'Espace vert'!J29 -> NC | AC24: =+'Espace vert'!J29 -> NC | AD24: =+Habillement!F29 -> NC | AE24: =+Habillement!I29 -> NC | AF24: =+Habillement!J29 -> NC | AG24: =+'Réserve groupement'!J29 -> NC | AH24: =+Pharmacie!J29 -> NC | AI24: =+Batiment!J29 -> NC | AJ24: =+Cyno!J29 -> NC | AM24: 0
B25: Rayonnement | C25: =+Direction!F30 -> NC | D25: =+Direction!I30 -> NC | E25: =+Direction!J30 -> NC | F25: =Secrétariat!$F30 -> NC | G25: =Secrétariat!$I30 -> NC | H25: =+Secrétariat!J30 -> NC | I25: =+'Chaine de commandement'!F30 -> NC | J25: =+'Chaine de commandement'!I30 -> NC | K25: =+'Chaine de commandement'!J30 -> NC | L25: ='Services administratifs'!$F30 -> NC | M25: ='Services administratifs'!$I30 -> NC | N25: =+'Services administratifs'!J30 -> NC | O25: =STASS!$F30 -> NC | P25: =STASS!$I30 -> NC | Q25: =+STASS!J30 -> NC | R25: =+'Vie collective'!F30 -> NC | S25: =+'Vie collective'!I30 -> NC | T25: =+'Vie collective'!J30 -> NC | U25: =+'Manœuvre et formation'!F30 -> 0 | V25: =+'Manœuvre et formation'!I30 -> NC | W25: =+'Manœuvre et formation'!J30 -> NC | X25: =+APS!F30 -> NC | Y25: =+APS!I30 -> NC | Z25: =+APS!J30 -> NC | AA25: =+'Espace vert'!F30 -> NC | AB25: =+'Espace vert'!J30 -> NC | AC25: =+'Espace vert'!J30 -> NC | AD25: =+Habillement!F30 -> NC | AE25: =+Habillement!I30 -> NC | AF25: =+Habillement!J30 -> NC | AG25: =+'Réserve groupement'!J30 -> NC | AH25: =+Pharmacie!J30 -> NC | AI25: =+Batiment!J30 -> NC | AJ25: =+Cyno!J30 -> NC | AM25: 0
B26: Entreprises extérieures | C26: =+Direction!F31 -> NC | D26: =+Direction!I31 -> NC | E26: =+Direction!J31 -> NC | F26: =Secrétariat!$F31 -> NC | G26: =Secrétariat!$I31 -> NC | H26: =+Secrétariat!J31 -> NC | I26: =+'Chaine de commandement'!F31 -> NC | J26: =+'Chaine de commandement'!I31 -> NC | K26: =+'Chaine de commandement'!J31 -> NC | L26: ='Services administratifs'!$F31 -> NC | M26: ='Services administratifs'!$I31 -> NC | N26: =+'Services administratifs'!J31 -> NC | O26: =STASS!$F31 -> NC | P26: =STASS!$I31 -> NC | Q26: =+STASS!J31 -> NC | R26: =+'Vie collective'!F31 -> NC | S26: =+'Vie collective'!I31 -> NC | T26: =+'Vie collective'!J31 -> NC | U26: =+'Manœuvre et formation'!F31 -> 0 | V26: =+'Manœuvre et formation'!I31 -> NC | W26: =+'Manœuvre et formation'!J31 -> NC | X26: =+APS!F31 -> NC | Y26: =+APS!I31 -> NC | Z26: =+APS!J31 -> NC | AA26: =+'Espace vert'!F31 -> NC | AB26: =+'Espace vert'!J31 -> NC | AC26: =+'Espace vert'!J31 -> NC | AD26: =+Habillement!F31 -> NC | AE26: =+Habillement!I31 -> NC | AF26: =+Habillement!J31 -> NC | AG26: =+'Réserve groupement'!J31 -> NC | AH26: =+Pharmacie!J31 -> NC | AI26: =+Batiment!J31 -> NC | AJ26: =+Cyno!J31 -> NC | AM26: 0
B27: Agressions | C27: =+Direction!F32 -> NC | D27: =+Direction!I32 -> NC | E27: =+Direction!J32 -> NC | F27: =Secrétariat!$F32 -> NC | G27: =Secrétariat!$I32 -> NC | H27: =+Secrétariat!J32 -> NC | I27: =+'Chaine de commandement'!F32 -> NC | J27: =+'Chaine de commandement'!I32 -> NC | K27: =+'Chaine de commandement'!J32 -> NC | L27: ='Services administratifs'!$F32 -> NC | M27: ='Services administratifs'!$I32 -> NC | N27: =+'Services administratifs'!J32 -> NC | O27: =STASS!$F32 -> NC | P27: =STASS!$I32 -> NC | Q27: =+STASS!J32 -> NC | R27: =+'Vie collective'!F32 -> NC | S27: =+'Vie collective'!I32 -> NC | T27: =+'Vie collective'!J32 -> NC | U27: =+'Manœuvre et formation'!F32 -> 0 | V27: =+'Manœuvre et formation'!I32 -> NC | W27: =+'Manœuvre et formation'!J32 -> NC | X27: =+APS!F32 -> NC | Y27: =+APS!I32 -> NC | Z27: =+APS!J32 -> NC | AA27: =+'Espace vert'!F32 -> NC | AB27: =+'Espace vert'!J32 -> NC | AC27: =+'Espace vert'!J32 -> NC | AD27: =+Habillement!F32 -> NC | AE27: =+Habillement!I32 -> NC | AF27: =+Habillement!J32 -> NC | AG27: =+'Réserve groupement'!J32 -> NC | AH27: =+Pharmacie!J32 -> NC | AI27: =+Batiment!J32 -> NC | AJ27: =+Cyno!J32 -> NC | AM27: 0
B28: Risques psychosociaux | C28: =+Direction!F33 -> NC | D28: =+Direction!I33 -> NC | E28: =+Direction!J33 -> NC | F28: =Secrétariat!$F33 -> NC | G28: =Secrétariat!$I33 -> NC | H28: =+Secrétariat!J33 -> NC | I28: =+'Chaine de commandement'!F33 -> NC | J28: =+'Chaine de commandement'!I33 -> NC | K28: =+'Chaine de commandement'!J33 -> NC | L28: ='Services administratifs'!$F33 -> NC | M28: ='Services administratifs'!$I33 -> NC | N28: =+'Services administratifs'!J33 -> NC | O28: =STASS!$F33 -> 0 | P28: =STASS!$I33 -> NC | Q28: =+STASS!J33 -> NC | R28: =+'Vie collective'!F33 -> NC | S28: =+'Vie collective'!I33 -> NC | T28: =+'Vie collective'!J33 -> NC | U28: =+'Manœuvre et formation'!F33 -> NC | V28: =+'Manœuvre et formation'!I33 -> NC | W28: =+'Manœuvre et formation'!J33 -> NC | X28: =+APS!F33 -> NC | Y28: =+APS!I33 -> NC | Z28: =+APS!J33 -> NC | AA28: =+'Espace vert'!F33 -> NC | AB28: =+'Espace vert'!J33 -> NC | AC28: =+'Espace vert'!J33 -> NC | AD28: =+Habillement!F33 -> NC | AE28: =+Habillement!I33 -> NC | AF28: =+Habillement!J33 -> NC | AG28: =+'Réserve groupement'!J33 -> NC | AH28: =+Pharmacie!J33 -> NC | AI28: =+Batiment!J33 -> NC | AJ28: =+Cyno!J33 -> NC | AM28: 0
B29: Moyenne de l'UT | E29: =AVERAGE(E5:E28) ->  | F29: =AVERAGE(F5:F28) -> 4 | I29: =AVERAGE(I5:I28) -> 4 | J29: =AVERAGE(J5:J28) ->  | K29: =AVERAGE(K5:K28) ->  | L29: =AVERAGE(L5:L28) -> 4 | M29: =AVERAGE(M5:M28) ->  | O29: 1.333333333 | R29: =AVERAGE(R5:R28) ->  | U29: 0 | AG29: =AVERAGE(AG5:AG28) ->  | AL29: =+AVERAGE(AL5:AL28) ->  | AM29: =AVERAGE(AM5:AM28) -> 0
B30: Somme de l'UT | E30: =SUM(E6:E28) -> 0 | F30: 4 | G30: 0 | H30: 0 | I30: 4 | J30: 0 | K30: 0 | L30: 4 | M30: 0 | N30: 0 | O30: 4 | P30: 0 | Q30: 0 | R30: 0 | S30: 0 | T30: 0 | U30: 0 | V30: 0 | W30: 0 | X30: 0 | Y30: 0 | Z30: 0 | AA30: 0 | AB30: 0 | AC30: 0 | AD30: 0 | AE30: 0 | AF30: 0 | AG30: =SUM(AG6:AG28) -> 0 | AH30: 0 | AI30: 0 | AJ30: 0 | AL30: =+SUM(AL5:AL28) ->  | AM30: =+SUM(AM5:AM28) -> 0

Sheet Plan d'Action
A1: 5. PROPOSITION d'un PLAN D'ACTIONS
A2: Date de rédaction:
A3: date de mise à jour:
A4: Rédacteur: | E4: (Préventeur cdg63 )
A5: Participants:
A7: Risque | B7: Unité de travail | C7: G * M | D7: D * E | E7: Note | F7: Problème(s) énoncé(s) | G7: Solution(s) proposée(s) | H7: Coût ( € ) | I7: Délais | J7: Pilote de l'action | K7: Etat d'avancement
A8: =+Direction!A10 -> Chute de plain pied | B8: =+Direction!C$6 -> Direction | C8: =+'Grille évaluation'!C5 -> NC | D8: =+'Grille évaluation'!D5 -> NC | E8: =+'Grille évaluation'!E5 -> NC | F8: =+Direction!C10 -> 0
A9: =+Direction!A11 -> Chute de hauteur | B9: =+Direction!C$6 -> Direction | C9: =+'Grille évaluation'!C6 -> NC | D9: =+'Grille évaluation'!D6 -> NC | E9: =+'Grille évaluation'!E6 -> NC | F9: =+Direction!C11 -> 0
A10: =+Direction!A12 -> Effondrement et chutes d'objets | B10: =+Direction!C$6 -> Direction | C10: =+'Grille évaluation'!C7 -> NC | D10: =+'Grille évaluation'!D7 -> NC | E10: =+'Grille évaluation'!E7 -> NC | F10: =+Direction!C12 -> 0
A11: =+Direction!A13 -> Manutention manuelle | B11: =+Direction!C$6 -> Direction | C11: =+'Grille évaluation'!C8 -> NC | D11: =+'Grille évaluation'!D8 -> NC | E11: =+'Grille évaluation'!E8 -> NC | F11: =+Direction!C13 -> 0
A12: =+Direction!A14 -> Ergonomie | B12: =+Direction!C$6 -> Direction | C12: =+'Grille évaluation'!C9 -> NC | D12: =+'Grille évaluation'!D9 -> NC | E12: =+'Grille évaluation'!E9 -> NC | F12: =+Direction!C14 -> 0
A13: =+Direction!A15 -> Risque Routier - Conduite d'engins | B13: =+Direction!C$6 -> Direction | C13: =+'Grille évaluation'!C10 -> NC | D13: =+'Grille évaluation'!D10 -> NC | E13: =+'Grille évaluation'!E10 -> NC | F13: =+Direction!C15 -> 0
A14: =+Direction!A16 -> Circulation piétonne | B14: =+Direction!C$6 -> Direction | C14: =+'Grille évaluation'!C11 -> NC | D14: =+'Grille évaluation'!D11 -> NC | E14: =+'Grille évaluation'!E11 -> NC | F14: =+Direction!C16 -> 0
A15: =+Direction!A17 -> Risques liés aux machines et outils | B15: =+Direction!C$6 -> Direction | C15: =+'Grille évaluation'!C12 -> NC | D15: =+'Grille évaluation'!D12 -> NC | E15: =+'Grille évaluation'!E12 -> NC | F15: =+Direction!C17 -> 0
A16: =+Direction!A18 -> Bruit | B16: =+Direction!C$6 -> Direction | C16: =+'Grille évaluation'!C13 -> NC | D16: =+'Grille évaluation'!D13 -> NC | E16: =+'Grille évaluation'!E13 -> NC | F16: =+Direction!C18 -> 0
A17: =+Direction!A19 -> Vibrations | B17: =+Direction!C$6 -> Direction | C17: =+'Grille évaluation'!C14 -> NC | D17: =+'Grille évaluation'!D14 -> NC | E17: =+'Grille évaluation'!E14 -> NC | F17: =+Direction!C19 -> 0
A18: =+Direction!A20 -> Risques chimiques | B18: =+Direction!C$6 -> Direction | C18: =+'Grille évaluation'!C15 -> NC | D18: =+'Grille évaluation'!D15 -> NC | E18: =+'Grille évaluation'!E15 -> NC | F18: =+Direction!C20 -> 0
A19: =+Direction!A21 -> Amiante | B19: =+Direction!C$6 -> Direction | C19: =+'Grille évaluation'!C16 -> NC | D19: =+'Grille évaluation'!D16 -> NC | E19: =+'Grille évaluation'!E16 -> NC | F19: =+Direction!C21 -> 0
A20: =+Direction!A22 -> Aération et assainissement de l'air | B20: =+Direction!C$6 -> Direction | C20: =+'Grille évaluation'!C17 -> NC | D20: =+'Grille évaluation'!D17 -> NC | E20: =+'Grille évaluation'!E17 -> NC | F20: =+Direction!C22 -> 0
A21: =+Direction!A23 -> Risque Electrique | B21: =+Direction!C$6 -> Direction | C21: =+'Grille évaluation'!C18 -> NC | D21: =+'Grille évaluation'!D18 -> NC | E21: =+'Grille évaluation'!E18 -> NC | F21: =+Direction!C23 -> 0
A22: =+Direction!A24 -> Incendie - Explosion | B22: =+Direction!C$6 -> Direction | C22: =+'Grille évaluation'!C19 -> NC | D22: =+'Grille évaluation'!D19 -> NC | E22: =+'Grille évaluation'!E19 -> NC | F22: =+Direction!C24 -> 0
A23: =+Direction!A25 -> Risques liés à l'éclairage | B23: =+Direction!C$6 -> Direction | C23: =+'Grille évaluation'!C20 -> NC | D23: =+'Grille évaluation'!D20 -> NC | E23: =+'Grille évaluation'!E20 -> NC | F23: =+Direction!C25 -> 0
A24: =+Direction!A26 -> Utilisation d'écran | B24: =+Direction!C$6 -> Direction | C24: =+'Grille évaluation'!C21 -> NC | D24: =+'Grille évaluation'!D21 -> NC | E24: =+'Grille évaluation'!E21 -> NC | F24: =+Direction!C26 -> 0
A25: =+Direction!A27 -> Risques liés aux ambiances climatiques et thermiques | B25: =+Direction!C$6 -> Direction | C25: =+'Grille évaluation'!C22 -> NC | D25: =+'Grille évaluation'!D22 -> NC | E25: =+'Grille évaluation'!E22 -> NC | F25: =+Direction!C27 -> 0
A26: =+Direction!A28 -> Risque biologique | B26: =+Direction!C$6 -> Direction | C26: =+'Grille évaluation'!C23 -> NC | D26: =+'Grille évaluation'!D23 -> NC | E26: =+'Grille évaluation'!E23 -> NC | F26: =+Direction!C28 -> 0
A27: =+Direction!A29 -> Manque d'hygiène | B27: =+Direction!C$6 -> Direction | C27: =+'Grille évaluation'!C24 -> NC | D27: =+'Grille évaluation'!D24 -> NC | E27: =+'Grille évaluation'!E24 -> NC | F27: =+Direction!C29 -> 0
A28: =+Direction!A30 -> Rayonnement | B28: =+Direction!C$6 -> Direction | C28: =+'Grille évaluation'!C25 -> NC | D28: =+'Grille évaluation'!D25 -> NC | E28: =+'Grille évaluation'!E25 -> NC | F28: =+Direction!C30 -> 0
A29: =+Direction!A31 -> Entreprises Extérieures | B29: =+Direction!C$6 -> Direction | C29: =+'Grille évaluation'!C26 -> NC | D29: =+'Grille évaluation'!D26 -> NC | E29: =+'Grille évaluation'!E26 -> NC | F29: =+Direction!C31 -> 0
A30: =+Direction!A32 -> Agressions | B30: =+Direction!C$6 -> Direction | C30: =+'Grille évaluation'!C27 -> NC | D30: =+'Grille évaluation'!D27 -> NC | E30: =+'Grille évaluation'!E27 -> NC | F30: =+Direction!C32 -> 0
A31: =+Direction!A33 -> Risques psychosociaux | B31: =+Direction!C$6 -> Direction | C31: =+'Grille évaluation'!C28 -> NC | D31: =+'Grille évaluation'!D28 -> NC | E31: =+'Grille évaluation'!E28 -> NC | F31: =+Direction!C33 -> Sur cette unité, les risques psychosociaux sont présents, les principales composantes à maitriser sont : 1/ intensité du travail : - ; 2 / Emotionnel : - 3 / Autonomie : - 4 / Rapports sociaux : - 5 / Conflits de Valeur : - 6 / Insécurité de la situation de travail: -
A32: =+Secrétariat!A10 -> Chute de plain pied | B32: =+Secrétariat!C$6 -> Secrétariat | C32: =+'Grille évaluation'!F5 -> NC | D32: =+'Grille évaluation'!G5 -> NC | E32: =+'Grille évaluation'!H5 -> NC | F32: =+Secrétariat!C10 -> 0
A33: =+Secrétariat!A11 -> Chute de hauteur | B33: =+Secrétariat!C$6 -> Secrétariat | C33: =+'Grille évaluation'!F6 -> 4 | D33: =+'Grille évaluation'!G6 -> NC | E33: =+'Grille évaluation'!H6 -> NC | F33: =+Secrétariat!C11 -> 0
A34: =+Secrétariat!A12 -> Effondrement et chutes d'objets | B34: =+Secrétariat!C$6 -> Secrétariat | C34: =+'Grille évaluation'!F7 -> NC | D34: =+'Grille évaluation'!G7 -> NC | E34: =+'Grille évaluation'!H7 -> NC | F34: =+Secrétariat!C12 -> 0
A35: =+Secrétariat!A13 -> Manutention manuelle | B35: =+Secrétariat!C$6 -> Secrétariat | C35: =+'Grille évaluation'!F8 -> NC | D35: =+'Grille évaluation'!G8 -> NC | E35: =+'Grille évaluation'!H8 -> NC | F35: =+Secrétariat!C13 -> 0
A36: =+Secrétariat!A14 -> Ergonomie | B36: =+Secrétariat!C$6 -> Secrétariat | C36: =+'Grille évaluation'!F9 -> NC | D36: =+'Grille évaluation'!G9 -> NC | E36: =+'Grille évaluation'!H9 -> NC | F36: =+Secrétariat!C14 -> 0
A37: =+Secrétariat!A15 -> Risque Routier - Conduite d'engins | B37: =+Secrétariat!C$6 -> Secrétariat | C37: =+'Grille évaluation'!F10 -> NC | D37: =+'Grille évaluation'!G10 -> NC | E37: =+'Grille évaluation'!H10 -> NC | F37: =+Secrétariat!C15 -> 0
A38: =+Secrétariat!A16 -> Circulation piétonne | B38: =+Secrétariat!C$6 -> Secrétariat | C38: =+'Grille évaluation'!F11 -> NC | D38: =+'Grille évaluation'!G11 -> NC | E38: =+'Grille évaluation'!H11 -> NC | F38: =+Secrétariat!C16 -> 0
A39: =+Secrétariat!A17 -> Risques liés aux machines et outils | B39: =+Secrétariat!C$6 -> Secrétariat | C39: =+'Grille évaluation'!F12 -> NC | D39: =+'Grille évaluation'!G12 -> NC | E39: =+'Grille évaluation'!H12 -> NC | F39: =+Secrétariat!C17 -> 0
A40: =+Secrétariat!A18 -> Bruit | B40: =+Secrétariat!C$6 -> Secrétariat | C40: =+'Grille évaluation'!F13 -> NC | D40: =+'Grille évaluation'!G13 -> NC | E40: =+'Grille évaluation'!H13 -> NC | F40: =+Secrétariat!C18 -> 0
A41: =+Secrétariat!A19 -> Vibrations | B41: =+Secrétariat!C$6 -> Secrétariat | C41: =+'Grille évaluation'!F14 -> NC | D41: =+'Grille évaluation'!G14 -> NC | E41: =+'Grille évaluation'!H14 -> NC | F41: =+Secrétariat!C19 -> 0
A42: =+Secrétariat!A20 -> Risques chimiques | B42: =+Secrétariat!C$6 -> Secrétariat | C42: =+'Grille évaluation'!F15 -> NC | D42: =+'Grille évaluation'!G15 -> NC | E42: =+'Grille évaluation'!H15 -> NC | F42: =+Secrétariat!C20 -> 0
A43: =+Secrétariat!A21 -> Amiante | B43: =+Secrétariat!C$6 -> Secrétariat | C43: =+'Grille évaluation'!F16 -> NC | D43: =+'Grille évaluation'!G16 -> NC | E43: =+'Grille évaluation'!H16 -> NC | F43: =+Secrétariat!C21 -> 0
A44: =+Secrétariat!A22 -> Aération et assainissement de l'air | B44: =+Secrétariat!C$6 -> Secrétariat | C44: =+'Grille évaluation'!F17 -> NC | D44: =+'Grille évaluation'!G17 -> NC | E44: =+'Grille évaluation'!H17 -> NC | F44: =+Secrétariat!C22 -> 0
A45: =+Secrétariat!A23 -> Risque Electrique | B45: =+Secrétariat!C$6 -> Secrétariat | C45: =+'Grille évaluation'!F18 -> NC | D45: =+'Grille évaluation'!G18 -> NC | E45: =+'Grille évaluation'!H18 -> NC | F45: =+Secrétariat!C23 -> 0
A46: =+Secrétariat!A24 -> Incendie - Explosion | B46: =+Secrétariat!C$6 -> Secrétariat | C46: =+'Grille évaluation'!F19 -> NC | D46: =+'Grille évaluation'!G19 -> NC | E46: =+'Grille évaluation'!H19 -> NC | F46: =+Secrétariat!C24 -> 0
A47: =+Secrétariat!A25 -> Risques liés à l'éclairage | B47: =+Secrétariat!C$6 -> Secrétariat | C47: =+'Grille évaluation'!F20 -> NC | D47: =+'Grille évaluation'!G20 -> NC | E47: =+'Grille évaluation'!H20 -> NC | F47: =+Secrétariat!C25 -> 0
A48: =+Secrétariat!A26 -> Utilisation d'écran | B48: =+Secrétariat!C$6 -> Secrétariat | C48: =+'Grille évaluation'!F21 -> NC | D48: =+'Grille évaluation'!G21 -> NC | E48: =+'Grille évaluation'!H21 -> NC | F48: =+Secrétariat!C26 -> 0
A49: =+Secrétariat!A27 -> Risques liés aux ambiances climatiques et thermiques | B49: =+Secrétariat!C$6 -> Secrétariat | C49: =+'Grille évaluation'!F22 -> NC | D49: =+'Grille évaluation'!G22 -> NC | E49: =+'Grille évaluation'!H22 -> NC | F49: =+Secrétariat!C27 -> 0
A50: =+Secrétariat!A28 -> Risque biologique | B50: =+Secrétariat!C$6 -> Secrétariat | C50: =+'Grille évaluation'!F23 -> NC | D50: =+'Grille évaluation'!G23 -> NC | E50: =+'Grille évaluation'!H23 -> NC | F50: =+Secrétariat!C28 -> 0
A51: =+Secrétariat!A29 -> Manque d'hygiène | B51: =+Secrétariat!C$6 -> Secrétariat | C51: =+'Grille évaluation'!F24 -> NC | D51: =+'Grille évaluation'!G24 -> NC | E51: =+'Grille évaluation'!H24 -> NC | F51: =+Secrétariat!C29 -> 0
A52: =+Secrétariat!A30 -> Rayonnement | B52: =+Secrétariat!C$6 -> Secrétariat | C52: =+'Grille évaluation'!F25 -> NC | D52: =+'Grille évaluation'!G25 -> NC | E52: =+'Grille évaluation'!H25 -> NC | F52: =+Secrétariat!C30 -> 0
A53: =+Secrétariat!A31 -> Entreprises Extérieures | B53: =+Secrétariat!C$6 -> Secrétariat | C53: =+'Grille évaluation'!F26 -> NC | D53: =+'Grille évaluation'!G26 -> NC | E53: =+'Grille évaluation'!H26 -> NC | F53: =+Secrétariat!C31 -> 0
A54: =+Secrétariat!A32 -> Agressions | B54: =+Secrétariat!C$6 -> Secrétariat | C54: =+'Grille évaluation'!F27 -> NC | D54: =+'Grille évaluation'!G27 -> NC | E54: =+'Grille évaluation'!H27 -> NC | F54: =+Secrétariat!C32 -> 0
A55: =+Secrétariat!A33 -> Risques psychosociaux | B55: =+Secrétariat!C$6 -> Secrétariat | C55: =+'Grille évaluation'!F28 -> NC | D55: =+'Grille évaluation'!G28 -> NC | E55: =+'Grille évaluation'!H28 -> NC | F55: =+Secrétariat!C33 -> Sur cette unité, les risques psychosociaux sont présents, les principales composantes à maitriser sont : 1/ intensité du travail : - ; 2 / Emotionnel : - 3 / Autonomie : - 4 / Rapports sociaux : - 5 / Conflits de Valeur : - 6 / Insécurité de la situation de travail: -
A56: =+'Chaine de commandement'!A10 -> Chute de plain pied | B56: =+'Chaine de commandement'!C$6 -> Chaine de commandement | C56: =+'Grille évaluation'!I5 -> NC | D56: =+'Grille évaluation'!J5 -> NC | E56: =+'Grille évaluation'!K5 -> NC | F56: =+'Chaine de commandement'!C10 -> 0
A57: =+'Chaine de commandement'!A11 -> Chute de hauteur | B57: =+'Chaine de commandement'!C$6 -> Chaine de commandement | C57: =+'Grille évaluation'!I6 -> 4 | D57: =+'Grille évaluation'!J6 -> NC | E57: =+'Grille évaluation'!K6 -> NC | F57: =+'Chaine de commandement'!C11 -> 0
A58: =+'Chaine de commandement'!A12 -> Effondrement et chutes d'objets | B58: =+'Chaine de commandement'!C$6 -> Chaine de commandement | C58: =+'Grille évaluation'!I7 -> NC | D58: =+'Grille évaluation'!J7 -> NC | E58: =+'Grille évaluation'!K7 -> NC | F58: =+'Chaine de commandement'!C12 -> 0
A59: =+'Chaine de commandement'!A13 -> Manutention manuelle | B59: =+'Chaine de commandement'!C$6 -> Chaine de commandement | C59: =+'Grille évaluation'!I8 -> NC | D59: =+'Grille évaluation'!J8 -> NC | E59: =+'Grille évaluation'!K8 -> NC | F59: =+'Chaine de commandement'!C13 -> 0
A60: =+'Chaine de commandement'!A14 -> Ergonomie | B60: =+'Chaine de commandement'!C$6 -> Chaine de commandement | C60: =+'Grille évaluation'!I9 -> NC | D60: =+'Grille évaluation'!J9 -> NC | E60: =+'Grille évaluation'!K9 -> NC | F60: =+'Chaine de commandement'!C14 -> 0
A61: =+'Chaine de commandement'!A15 -> Risque Routier - Conduite d'engins | B61: =+'Chaine de commandement'!C$6 -> Chaine de commandement | C61: =+'Grille évaluation'!I10 -> NC | D61: =+'Grille évaluation'!J10 -> NC | E61: =+'Grille évaluation'!K10 -> NC | F61: =+'Chaine de commandement'!C15 -> 0
A62: =+'Chaine de commandement'!A16 -> Circulation piétonne | B62: =+'Chaine de commandement'!C$6 -> Chaine de commandement | C62: =+'Grille évaluation'!I11 -> NC | D62: =+'Grille évaluation'!J11 -> NC | E62: =+'Grille évaluation'!K11 -> NC | F62: =+'Chaine de commandement'!C16 -> 0
A63: =+'Chaine de commandement'!A17 -> Risques liés aux machines et outils | B63: =+'Chaine de commandement'!C$6 -> Chaine de commandement | C63: =+'Grille évaluation'!I12 -> NC | D63: =+'Grille évaluation'!J12 -> NC | E63: =+'Grille évaluation'!K12 -> NC | F63: =+'Chaine de commandement'!C17 -> 0
A64: =+'Chaine de commandement'!A18 -> Bruit | B64: =+'Chaine de commandement'!C$6 -> Chaine de commandement | C64: =+'Grille évaluation'!I13 -> NC | D64: =+'Grille évaluation'!J13 -> NC | E64: =+'Grille évaluation'!K13 -> NC | F64: =+'Chaine de commandement'!C18 -> 0
A65: =+'Chaine de commandement'!A19 -> Vibrations | B65: =+'Chaine de commandement'!C$6 -> Chaine de commandement | C65: =+'Grille évaluation'!I14 -> NC | D65: =+'Grille évaluation'!J14 -> NC | E65: =+'Grille évaluation'!K14 -> NC | F65: =+'Chaine de commandement'!C19 -> 0
A66: =+'Chaine de commandement'!A20 -> Risques chimiques | B66: =+'Chaine de commandement'!C$6 -> Chaine de commandement | C66: =+'Grille évaluation'!I15 -> NC | D66: =+'Grille évaluation'!J15 -> NC | E66: =+'Grille évaluation'!K15 -> NC | F66: =+'Chaine de commandement'!C20 -> 0
A67: =+'Chaine de commandement'!A21 -> Amiante | B67: =+'Chaine de commandement'!C$6 -> Chaine de commandement | C67: =+'Grille évaluation'!I16 -> NC | D67: =+'Grille évaluation'!J16 -> NC | E67: =+'Grille évaluation'!K16 -> NC | F67: =+'Chaine de commandement'!C21 -> 0
A68: =+'Chaine de commandement'!A22 -> Aération et assainissement de l'air | B68: =+'Chaine de commandement'!C$6 -> Chaine de commandement | C68: =+'Grille évaluation'!I17 -> NC | D68: =+'Grille évaluation'!J17 -> NC | E68: =+'Grille évaluation'!K17 -> NC | F68: =+'Chaine de commandement'!C22 -> 0
A69: =+'Chaine de commandement'!A23 -> Risque Electrique | B69: =+'Chaine de commandement'!C$6 -> Chaine de commandement | C69: =+'Grille évaluation'!I18 -> NC | D69: =+'Grille évaluation'!J18 -> NC | E69: =+'Grille évaluation'!K18 -> NC | F69: =+'Chaine de commandement'!C23 -> 0
A70: =+'Chaine de commandement'!A24 -> Incendie - Explosion | B70: =+'Chaine de commandement'!C$6 -> Chaine de commandement | C70: =+'Grille évaluation'!I19 -> NC | D70: =+'Grille évaluation'!J19 -> NC | E70: =+'Grille évaluation'!K19 -> NC | F70: =+'Chaine de commandement'!C24 -> 0
A71: =+'Chaine de commandement'!A25 -> Risques liés à l'éclairage | B71: =+'Chaine de commandement'!C$6 -> Chaine de commandement | C71: =+'Grille évaluation'!I20 -> NC | D71: =+'Grille évaluation'!J20 -> NC | E71: =+'Grille évaluation'!K20 -> NC | F71: =+'Chaine de commandement'!C25 -> 0
A72: =+'Chaine de commandement'!A26 -> Utilisation d'écran | B72: =+'Chaine de commandement'!C$6 -> Chaine de commandement | C72: =+'Grille évaluation'!I21 -> NC | D72: =+'Grille évaluation'!J21 -> NC | E72: =+'Grille évaluation'!K21 -> NC | F72: =+'Chaine de commandement'!C26 -> 0
A73: =+'Chaine de commandement'!A27 -> Risques liés aux ambiances climatiques et thermiques | B73: =+'Chaine de commandement'!C$6 -> Chaine de commandement | C73: =+'Grille évaluation'!I22 -> NC | D73: =+'Grille évaluation'!J22 -> NC | E73: =+'Grille évaluation'!K22 -> NC | F73: =+'Chaine de commandement'!C27 -> 0
A74: =+'Chaine de commandement'!A28 -> Risque biologique | B74: =+'Chaine de commandement'!C$6 -> Chaine de commandement | C74: =+'Grille évaluation'!I23 -> NC | D74: =+'Grille évaluation'!J23 -> NC | E74: =+'Grille évaluation'!K23 -> NC | F74: =+'Chaine de commandement'!C28 -> 0
A75: =+'Chaine de commandement'!A29 -> Manque d'hygiène | B75: =+'Chaine de commandement'!C$6 -> Chaine de commandement | C75: =+'Grille évaluation'!I24 -> NC | D75: =+'Grille évaluation'!J24 -> NC | E75: =+'Grille évaluation'!K24 -> NC | F75: =+'Chaine de commandement'!C29 -> 0
A76: =+'Chaine de commandement'!A30 -> Rayonnement | B76: =+'Chaine de commandement'!C$6 -> Chaine de commandement | C76: =+'Grille évaluation'!I25 -> NC | D76: =+'Grille évaluation'!J25 -> NC | E76: =+'Grille évaluation'!K25 -> NC | F76: =+'Chaine de commandement'!C30 -> 0
A77: =+'Chaine de commandement'!A31 -> Entreprises Extérieures | B77: =+'Chaine de commandement'!C$6 -> Chaine de commandement | C77: =+'Grille évaluation'!I26 -> NC | D77: =+'Grille évaluation'!J26 -> NC | E77: =+'Grille évaluation'!K26 -> NC | F77: =+'Chaine de commandement'!C31 -> 0
A78: =+'Chaine de commandement'!A32 -> Agressions | B78: =+'Chaine de commandement'!C$6 -> Chaine de commandement | C78: =+'Grille évaluation'!I27 -> NC | D78: =+'Grille évaluation'!J27 -> NC | E78: =+'Grille évaluation'!K27 -> NC | F78: =+'Chaine de commandement'!C32 -> 0
A79: =+'Chaine de commandement'!A33 -> Risques psychosociaux | B79: =+'Chaine de commandement'!C$6 -> Chaine de commandement | C79: =+'Grille évaluation'!I28 -> NC | D79: =+'Grille évaluation'!J28 -> NC | E79: =+'Grille évaluation'!K28 -> NC | F79: =+'Chaine de commandement'!C33 -> Sur cette unité, les risques psychosociaux sont présents, les principales composantes à maitriser sont : 1/ intensité du travail : - ; 2 / Emotionnel : - 3 / Autonomie : - 4 / Rapports sociaux : - 5 / Conflits de Valeur : - 6 / Insécurité de la situation de travail: -
A80: =+'Services administratifs'!A10 -> Chute de plain pied | B80: =+'Services administratifs'!C$6 -> Services administratifs | C80: =+'Grille évaluation'!L5 -> NC | D80: =+'Grille évaluation'!M5 -> NC | E80: =+'Services administratifs'!J10 -> NC | F80: =+'Services administratifs'!C10 -> 0
A81: =+'Services administratifs'!A11 -> Chute de hauteur | B81: =+'Services administratifs'!C$6 -> Services administratifs | C81: =+'Grille évaluation'!L6 -> 4 | D81: =+'Grille évaluation'!M6 -> NC | E81: =+'Services administratifs'!J11 -> NC | F81: =+'Services administratifs'!C11 -> 0
A82: =+'Services administratifs'!A12 -> Effondrement et chutes d'objets | B82: =+'Services administratifs'!C$6 -> Services administratifs | C82: =+'Grille évaluation'!L7 -> NC | D82: =+'Grille évaluation'!M7 -> NC | E82: =+'Services administratifs'!J12 -> NC | F82: =+'Services administratifs'!C12 -> 0
A83: =+'Services administratifs'!A13 -> Manutention manuelle | B83: =+'Services administratifs'!C$6 -> Services administratifs | C83: =+'Grille évaluation'!L8 -> NC | D83: =+'Grille évaluation'!M8 -> NC | E83: =+'Services administratifs'!J13 -> NC | F83: =+'Services administratifs'!C13 -> 0
A84: =+'Services administratifs'!A14 -> Ergonomie | B84: =+'Services administratifs'!C$6 -> Services administratifs | C84: =+'Grille évaluation'!L9 -> NC | D84: =+'Grille évaluation'!M9 -> NC | E84: =+'Services administratifs'!J14 -> NC | F84: =+'Services administratifs'!C14 -> 0
A85: =+'Services administratifs'!A15 -> Risque Routier - Conduite d'engins | B85: =+'Services administratifs'!C$6 -> Services administratifs | C85: =+'Grille évaluation'!L10 -> NC | D85: =+'Grille évaluation'!M10 -> NC | E85: =+'Services administratifs'!J15 -> NC | F85: =+'Services administratifs'!C15 -> 0
A86: =+'Services administratifs'!A16 -> Circulation piétonne | B86: =+'Services administratifs'!C$6 -> Services administratifs | C86: =+'Grille évaluation'!L11 -> NC | D86: =+'Grille évaluation'!M11 -> NC | E86: =+'Services administratifs'!J16 -> NC | F86: =+'Services administratifs'!C16 -> 0
A87: =+'Services administratifs'!A17 -> Risques liés aux machines et outils | B87: =+'Services administratifs'!C$6 -> Services administratifs | C87: =+'Grille évaluation'!L12 -> NC | D87: =+'Grille évaluation'!M12 -> NC | E87: =+'Services administratifs'!J17 -> NC | F87: =+'Services administratifs'!C17 -> 0
A88: =+'Services administratifs'!A18 -> Bruit | B88: =+'Services administratifs'!C$6 -> Services administratifs | C88: =+'Grille évaluation'!L13 -> NC | D88: =+'Grille évaluation'!M13 -> NC | E88: =+'Services administratifs'!J18 -> NC | F88: =+'Services administratifs'!C18 -> 0
A89: =+'Services administratifs'!A19 -> Vibrations | B89: =+'Services administratifs'!C$6 -> Services administratifs | C89: =+'Grille évaluation'!L14 -> NC | D89: =+'Grille évaluation'!M14 -> NC | E89: =+'Services administratifs'!J19 -> NC | F89: =+'Services administratifs'!C19 -> 0
A90: =+'Services administratifs'!A20 -> Risques chimiques | B90: =+'Services administratifs'!C$6 -> Services administratifs | C90: =+'Grille évaluation'!L15 -> NC | D90: =+'Grille évaluation'!M15 -> NC | E90: =+'Services administratifs'!J20 -> NC | F90: =+'Services administratifs'!C20 -> 0
A91: =+'Services administratifs'!A21 -> Amiante | B91: =+'Services administratifs'!C$6 -> Services administratifs | C91: =+'Grille évaluation'!L16 -> NC | D91: =+'Grille évaluation'!M16 -> NC | E91: =+'Services administratifs'!J21 -> NC | F91: =+'Services administratifs'!C21 -> 0
A92: =+'Services administratifs'!A22 -> Aération et assainissement de l'air | B92: =+'Services administratifs'!C$6 -> Services administratifs | C92: =+'Grille évaluation'!L17 -> NC | D92: =+'Grille évaluation'!M17 -> NC | E92: =+'Services administratifs'!J22 -> NC | F92: =+'Services administratifs'!C22 -> 0
A93: =+'Services administratifs'!A23 -> Risque Electrique | B93: =+'Services administratifs'!C$6 -> Services administratifs | C93: =+'Grille évaluation'!L18 -> NC | D93: =+'Grille évaluation'!M18 -> NC | E93: =+'Services administratifs'!J23 -> NC | F93: =+'Services administratifs'!C23 -> 0
A94: =+'Services administratifs'!A24 -> Incendie - Explosion | B94: =+'Services administratifs'!C$6 -> Services administratifs | C94: =+'Grille évaluation'!L19 -> NC | D94: =+'Grille évaluation'!M19 -> NC | E94: =+'Services administratifs'!J24 -> NC | F94: =+'Services administratifs'!C24 -> 0
A95: =+'Services administratifs'!A25 -> Risques liés à l'éclairage | B95: =+'Services administratifs'!C$6 -> Services administratifs | C95: =+'Grille évaluation'!L20 -> NC | D95: =+'Grille évaluation'!M20 -> NC | E95: =+'Services administratifs'!J25 -> NC | F95: =+'Services administratifs'!C25 -> 0
A96: =+'Services administratifs'!A26 -> Utilisation d'écran | B96: =+'Services administratifs'!C$6 -> Services administratifs | C96: =+'Grille évaluation'!L21 -> NC | D96: =+'Grille évaluation'!M21 -> NC | E96: =+'Services administratifs'!J26 -> NC | F96: =+'Services administratifs'!C26 -> 0
A97: =+'Services administratifs'!A27 -> Risques liés aux ambiances climatiques et thermiques | B97: =+'Services administratifs'!C$6 -> Services administratifs | C97: =+'Grille évaluation'!L22 -> NC | D97: =+'Grille évaluation'!M22 -> NC | E97: =+'Services administratifs'!J27 -> NC | F97: =+'Services administratifs'!C27 -> 0
A98: =+'Services administratifs'!A28 -> Risque biologique | B98: =+'Services administratifs'!C$6 -> Services administratifs | C98: =+'Grille évaluation'!L23 -> NC | D98: =+'Grille évaluation'!M23 -> NC | E98: =+'Services administratifs'!J28 -> NC | F98: =+'Services administratifs'!C28 -> 0
A99: =+'Services administratifs'!A29 -> Manque d'hygiène | B99: =+'Services administratifs'!C$6 -> Services administratifs | C99: =+'Grille évaluation'!L24 -> NC | D99: =+'Grille évaluation'!M24 -> NC | E99: =+'Services administratifs'!J29 -> NC | F99: =+'Services administratifs'!C29 -> 0
A100: =+'Services administratifs'!A30 -> Rayonnement | B100: =+'Services administratifs'!C$6 -> Services administratifs | C100: =+'Grille évaluation'!L25 -> NC | D100: =+'Grille évaluation'!M25 -> NC | E100: =+'Services administratifs'!J30 -> NC | F100: =+'Services administratifs'!C30 -> 0
A101: =+'Services administratifs'!A31 -> Entreprises Extérieures | B101: =+'Services administratifs'!C$6 -> Services administratifs | C101: =+'Grille évaluation'!L26 -> NC | D101: =+'Grille évaluation'!M26 -> NC | E101: =+'Services administratifs'!J31 -> NC | F101: =+'Services administratifs'!C31 -> 0
A102: =+'Services administratifs'!A32 -> Agressions | B102: =+'Services administratifs'!C$6 -> Services administratifs | C102: =+'Grille évaluation'!L27 -> NC | D102: =+'Grille évaluation'!M27 -> NC | E102: =+'Services administratifs'!J32 -> NC | F102: =+'Services administratifs'!C32 -> 0
A103: =+'Services administratifs'!A33 -> Risques psychosociaux | B103: =+'Services administratifs'!C$6 -> Services administratifs | C103: =+'Grille évaluation'!L28 -> NC | D103: =+'Grille évaluation'!M28 -> NC | E103: =+'Services administratifs'!J33 -> NC | F103: =+'Services administratifs'!C33 -> Sur cette unité, les risques psychosociaux sont présents, les principales composantes à maitriser sont : 1/ intensité du travail : - ; 2 / Emotionnel : - 3 / Autonomie : - 4 / Rapports sociaux : - 5 / Conflits de Valeur : - 6 / Insécurité de la situation de travail: -
A104: =+STASS!A10 -> Chute de plain pied | B104: =+STASS!C$6 -> STASS | C104: =+'Grille évaluation'!O5 -> NC | D104: =+'Grille évaluation'!P5 -> NC | E104: =+'Grille évaluation'!Q5 -> NC | F104: =+STASS!C10 -> 0
A105: =+STASS!A11 -> Chute de hauteur | B105: =+STASS!C$6 -> STASS | C105: =+'Grille évaluation'!O6 -> 4 | D105: =+'Grille évaluation'!P6 -> NC | E105: =+'Grille évaluation'!Q6 -> NC | F105: =+STASS!C11 -> 0
A106: =+STASS!A12 -> Effondrement et chutes d'objets | B106: =+STASS!C$6 -> STASS | C106: =+'Grille évaluation'!O7 -> NC | D106: =+'Grille évaluation'!P7 -> NC | E106: =+'Grille évaluation'!Q7 -> NC | F106: =+STASS!C12 -> 0
A107: =+STASS!A13 -> Manutention manuelle | B107: =+STASS!C$6 -> STASS | C107: =+'Grille évaluation'!O8 -> NC | D107: =+'Grille évaluation'!P8 -> NC | E107: =+'Grille évaluation'!Q8 -> NC | F107: =+STASS!C13 -> 0
A108: =+STASS!A14 -> Ergonomie | B108: =+STASS!C$6 -> STASS | C108: =+'Grille évaluation'!O9 -> NC | D108: =+'Grille évaluation'!P9 -> NC | E108: =+'Grille évaluation'!Q9 -> NC | F108: =+STASS!C14 -> 0
A109: =+STASS!A15 -> Risque Routier - Conduite d'engins | B109: =+STASS!C$6 -> STASS | C109: =+'Grille évaluation'!O10 -> NC | D109: =+'Grille évaluation'!P10 -> NC | E109: =+'Grille évaluation'!Q10 -> NC | F109: =+STASS!C15 -> 0
A110: =+STASS!A16 -> Circulation piétonne | B110: =+STASS!C$6 -> STASS | C110: =+'Grille évaluation'!O11 -> NC | D110: =+'Grille évaluation'!P11 -> NC | E110: =+'Grille évaluation'!Q11 -> NC | F110: =+STASS!C16 -> 0
A111: =+STASS!A17 -> Risques liés aux machines et outils | B111: =+STASS!C$6 -> STASS | C111: =+'Grille évaluation'!O12 -> NC | D111: =+'Grille évaluation'!P12 -> NC | E111: =+'Grille évaluation'!Q12 -> NC | F111: =+STASS!C17 -> 0
A112: =+STASS!A18 -> Bruit | B112: =+STASS!C$6 -> STASS | C112: =+'Grille évaluation'!O13 -> NC | D112: =+'Grille évaluation'!P13 -> NC | E112: =+'Grille évaluation'!Q13 -> NC | F112: =+STASS!C18 -> 0
A113: =+STASS!A19 -> Vibrations | B113: =+STASS!C$6 -> STASS | C113: =+'Grille évaluation'!O14 -> NC | D113: =+'Grille évaluation'!P14 -> NC | E113: =+'Grille évaluation'!Q14 -> NC | F113: =+STASS!C19 -> 0
A114: =+STASS!A20 -> Risques chimiques | B114: =+STASS!C$6 -> STASS | C114: =+'Grille évaluation'!O15 -> 0 | D114: =+'Grille évaluation'!P15 -> NC | E114: =+'Grille évaluation'!Q15 -> NC | F114: =+STASS!C20 -> 0
A115: =+STASS!A21 -> Amiante | B115: =+STASS!C$6 -> STASS | C115: =+'Grille évaluation'!O16 -> NC | D115: =+'Grille évaluation'!P16 -> NC | E115: =+'Grille évaluation'!Q16 -> NC | F115: =+STASS!C21 -> 0
A116: =+STASS!A22 -> Aération et assainissement de l'air | B116: =+STASS!C$6 -> STASS | C116: =+'Grille évaluation'!O17 -> NC | D116: =+'Grille évaluation'!P17 -> NC | E116: =+'Grille évaluation'!Q17 -> NC | F116: =+STASS!C22 -> 0
A117: =+STASS!A23 -> Risque Electrique | B117: =+STASS!C$6 -> STASS | C117: =+'Grille évaluation'!O18 -> NC | D117: =+'Grille évaluation'!P18 -> NC | E117: =+'Grille évaluation'!Q18 -> NC | F117: =+STASS!C23 -> 0
A118: =+STASS!A24 -> Incendie - Explosion | B118: =+STASS!C$6 -> STASS | C118: =+'Grille évaluation'!O19 -> NC | D118: =+'Grille évaluation'!P19 -> NC | E118: =+'Grille évaluation'!Q19 -> NC | F118: =+STASS!C24 -> 0
A119: =+STASS!A25 -> Risques liés à l'éclairage | B119: =+STASS!C$6 -> STASS | C119: =+'Grille évaluation'!O20 -> NC | D119: =+'Grille évaluation'!P20 -> NC | E119: =+'Grille évaluation'!Q20 -> NC | F119: =+STASS!C25 -> 0
A120: =+STASS!A26 -> Utilisation d'écran | B120: =+STASS!C$6 -> STASS | C120: =+'Grille évaluation'!O21 -> NC | D120: =+'Grille évaluation'!P21 -> NC | E120: =+'Grille évaluation'!Q21 -> NC | F120: =+STASS!C26 -> 0
A121: =+STASS!A27 -> Risques liés aux ambiances climatiques et thermiques | B121: =+STASS!C$6 -> STASS | C121: =+'Grille évaluation'!O22 -> NC | D121: =+'Grille évaluation'!P22 -> NC | E121: =+'Grille évaluation'!Q22 -> NC | F121: =+STASS!C27 -> 0
A122: =+STASS!A28 -> Risque biologique | B122: =+STASS!C$6 -> STASS | C122: =+'Grille évaluation'!O23 -> NC | D122: =+'Grille évaluation'!P23 -> NC | E122: =+'Grille évaluation'!Q23 -> NC | F122: =+STASS!C28 -> 0
A123: =+STASS!A29 -> Manque d'hygiène | B123: =+STASS!C$6 -> STASS | C123: =+'Grille évaluation'!O24 -> NC | D123: =+'Grille évaluation'!P24 -> NC | E123: =+'Grille évaluation'!Q24 -> NC | F123: =+STASS!C29 -> 0
A124: =+STASS!A30 -> Rayonnement | B124: =+STASS!C$6 -> STASS | C124: =+'Grille évaluation'!O25 -> NC | D124: =+'Grille évaluation'!P25 -> NC | E124: =+'Grille évaluation'!Q25 -> NC | F124: =+STASS!C30 -> 0
A125: =+STASS!A31 -> Entreprises Extérieures | B125: =+STASS!C$6 -> STASS | C125: =+'Grille évaluation'!O26 -> NC | D125: =+'Grille évaluation'!P26 -> NC | E125: =+'Grille évaluation'!Q26 -> NC | F125: =+STASS!C31 -> 0
A126: =+STASS!A32 -> Agressions | B126: =+STASS!C$6 -> STASS | C126: =+'Grille évaluation'!O27 -> NC | D126: =+'Grille évaluation'!P27 -> NC | E126: =+'Grille évaluation'!Q27 -> NC | F126: =+STASS!C32 -> 0
A127: =+STASS!A33 -> Risques psychosociaux | B127: =+STASS!C$6 -> STASS | C127: =+'Grille évaluation'!O28 -> 0 | D127: =+'Grille évaluation'!P28 -> NC | E127: =+'Grille évaluation'!Q28 -> NC | F127: =+STASS!C33 -> Sur cette unité, les risques psychosociaux sont présents, les principales composantes à maitriser sont : 1/ intensité du travail : - ; 2 / Emotionnel : - 3 / Autonomie : - 4 / Rapports sociaux : - 5 / Conflits de Valeur : - 6 / Insécurité de la situation de travail: -
A128: =+'Vie collective'!A10 -> Chute de plain pied | B128: =+'Vie collective'!C$6 -> Vie collective | C128: =+'Grille évaluation'!R5 -> NC | D128: =+'Grille évaluation'!S5 -> NC | E128: =+'Vie collective'!J10 -> NC | F128: =+'Vie collective'!C10 -> 0
A129: =+'Vie collective'!A11 -> Chute de hauteur | B129: =+'Vie collective'!C$6 -> Vie collective | C129: =+'Grille évaluation'!R6 -> NC | D129: =+'Grille évaluation'!S6 -> NC | E129: =+'Vie collective'!J11 -> NC | F129: =+'Vie collective'!C11 -> 0
A130: =+'Vie collective'!A12 -> Effondrement et chutes d'objets | B130: =+'Vie collective'!C$6 -> Vie collective | C130: =+'Grille évaluation'!R7 -> NC | D130: =+'Grille évaluation'!S7 -> NC | E130: =+'Vie collective'!J12 -> NC | F130: =+'Vie collective'!C12 -> 0
A131: =+'Vie collective'!A13 -> Manutention manuelle | B131: =+'Vie collective'!C$6 -> Vie collective | C131: =+'Grille évaluation'!R8 -> NC | D131: =+'Grille évaluation'!S8 -> NC | E131: =+'Vie collective'!J13 -> NC | F131: =+'Vie collective'!C13 -> 0
A132: =+'Vie collective'!A14 -> Ergonomie | B132: =+'Vie collective'!C$6 -> Vie collective | C132: =+'Grille évaluation'!R9 -> NC | D132: =+'Grille évaluation'!S9 -> NC | E132: =+'Vie collective'!J14 -> NC | F132: =+'Vie collective'!C14 -> 0
A133: =+'Vie collective'!A15 -> Risque Routier - Conduite d'engins | B133: =+'Vie collective'!C$6 -> Vie collective | C133: =+'Grille évaluation'!R10 -> NC | D133: =+'Grille évaluation'!S10 -> NC | E133: =+'Vie collective'!J15 -> NC | F133: =+'Vie collective'!C15 -> 0
A134: =+'Vie collective'!A16 -> Circulation piétonne | B134: =+'Vie collective'!C$6 -> Vie collective | C134: =+'Grille évaluation'!R11 -> NC | D134: =+'Grille évaluation'!S11 -> NC | E134: =+'Vie collective'!J16 -> NC | F134: =+'Vie collective'!C16 -> 0
A135: =+'Vie collective'!A17 -> Risques liés aux machines et outils | B135: =+'Vie collective'!C$6 -> Vie collective | C135: =+'Grille évaluation'!R12 -> NC | D135: =+'Grille évaluation'!S12 -> NC | E135: =+'Vie collective'!J17 -> NC | F135: =+'Vie collective'!C17 -> 0
A136: =+'Vie collective'!A18 -> Bruit | B136: =+'Vie collective'!C$6 -> Vie collective | C136: =+'Grille évaluation'!R13 -> NC | D136: =+'Grille évaluation'!S13 -> NC | E136: =+'Vie collective'!J18 -> NC | F136: =+'Vie collective'!C18 -> 0
A137: =+'Vie collective'!A19 -> Vibrations | B137: =+'Vie collective'!C$6 -> Vie collective | C137: =+'Grille évaluation'!R14 -> NC | D137: =+'Grille évaluation'!S14 -> NC | E137: =+'Vie collective'!J19 -> NC | F137: =+'Vie collective'!C19 -> 0
A138: =+'Vie collective'!A20 -> Risques chimiques | B138: =+'Vie collective'!C$6 -> Vie collective | C138: =+'Grille évaluation'!R15 -> NC | D138: =+'Grille évaluation'!S15 -> NC | E138: =+'Vie collective'!J20 -> NC | F138: =+'Vie collective'!C20 -> 0
A139: =+'Vie collective'!A21 -> Amiante | B139: =+'Vie collective'!C$6 -> Vie collective | C139: =+'Grille évaluation'!R16 -> NC | D139: =+'Grille évaluation'!S16 -> NC | E139: =+'Vie collective'!J21 -> NC | F139: =+'Vie collective'!C21 -> 0
A140: =+'Vie collective'!A22 -> Aération et assainissement de l'air | B140: =+'Vie collective'!C$6 -> Vie collective | C140: =+'Grille évaluation'!R17 -> NC | D140: =+'Grille évaluation'!S17 -> NC | E140: =+'Vie collective'!J22 -> NC | F140: =+'Vie collective'!C22 -> 0
A141: =+'Vie collective'!A23 -> Risque Electrique | B141: =+'Vie collective'!C$6 -> Vie collective | C141: =+'Grille évaluation'!R18 -> NC | D141: =+'Grille évaluation'!S18 -> NC | E141: =+'Vie collective'!J23 -> NC | F141: =+'Vie collective'!C23 -> 0
A142: =+'Vie collective'!A24 -> Incendie - Explosion | B142: =+'Vie collective'!C$6 -> Vie collective | C142: =+'Grille évaluation'!R19 -> NC | D142: =+'Grille évaluation'!S19 -> NC | E142: =+'Vie collective'!J24 -> NC | F142: =+'Vie collective'!C24 -> 0
A143: =+'Vie collective'!A25 -> Risques liés à l'éclairage | B143: =+'Vie collective'!C$6 -> Vie collective | C143: =+'Grille évaluation'!R20 -> NC | D143: =+'Grille évaluation'!S20 -> NC | E143: =+'Vie collective'!J25 -> NC | F143: =+'Vie collective'!C25 -> 0
A144: =+'Vie collective'!A26 -> Utilisation d'écran | B144: =+'Vie collective'!C$6 -> Vie collective | C144: =+'Grille évaluation'!R21 -> NC | D144: =+'Grille évaluation'!S21 -> NC | E144: =+'Vie collective'!J26 -> NC | F144: =+'Vie collective'!C26 -> 0
A145: =+'Vie collective'!A27 -> Risques liés aux ambiances climatiques et thermiques | B145: =+'Vie collective'!C$6 -> Vie collective | C145: =+'Grille évaluation'!R22 -> NC | D145: =+'Grille évaluation'!S22 -> NC | E145: =+'Vie collective'!J27 -> NC | F145: =+'Vie collective'!C27 -> 0
A146: =+'Vie collective'!A28 -> Risque biologique | B146: =+'Vie collective'!C$6 -> Vie collective | C146: =+'Grille évaluation'!R23 -> NC | D146: =+'Grille évaluation'!S23 -> NC | E146: =+'Vie collective'!J28 -> NC | F146: =+'Vie collective'!C28 -> 0
A147: =+'Vie collective'!A29 -> Manque d'hygiène | B147: =+'Vie collective'!C$6 -> Vie collective | C147: =+'Grille évaluation'!R24 -> NC | D147: =+'Grille évaluation'!S24 -> NC | E147: =+'Vie collective'!J29 -> NC | F147: =+'Vie collective'!C29 -> 0
A148: =+'Vie collective'!A30 -> Rayonnement | B148: =+'Vie collective'!C$6 -> Vie collective | C148: =+'Grille évaluation'!R25 -> NC | D148: =+'Grille évaluation'!S25 -> NC | E148: =+'Vie collective'!J30 -> NC | F148: =+'Vie collective'!C30 -> 0
A149: =+'Vie collective'!A31 -> Entreprises Extérieures | B149: =+'Vie collective'!C$6 -> Vie collective | C149: =+'Grille évaluation'!R26 -> NC | D149: =+'Grille évaluation'!S26 -> NC | E149: =+'Vie collective'!J31 -> NC | F149: =+'Vie collective'!C31 -> 0
A150: =+'Vie collective'!A32 -> Agressions | B150: =+'Vie collective'!C$6 -> Vie collective | C150: =+'Grille évaluation'!R27 -> NC | D150: =+'Grille évaluation'!S27 -> NC | E150: =+'Vie collective'!J32 -> NC | F150: =+'Vie collective'!C32 -> 0
A151: =+'Vie collective'!A33 -> Risques psychosociaux | B151: =+'Vie collective'!C$6 -> Vie collective | C151: =+'Grille évaluation'!R28 -> NC | D151: =+'Grille évaluation'!S28 -> NC | E151: =+'Vie collective'!J33 -> NC | F151: =+'Vie collective'!C33 -> Sur cette unité, les risques psychosociaux sont présents, les principales composantes à maitriser sont : 1/ intensité du travail : - ; 2 / Emotionnel : - 3 / Autonomie : - 4 / Rapports sociaux : - 5 / Conflits de Valeur : - 6 / Insécurité de la situation de travail: -
A152: =+'Manœuvre et formation'!A10 -> Chute de plain pied | B152: =+'Manœuvre et formation'!C$6 -> Manœuvre et formation | C152: =+'Grille évaluation'!U5 -> 0 | D152: =+'Grille évaluation'!V5 -> NC | E152: =+'Grille évaluation'!W5 -> NC | F152: =+'Manœuvre et formation'!C10 -> 0
A153: =+'Manœuvre et formation'!A11 -> Chute de hauteur | B153: =+'Manœuvre et formation'!C$6 -> Manœuvre et formation | C153: =+'Grille évaluation'!U6 -> 0 | D153: =+'Grille évaluation'!V6 -> NC | E153: =+'Grille évaluation'!W6 -> NC | F153: =+'Manœuvre et formation'!C11 -> 0
A154: =+'Manœuvre et formation'!A12 -> Effondrement et chutes d'objets | B154: =+'Manœuvre et formation'!C$6 -> Manœuvre et formation | C154: =+'Grille évaluation'!U7 -> 0 | D154: =+'Grille évaluation'!V7 -> NC | E154: =+'Grille évaluation'!W7 -> NC | F154: =+'Manœuvre et formation'!C12 -> 0
A155: =+'Manœuvre et formation'!A13 -> Manutention manuelle | B155: =+'Manœuvre et formation'!C$6 -> Manœuvre et formation | C155: =+'Grille évaluation'!U8 -> 0 | D155: =+'Grille évaluation'!V8 -> NC | E155: =+'Grille évaluation'!W8 -> NC | F155: =+'Manœuvre et formation'!C13 -> 0
A156: =+'Manœuvre et formation'!A14 -> Ergonomie | B156: =+'Manœuvre et formation'!C$6 -> Manœuvre et formation | C156: =+'Grille évaluation'!U9 -> 0 | D156: =+'Grille évaluation'!V9 -> NC | E156: =+'Grille évaluation'!W9 -> NC | F156: =+'Manœuvre et formation'!C14 -> 0
A157: =+'Manœuvre et formation'!A15 -> Risque Routier - Conduite d'engins | B157: =+'Manœuvre et formation'!C$6 -> Manœuvre et formation | C157: =+'Grille évaluation'!U10 -> 0 | D157: =+'Grille évaluation'!V10 -> NC | E157: =+'Grille évaluation'!W10 -> NC | F157: =+'Manœuvre et formation'!C15 -> 0
A158: =+'Manœuvre et formation'!A16 -> Circulation piétonne | B158: =+'Manœuvre et formation'!C$6 -> Manœuvre et formation | C158: =+'Grille évaluation'!U11 -> 0 | D158: =+'Grille évaluation'!V11 -> NC | E158: =+'Grille évaluation'!W11 -> NC | F158: =+'Manœuvre et formation'!C16 -> 0
A159: =+'Manœuvre et formation'!A17 -> Risques liés aux machines et outils | B159: =+'Manœuvre et formation'!C$6 -> Manœuvre et formation | C159: =+'Grille évaluation'!U12 -> 0 | D159: =+'Grille évaluation'!V12 -> NC | E159: =+'Grille évaluation'!W12 -> NC | F159: =+'Manœuvre et formation'!C17 -> 0
A160: =+'Manœuvre et formation'!A18 -> Bruit | B160: =+'Manœuvre et formation'!C$6 -> Manœuvre et formation | C160: =+'Grille évaluation'!U13 -> 0 | D160: =+'Grille évaluation'!V13 -> NC | E160: =+'Grille évaluation'!W13 -> NC | F160: =+'Manœuvre et formation'!C18 -> 0
A161: =+'Manœuvre et formation'!A19 -> Vibrations | B161: =+'Manœuvre et formation'!C$6 -> Manœuvre et formation | C161: =+'Grille évaluation'!U14 -> 0 | D161: =+'Grille évaluation'!V14 -> NC | E161: =+'Grille évaluation'!W14 -> NC | F161: =+'Manœuvre et formation'!C19 -> 0
A162: =+'Manœuvre et formation'!A20 -> Risques chimiques | B162: =+'Manœuvre et formation'!C$6 -> Manœuvre et formation | C162: =+'Grille évaluation'!U15 -> 0 | D162: =+'Grille évaluation'!V15 -> NC | E162: =+'Grille évaluation'!W15 -> NC | F162: =+'Manœuvre et formation'!C20 -> 0
A163: =+'Manœuvre et formation'!A21 -> Amiante | B163: =+'Manœuvre et formation'!C$6 -> Manœuvre et formation | C163: =+'Grille évaluation'!U16 -> 0 | D163: =+'Grille évaluation'!V16 -> NC | E163: =+'Grille évaluation'!W16 -> NC | F163: =+'Manœuvre et formation'!C21 -> 0
A164: =+'Manœuvre et formation'!A22 -> Aération et assainissement de l'air | B164: =+'Manœuvre et formation'!C$6 -> Manœuvre et formation | C164: =+'Grille évaluation'!U17 -> 0 | D164: =+'Grille évaluation'!V17 -> NC | E164: =+'Grille évaluation'!W17 -> NC | F164: =+'Manœuvre et formation'!C22 -> 0
A165: =+'Manœuvre et formation'!A23 -> Risque Electrique | B165: =+'Manœuvre et formation'!C$6 -> Manœuvre et formation | C165: =+'Grille évaluation'!U18 -> 0 | D165: =+'Grille évaluation'!V18 -> NC | E165: =+'Grille évaluation'!W18 -> NC | F165: =+'Manœuvre et formation'!C23 -> 0
A166: =+'Manœuvre et formation'!A24 -> Incendie - Explosion | B166: =+'Manœuvre et formation'!C$6 -> Manœuvre et formation | C166: =+'Grille évaluation'!U19 -> 0 | D166: =+'Grille évaluation'!V19 -> NC | E166: =+'Grille évaluation'!W19 -> NC | F166: =+'Manœuvre et formation'!C24 -> 0
A167: =+'Manœuvre et formation'!A25 -> Risques liés à l'éclairage | B167: =+'Manœuvre et formation'!C$6 -> Manœuvre et formation | C167: =+'Grille évaluation'!U20 -> 0 | D167: =+'Grille évaluation'!V20 -> NC | E167: =+'Grille évaluation'!W20 -> NC | F167: =+'Manœuvre et formation'!C25 -> 0
A168: =+'Manœuvre et formation'!A26 -> Utilisation d'écran | B168: =+'Manœuvre et formation'!C$6 -> Manœuvre et formation | C168: =+'Grille évaluation'!U21 -> 0 | D168: =+'Grille évaluation'!V21 -> NC | E168: =+'Grille évaluation'!W21 -> NC | F168: =+'Manœuvre et formation'!C26 -> 0
A169: =+'Manœuvre et formation'!A27 -> Risques liés aux ambiances climatiques et thermiques | B169: =+'Manœuvre et formation'!C$6 -> Manœuvre et formation | C169: =+'Grille évaluation'!U22 -> 0 | D169: =+'Grille évaluation'!V22 -> NC | E169: =+'Grille évaluation'!W22 -> NC | F169: =+'Manœuvre et formation'!C27 -> 0
A170: =+'Manœuvre et formation'!A28 -> Risque biologique | B170: =+'Manœuvre et formation'!C$6 -> Manœuvre et formation | C170: =+'Grille évaluation'!U23 -> 0 | D170: =+'Grille évaluation'!V23 -> NC | E170: =+'Grille évaluation'!W23 -> NC | F170: =+'Manœuvre et formation'!C28 -> 0
A171: =+'Manœuvre et formation'!A29 -> Manque d'hygiène | B171: =+'Manœuvre et formation'!C$6 -> Manœuvre et formation | C171: =+'Grille évaluation'!U24 -> 0 | D171: =+'Grille évaluation'!V24 -> NC | E171: =+'Grille évaluation'!W24 -> NC | F171: =+'Manœuvre et formation'!C29 -> 0
A172: =+'Manœuvre et formation'!A30 -> Rayonnement | B172: =+'Manœuvre et formation'!C$6 -> Manœuvre et formation | C172: =+'Grille évaluation'!U25 -> 0 | D172: =+'Grille évaluation'!V25 -> NC | E172: =+'Grille évaluation'!W25 -> NC | F172: =+'Manœuvre et formation'!C30 -> 0
A173: =+'Manœuvre et formation'!A31 -> Entreprises Extérieures | B173: =+'Manœuvre et formation'!C$6 -> Manœuvre et formation | C173: =+'Grille évaluation'!U26 -> 0 | D173: =+'Grille évaluation'!V26 -> NC | E173: =+'Grille évaluation'!W26 -> NC | F173: =+'Manœuvre et formation'!C31 -> 0
A174: =+'Manœuvre et formation'!A32 -> Agressions | B174: =+'Manœuvre et formation'!C$6 -> Manœuvre et formation | C174: =+'Grille évaluation'!U27 -> 0 | D174: =+'Grille évaluation'!V27 -> NC | E174: =+'Grille évaluation'!W27 -> NC | F174: =+'Manœuvre et formation'!C32 -> 0
A175: =+'Manœuvre et formation'!A33 -> Risques psychosociaux | B175: =+'Manœuvre et formation'!C$6 -> Manœuvre et formation | C175: =+'Grille évaluation'!U28 -> NC | D175: =+'Grille évaluation'!V28 -> NC | E175: =+'Grille évaluation'!W28 -> NC | F175: =+'Manœuvre et formation'!C33 -> Sur cette unité, les risques psychosociaux sont présents, les principales composantes à maitriser sont : 1/ intensité du travail : - ; 2 / Emotionnel : - 3 / Autonomie : - 4 / Rapports sociaux : - 5 / Conflits de Valeur : - 6 / Insécurité de la situation de travail: -
A176: =+APS!A10 -> Chute de plain pied | B176: =+APS!C$6 -> APS | C176: =+'Grille évaluation'!X5 -> NC | D176: =+'Grille évaluation'!Y5 -> NC | E176: =+'Grille évaluation'!Z5 -> NC | F176: =+'Manœuvre et formation'!C34 -> 0
A177: =+APS!A11 -> Chute de hauteur | B177: =+APS!C$6 -> APS | C177: =+'Grille évaluation'!X6 -> NC | D177: =+'Grille évaluation'!Y6 -> NC | E177: =+'Grille évaluation'!Z6 -> NC | F177: =+'Manœuvre et formation'!C35 -> 0
A178: =+APS!A12 -> Effondrement et chutes d'objets | B178: =+APS!C$6 -> APS | C178: =+'Grille évaluation'!X7 -> NC | D178: =+'Grille évaluation'!Y7 -> NC | E178: =+'Grille évaluation'!Z7 -> NC | F178: =+'Manœuvre et formation'!C36 -> 0
A179: =+APS!A13 -> Manutention manuelle | B179: =+APS!C$6 -> APS | C179: =+'Grille évaluation'!X8 -> NC | D179: =+'Grille évaluation'!Y8 -> NC | E179: =+'Grille évaluation'!Z8 -> NC | F179: =+'Manœuvre et formation'!C37 -> 0
A180: =+APS!A14 -> Ergonomie | B180: =+APS!C$6 -> APS | C180: =+'Grille évaluation'!X9 -> NC | D180: =+'Grille évaluation'!Y9 -> NC | E180: =+'Grille évaluation'!Z9 -> NC | F180: =+'Manœuvre et formation'!C38 -> 0
A181: =+APS!A15 -> Risque Routier - Conduite d'engins | B181: =+APS!C$6 -> APS | C181: =+'Grille évaluation'!X10 -> NC | D181: =+'Grille évaluation'!Y10 -> NC | E181: =+'Grille évaluation'!Z10 -> NC | F181: =+'Manœuvre et formation'!C39 -> 0
A182: =+APS!A16 -> Circulation piétonne | B182: =+APS!C$6 -> APS | C182: =+'Grille évaluation'!X11 -> NC | D182: =+'Grille évaluation'!Y11 -> NC | E182: =+'Grille évaluation'!Z11 -> NC | F182: =+'Manœuvre et formation'!C40 -> 0
A183: =+APS!A17 -> Risques liés aux machines et outils | B183: =+APS!C$6 -> APS | C183: =+'Grille évaluation'!X12 -> NC | D183: =+'Grille évaluation'!Y12 -> NC | E183: =+'Grille évaluation'!Z12 -> NC | F183: =+'Manœuvre et formation'!C41 -> 0
A184: =+APS!A18 -> Bruit | B184: =+APS!C$6 -> APS | C184: =+'Grille évaluation'!X13 -> NC | D184: =+'Grille évaluation'!Y13 -> NC | E184: =+'Grille évaluation'!Z13 -> NC | F184: =+'Manœuvre et formation'!C42 -> 0
A185: =+APS!A19 -> Vibrations | B185: =+APS!C$6 -> APS | C185: =+'Grille évaluation'!X14 -> NC | D185: =+'Grille évaluation'!Y14 -> NC | E185: =+'Grille évaluation'!Z14 -> NC | F185: =+'Manœuvre et formation'!C43 -> 0
A186: =+APS!A20 -> Risques chimiques | B186: =+APS!C$6 -> APS | C186: =+'Grille évaluation'!X15 -> NC | D186: =+'Grille évaluation'!Y15 -> NC | E186: =+'Grille évaluation'!Z15 -> NC | F186: =+'Manœuvre et formation'!C44 -> 0
A187: =+APS!A21 -> Amiante | B187: =+APS!C$6 -> APS | C187: =+'Grille évaluation'!X16 -> NC | D187: =+'Grille évaluation'!Y16 -> NC | E187: =+'Grille évaluation'!Z16 -> NC | F187: =+'Manœuvre et formation'!C45 -> 0
A188: =+APS!A22 -> Aération et assainissement de l'air | B188: =+APS!C$6 -> APS | C188: =+'Grille évaluation'!X17 -> NC | D188: =+'Grille évaluation'!Y17 -> NC | E188: =+'Grille évaluation'!Z17 -> NC | F188: =+'Manœuvre et formation'!C46 -> 0
A189: =+APS!A23 -> Risque Electrique | B189: =+APS!C$6 -> APS | C189: =+'Grille évaluation'!X18 -> NC | D189: =+'Grille évaluation'!Y18 -> NC | E189: =+'Grille évaluation'!Z18 -> NC | F189: =+'Manœuvre et formation'!C47 -> 0
A190: =+APS!A24 -> Incendie - Explosion | B190: =+APS!C$6 -> APS | C190: =+'Grille évaluation'!X19 -> NC | D190: =+'Grille évaluation'!Y19 -> NC | E190: =+'Grille évaluation'!Z19 -> NC | F190: =+'Manœuvre et formation'!C48 -> 0
A191: =+APS!A25 -> Risques liés à l'éclairage | B191: =+APS!C$6 -> APS | C191: =+'Grille évaluation'!X20 -> NC | D191: =+'Grille évaluation'!Y20 -> NC | E191: =+'Grille évaluation'!Z20 -> NC | F191: =+'Manœuvre et formation'!C49 -> 0
A192: =+APS!A26 -> Utilisation d'écran | B192: =+APS!C$6 -> APS | C192: =+'Grille évaluation'!X21 -> NC | D192: =+'Grille évaluation'!Y21 -> NC | E192: =+'Grille évaluation'!Z21 -> NC | F192: =+'Manœuvre et formation'!C50 -> 0
A193: =+APS!A27 -> Risques liés aux ambiances climatiques et thermiques | B193: =+APS!C$6 -> APS | C193: =+'Grille évaluation'!X22 -> NC | D193: =+'Grille évaluation'!Y22 -> NC | E193: =+'Grille évaluation'!Z22 -> NC | F193: =+'Manœuvre et formation'!C51 -> 0
A194: =+APS!A28 -> Risque biologique | B194: =+APS!C$6 -> APS | C194: =+'Grille évaluation'!X23 -> NC | D194: =+'Grille évaluation'!Y23 -> NC | E194: =+'Grille évaluation'!Z23 -> NC | F194: =+'Manœuvre et formation'!C52 -> 0
A195: =+APS!A29 -> Manque d'hygiène | B195: =+APS!C$6 -> APS | C195: =+'Grille évaluation'!X24 -> NC | D195: =+'Grille évaluation'!Y24 -> NC | E195: =+'Grille évaluation'!Z24 -> NC | F195: =+'Manœuvre et formation'!C53 -> 0
A196: =+APS!A30 -> Rayonnement | B196: =+APS!C$6 -> APS | C196: =+'Grille évaluation'!X25 -> NC | D196: =+'Grille évaluation'!Y25 -> NC | E196: =+'Grille évaluation'!Z25 -> NC | F196: =+'Manœuvre et formation'!C54 -> 0
A197: =+APS!A31 -> Entreprises Extérieures | B197: =+APS!C$6 -> APS | C197: =+'Grille évaluation'!X26 -> NC | D197: =+'Grille évaluation'!Y26 -> NC | E197: =+'Grille évaluation'!Z26 -> NC | F197: =+'Manœuvre et formation'!C55 -> 0
A198: =+APS!A32 -> Agressions | B198: =+APS!C$6 -> APS | C198: =+'Grille évaluation'!X27 -> NC | D198: =+'Grille évaluation'!Y27 -> NC | E198: =+'Grille évaluation'!Z27 -> NC | F198: =+'Manœuvre et formation'!C56 -> 0
A199: =+APS!A33 -> Risques psychosociaux | B199: =+APS!C$6 -> APS | C199: =+'Grille évaluation'!X28 -> NC | D199: =+'Grille évaluation'!Y28 -> NC | E199: =+'Grille évaluation'!Z28 -> NC | F199: =+'Manœuvre et formation'!C57 -> 0
A200: =+'Espace vert'!A10 -> Chute de plain pied | B200: =+'Espace vert'!C$6 -> Espace vert | C200: =+'Grille évaluation'!AA5 -> NC | D200: =+'Grille évaluation'!AB5 -> NC | E200: =+'Grille évaluation'!AC5 -> NC | F200: =+'Espace vert'!C10 -> 0
A201: =+'Espace vert'!A11 -> Chute de hauteur | B201: =+'Espace vert'!C$6 -> Espace vert | C201: =+'Grille évaluation'!AA6 -> NC | D201: =+'Grille évaluation'!AB6 -> NC | E201: =+'Grille évaluation'!AC6 -> NC | F201: =+'Espace vert'!C11 -> 0
... 46 more rows

Sheet Pénibilité
A1: 6 - Pénibilité au travail
A2: La réforme des retraites a introduit des modifications dans le code du travail concernant la pénibilité au travail.
A3: A compter de 2015, l’employeur doit procéder à la déclaration des expositions, la fiche de pénibilité étant abrogé.
A4: Pour les agents de droits publics ne relevant pas du C3P (compte personnel de prévention de pénibilité), l’employeur doit établir des fiches individuelles de suivi indiquant les facteurs de pénibilité auxquels les agents sont exposés au-delà des seuils. L’exposition est évaluée en cohérence avec l’évaluation des risques professionnels et appréciée après application des mesures de protection collective et individuelle.
A5: Un arrêté doit paraitre prochainement pour définir un nouveau modèle de fiche d’exposition aux facteurs de pénibilité.
A6: Seuils de pénibilités= intensité + durée d’exposition et ce annuellement. (Au 1er juillet 2016)
A7: Contraintes physiques marquées
A8: Manutentions manuelles de charges | B8: Lever ou porter : charge unitaire de 15 kg | J8: 600 heures /an
B9: Pousser ou tirer : charge unitaire de 250 kg | J9: 120 jr /an
B10: Déplacement du travailleur avec la charge au sol ou à une hauteur située au-dessus des épaules : charge unitaire 10 kg
B11: Cumul de manutention de charges : 7,5 tonnes cumulées par jour
A12: Postures pénibles définies comme position forcée des articulations | B12: Maintien des bras en l’air à une hauteur située au-dessus des épaules ou positions accroupies ou à genoux ou positions du torse en torsion à 30 degrés ou positions du torse fléchi à 45 degrés | J12: 900 heures /an
A13: Vibrations mécaniques | B13: Vibrations transmises aux mains et aux bras: 2,5m/s2 sur 8 heures de travail | J13: 450 heures /an
B14: Vibrations transmises aux corps entier sur 8 heures de travail: 5m/s2 sur 8 heures de travail
A16: Environnement physique agressif
A17: Agents chimiques dangereux y compris les poussières et les fumées | B17: Exposition à un agent chimique dangereux relevant d’une ou plusieurs classes ou catégories de danger définies à l’annexe I du règlement CE | J17: Seuils en cours d’élaboration
A18: Activités exercées en milieu hyperbare | B18: Interventions ou travaux 1200 hectopascals | J18: 60 interventions ou travaux /an
A19: Bruit | B19: Niveau d’exposition au bruit rapporté à une période de référence de 8h d’au moins 80dB(A) | J19: 600 heures /an
B20: Exposition à un niveau de pression acoustique de crête au moins égale à 135dB(A) | J20: 120 fois /an
A21: Températures extrêmes | B21: Température inférieure ou égale à 5°C ou au moins égale à 30°C | J21: 900 heures /an
A23: Certains rythmes physiques
A24: Travail de nuit | B24: Une heure de travail entre 24 heures et 5 heures | J24: 120 nuits / an
A25: Travail en équipes successives alternantes | B25: Travail en équipes successives alternantes impliquant au minimum une heure de travail entre 24 heures et 5 heures | J25: 50 nuits /an
A26: Travail répétitif caractérisé par la répétition d’un même geste, à une cadence contrainte, imposée ou non par le déplacement automatique d’une pièce ou par la rémunération à la pièce avec un temps de cycle défini | B26: Temps de cycle inférieur ou égal à 1 minute | J26: 900 heures /an
B27: 30 actions techniques ou plus par minute avec un temps de cycle supérieur à 1 minute
A29: Positionnement du Pôle Santé Prévention
A30: Afin de répondre à cette obligation règlementaire, voici les trois étapes à suivre par la collectivité:
A31: 1- Réalisation de l’évaluation des risques professionnels
A32: Accompagnement possible des conseillers en hygiène et sécurité du CDG/médecin de prévention
A33: 2- Identification apriori des activités générant des facteurs de pénibilités
A34: Accompagnement possible des conseillers en hygiène et sécurité du CDG/médecin de prévention
A35: Voici la grille présente dans les documents uniques pour répertorier les facteurs de pénibilités par unités de travail en fonction de l’évaluation réalisée. Elle est actuellement en test dans une collectivité.
A46: Non concerné : pas de présence de facteurs de pénibilité
A47: Concerné : facteurs de pénibilité présents mais seuils non atteint
A48: Pénibilité reconnue : Seuils d’exposition atteints et/ou dépassés
A49: 3- Recueil des informations pour attester des seuils de pénibilité identifiés
A50: Accompagnement du médecin de prévention
A51: Pour les unités de travail concernées, la collectivité en collaboration avec le médecin de prévention devra quantifier la pénibilité.
A52: Pour les agents exposés au-delà des seuils, la collectivité devra établir une fiche individuelle de suivi comportant les facteurs de pénibilités auxquels ils sont exposés.
C54: Facteurs de pénibilité | F54: de | G54: =+Collectivité!B2 -> Centre Mixte
A55: Unité de travail | B55: ETP | C55: Manutention manuelle de charge | D55: Posture de travail contraignante | E55: Vibrations | F55: Substances chimiques, poussières et fumées | G55: Bruit | H55: Températures extrêmes | I55: Travail de nuit | J55: Travail en équipe alternante | K55: Travail répétitif | P55: Non concerné
A56: =+Direction!C6 -> Direction | B56: =+Direction!J3 -> 1.33 | H56: Non concerné | I56: Non concerné | J56: Non concerné | K56: Non concerné | P56: Concerné
A57: =+Secrétariat!C6 -> Secrétariat | B57: =+Secrétariat!J3 -> 6.4 | H57: Non concerné | I57: Non concerné | J57: Non concerné | K57: Non concerné | P57: Pénibilité reconnue
A58: =+'Chaine de commandement'!C6 -> Chaine de commandement | B58: =+'Chaine de commandement'!J3 -> 1.6 | H58: Non concerné | I58: Non concerné | J58: Non concerné | K58: Non concerné
A59: =+'Services administratifs'!C6 -> Services administratifs | B59: =+'Services administratifs'!J3 -> 0.33 | H59: Non concerné | I59: Non concerné | J59: Non concerné | K59: Non concerné
A60: =+STASS!C6 -> STASS | B60: =+STASS!J3 -> 0.7 | H60: Non concerné | I60: Non concerné | J60: Non concerné | K60: Non concerné
A61: =+'Vie collective'!C6 -> Vie collective | B61: =+'Vie collective'!J3 -> 0.4 | H61: Non concerné | I61: Non concerné | J61: Non concerné | K61: Non concerné
A62: =+'Manœuvre et formation'!C6 -> Manœuvre et formation | B62: =+'Manœuvre et formation'!J3 -> 0.4 | H62: Non concerné | I62: Non concerné | J62: Non concerné | K62: Non concerné
A63: =+APS!C6 -> APS | B63: =+APS!J3 -> 0.4 | H63: Non concerné | I63: Non concerné | J63: Non concerné | K63: Non concerné
A64: =+'Espace vert'!C6 -> Espace vert | B64: =+'Espace vert'!J3 -> 0.4 | H64: Non concerné | I64: Non concerné | J64: Non concerné | K64: Non concerné
A65: =+Habillement!C6 -> Habillement | B65: =+Habillement!J3 -> 3 | H65: Non concerné | I65: Non concerné | J65: Non concerné | K65: Non concerné

Sheet 4ièmeCouv
A1: 4 ième de couverture

Sheet _CF_Calculate_Ranges (hidden)

Sheet _CF_Format_References (hidden)
A2: AaBbCc
A9: AaBbCc
A10: AaBbCc
A11: AaBbCc
A12: AaBbCc
A13: AaBbCc
A14: AaBbCc
A20: AaBbCc
A23: AaBbCc
A24: AaBbCc
A25: AaBbCc
A26: AaBbCc
A27: AaBbCc
A28: AaBbCc
A29: AaBbCc
A33: AaBbCc
A34: AaBbCc
A35: AaBbCc
A42: AaBbCc
A44: AaBbCc
A45: AaBbCc
A48: AaBbCc
A50: AaBbCc
A52: AaBbCc
A54: AaBbCc
A56: AaBbCc
A58: AaBbCc
A60: AaBbCc
A62: AaBbCc
A64: AaBbCc
A66: AaBbCc
A68: AaBbCc
A70: AaBbCc
A72: AaBbCc
A74: AaBbCc
A76: AaBbCc
A78: AaBbCc
A80: AaBbCc
A82: AaBbCc
A84: AaBbCc
A86: AaBbCc
A88: AaBbCc
A90: AaBbCc
A92: AaBbCc
A94: AaBbCc
A96: AaBbCc
A98: AaBbCc
A100: AaBbCc
A102: AaBbCc
A104: AaBbCc
A106: AaBbCc
A108: AaBbCc
A110: AaBbCc
A112: AaBbCc
A114: AaBbCc
A116: AaBbCc
A118: AaBbCc
A120: AaBbCc
A122: AaBbCc
A124: AaBbCc
A126: AaBbCc
A128: AaBbCc
A130: AaBbCc
A132: AaBbCc
A134: AaBbCc
A136: AaBbCc
A138: AaBbCc
A140: AaBbCc
A142: AaBbCc
A144: AaBbCc
A146: AaBbCc
A148: AaBbCc
A150: AaBbCc
A151: AaBbCc
A152: AaBbCc
A153: AaBbCc
A154: AaBbCc
A155: AaBbCc
A156: AaBbCc
A157: AaBbCc
A158: AaBbCc
A159: AaBbCc
A160: AaBbCc
A161: AaBbCc
A162: AaBbCc
A163: AaBbCc

Sheet BdD
A1: Plain pied | B1: 1
A2: Hauteur | B2: 2
A3: Route | B3: 3
A4: Charge | B4: 5
A5: Manutention | B5: 6
A6: Chimique | B6: 7
A7: Biologique | B7: 8
A8: Equipement | B8: 9
A9: Chute objet | B9: 10
A10: Bruit | B10: 11
A11: Thermique | B11: 12
A12: Incendie | B12: 13
A13: Electricité | B13: 14
A14: Lumière | B14: 15
A15: Rayonnement | B15: 16
A16: PSY | B16: 17
A17: Ergonomie | B17: 18
A18: Piéton | B18: 19
A19: Vibration | B19: 20
A20: Air | B20: 21
A21: Ecran | B21: 22
A22: Hygiène | B22: 23
A23: EE | B23: 24
A24: Agression | B24: 25

Sheet Planing visites
A1: PLANNING DES VISITES DE CENTRES
A4: VISTE DES CS GPT EST | B4: FAIT | C4: A FAIRE | E4: VISITE DES CS GPT SUD | F4: FAIT | G4: A FAIRE
A5: THIERS | B5: 2018-09-05 | C5: 2018-11-13 | E5: ISSOIRE | F5: 2018-09-14 | G5: 2018-09-14
A15: VISITE DES CS GPT NORD | B15: FAIT | C15: A FAIRE | E15: VISITE DES CS GPT CENTRE | F15: FAIT | G15: A FAIRE
A16: RIOM | C16: 2018-11-13 | E16: AUBIERE | G16: 2018-11-14
E17: COURNON | G17: 2018-11-15
E18: GERZAT | F18: 2018-10-10
E19: CHAMALIERES | F19: 2018-09-25 | G19: 2018-09-25
E20: CLERMONT-FERRAND | F20: 2018-10-09 | G20: 2018-10-04

Sheet Feuil1
A2: Rèf | B2: Unité de travail | C2: Zone | D2: Situation dangereuse | E2: Risque | F2: G | G2: F | H2: E | I2: Ibrut | J2: M | K2: Inet | L2: Moyens de prévention | M2: Plan d'action
A3: TH_Ad_001 | B3: Administratif | C3: Bureau de XX | D3: L'agent utilise une chaise de bureau pour remplacer le néon | E3: Chute de hauteur | L3: Affichage
